{"text_format":"1","workbook":"xlsx","n_sheets":14,"sheets":["Hagoort Method","Calculate","Results","PROD INS WHP 2kpsi","PROD INS WHP 2kpsi (2)","PROD INS WHT 2 kpsi","INJ BHP 2kpsi","INJ BHT 2 kpsi","WHP 2kpsi","WHT 2 kpsi","WHP 3kpsi","WHT 3kpsi","WHP 4kpsi","WHT 4kpsi"],"not_rendered":{"charts":22,"images":0,"macros":1,"external_links":1,"defined_names":66,"comments":0,"pivot_tables":0},"unopened":[{"sheet":"PROD INS WHP 2kpsi","index":3,"reason":"not_a_worksheet"},{"sheet":"PROD INS WHP 2kpsi (2)","index":4,"reason":"not_a_worksheet"},{"sheet":"PROD INS WHT 2 kpsi","index":5,"reason":"not_a_worksheet"},{"sheet":"INJ BHP 2kpsi","index":6,"reason":"not_a_worksheet"},{"sheet":"INJ BHT 2 kpsi","index":7,"reason":"not_a_worksheet"},{"sheet":"WHP 2kpsi","index":8,"reason":"not_a_worksheet"},{"sheet":"WHT 2 kpsi","index":9,"reason":"not_a_worksheet"},{"sheet":"WHP 3kpsi","index":10,"reason":"not_a_worksheet"},{"sheet":"WHT 3kpsi","index":11,"reason":"not_a_worksheet"},{"sheet":"WHP 4kpsi","index":12,"reason":"not_a_worksheet"},{"sheet":"WHT 4kpsi","index":13,"reason":"not_a_worksheet"}],"bounds":{"document_bytes":16777216,"sheet_cells":100000,"rows_first":2000,"rows_last":500,"rows_between":2000,"halvings":0,"cell_chars":16384,"cell_head_chars":4096},"cells_cut":0,"cells_raw":0,"read":"whole","date_system":"1900"}

{"sheet":"Hagoort Method","index":0,"n_rows":54,"n_cols":22,"rows_kept":54,"cut":false,"hidden":false,"merged":[[28,16,28,18],[18,19,18,21],[22,8,22,10],[29,3,29,6],[1,8,1,10],[1,16,1,18],[11,8,11,10],[1,3,1,6]]}
[null,null,null,null,"Injection or Production?","INJ",null,null,null,{"$f":"1-ΔTfD+(ΔTfD-ΔTAD)*((1-EXP(-Nhl))/Nhl)","v":1.0694227662269771}]
[null,null,null,"Input",null,null,null,null,"Dimensionless Variables",null,null,null,null,null,null,null,"Results"]
[null,null,null,"Production Rate",null,{"$f":"F4*(CONVERT(1,\"ft\",\"m\"))^3","v":0.56633693184000011},"106 m3/day (std)",null,"TD",{"$f":"TfbD-ΔTfD*yD+(ΔTfD-(ΔTfD-Nhl*(1-TfbD))*EXP(-Nhl*yD))/Nhl-ΔTAD*(1-EXP(-Nhl*yD))/Nhl","v":0.98798809818606093},"dimensionless temperature",null,null,null,null,null,"Tout",{"$f":"CONVERT(R4,\"F\",\"K\")","v":362.13762535828101},"(K)",null,"The macro in \"Iterate\" solves for the whole well. It does not discretize the well into parts for greater accuracy. To discretize the well, use the \"Calculate\" worksheet and macros."]
[null,null,null,null,null,20,"MMscf/d",null,"TfbD",{"$f":"Tfin/Tin","v":0.77261357951703125},"dimensionless formation temperature @ bottomhole",null,null,null,null,null,null,192.17772564490588,"°F"]
[null,null,null,"Mass flow rate","w",{"$f":"F3*1000000*ρstd/CONVERT(1,\"day\",\"sec\")","v":4.7761333304516027},"kg/s",null,"ΔTfD",{"$f":"(Tfin-Tfout)/Tin","v":-0.22738642048296873},"dimensionless formation temperature difference - top/bottom",null,null,null,null,null,"Pout",{"$f":"CONVERT(R6,\"psi\",\"Pa\")/1000000","v":27.581099015020349},"(MPa)"]
[null,null,null,"Inlet Pressure","Pin",{"$f":"CONVERT(F7,\"psi\",\"Pa\")/1000000","v":24.025725234101525},"(MPa)",null,"yD",1,"dimensionless depth (in = 0, out = 1)",null,null,null,null,null,null,4000.3002052514526,"psi"]
[null,null,null,"(PROD=BHP, INJ=Compressour Outlet)",null,3484.6368352816862,"psi",null,"ΔTD",{"$f":"(Tin-Texit)/Tin","v":1.2011901813939144E-2},"Dimensionless temperature drop from top to bottom",null,null,null,null,null,"zavg",{"$f":"AVERAGE(zout,zin)","v":0.95622858073595252},"-"]
[null,null,null,"Inlet temperature",null,200,"°F",null,"PD",{"$f":"((1-ΔTD*yD)^(2*Ngp/ΔTD)+Nfp/2*(1-ΔTD*yD)^2/(Ngp-ΔTD)*((1-ΔTD*yD)^(2*(Ngp/ΔTD-1))-1))^0.5","v":1.1453062856659502},"Dimensionless pressure",null,null,null,null,null,"Cpavg",{"$f":"AVERAGE(Cpout, Cpin)","v":53.077716873899639},"(J/mol K)"]
[null,null,null,"Inlet temperature","Tin",{"$f":"CONVERT(F8,\"F\",\"K\")","v":366.48333333333329},"(K)",null,null,null,null,null,null,null,null,null,"Ψavg",{"$f":"AVERAGE(Ψin, Ψout)","v":0.21954125257094997},"-"]
[null,null,null,null,null,null,null,null,null,null,null,null,null,null,null,null,"Ωavg",{"$f":"AVERAGE(Ωout,Ωin)","v":14.208387614026611},"(K/MPa)2"]
[null,null,null,"Tubing length [Prod(+), Inj(-)]","L",{"$f":"CONVERT(F12,\"ft\",\"m\")","v":2590.8000000000002},"m",null,null,null,null,null,null,null,null,null,"μavg",{"$f":"AVERAGE(μout,μin)","v":2.0735235531332702E-5},"(Pa s)"]
[null,null,null,"Tubing length","L",8500,"ft",null,"Gas Definition",null,null,null,null,null,null,null,"favg",{"$f":"AVERAGE(fout,fin)","v":3.1341082285044016E-3},"-"]
[null,null,null,null,"dh",{"$f":"CONVERT(F14,\"in\",\"m\")","v":0.1005332},"m",null,"Gas:","Natural Gas",null,"Methane",null,null,null,null,"Ngp",{"$f":"(M/1000)*g*L/(zavg*R_*Tin)*IF(MODE=\"INJ\", -1,IF(MODE=\"PROD\", 1,0))","v":-0.14973908705455408},"-","Ratio of gravity to pressure forces"]
[null,null,null,"Tubing ID",null,3.9580000000000002,"in",null,"M",{"$f":"[1]!MolarMass(J13)","v":17.185153652200004},"g/mol","Molecular Mass",null,null,null,null,"Nfp",{"$f":"0.000000001*4*zavg*favg*w^2*R_*Tin*L/(Pin^2*A^2*dh*M)","v":3.4356208469946574E-2},"-","Ratio of friction to pressure forces"]
[null,null,null,"Formation Temperature - top/WHT",null,50,"(F)",null,"ρstd",{"$f":"[1]!DENSITY($J$13, \"TP\",\"C\",Tstd, Pstd/10)","v":0.72864384529949988},"kg/m3","Density @ standard conditions",null,null,null,null,"ΔTA",{"$f":"ΔTAD*Tin","v":-11.663307553741433},"(K)"]
[null,null,null,null,"Tft",{"$f":"CONVERT(F15,\"F\",\"K\")","v":283.14999999999998},"(K)",null,null,null,null,null,null,null,null,null,"ΔTAD",{"$f":"Ψavg*Ngp+Ωavg*(Pin^2/(2*Tin^2))*Nfp","v":-3.1824933067646825E-2},"-"]
[null,null,null,"Formation Temperature -  bottom/BHT",null,200,"(F)"]
[null,null,null,null,"Tfb",{"$f":"CONVERT(F17,\"F\",\"K\")","v":366.48333333333329},"(K)",null,null,null,null,null,null,null,null,null,"Nhl",{"$f":"2*PI()*(M/1000)*U*L*rcF/(w*Cpavg)","v":0.44337475873177373},"-","heat lost to formation vs. heat in gas"]
[null,null,null,"Formation Pressure -  bottom","Pb",4000,"psi",null,null,null,null,null,null,null,null,null,"Texit",{"$f":"TD*Tin","v":362.08117151688816},"(K)","Multi-Segment Answer"]
[null,null,null,"Wall roughness","δ",{"$f":"CONVERT(0.0006,\"in\",\"m\")","v":1.524E-5},"m",null,"methane",{"$f":"[1]!MassFraction(J13,1)","v":0.88799861513291733},"mass fraction",null,null,null,null,null,null,{"$f":"CONVERT(Texit,\"K\",\"F\")","v":192.07610873039874},"°F",null,192.17772564380451,"°F"]
[null,null,null,"Heat conductivity formation","λf",8.7200000000000006,"kJ/(m h K)",null,null,null,null,null,null,null,null,{"$f":"ΔTwh*5/9","v":-4.4021618164451297},"ΔTtotal",{"$f":"(Texit-Tin)*9/5","v":-7.9238912696012331},"°F",null,{"$f":"U20-F8","v":-7.8222743561954928},"°F"]
[null,null,null,"Thermal diffusivity formation","κ",3.7000000000000002E-3,"m2/h",null,"U(copy)",{"$f":"(1/Uwb+rcF/((λf*1000/3600)*quDo))^-1","v":2.2597516273976801},null,null,null,null,null,null,"Pexit",{"$f":"CONVERT(PD*Pin*1000000,\"Pa\",\"psi\")","v":3990.9764707112195},"psi",null,4000.3002052389861,"psi"]
[null,null,null,"Thermal skin factor","sth",2,null,null,"Heat Transfer",null,null,null,null,null,null,null,"ΔPtotal",{"$f":"Pexit-CONVERT(1000000*Pin,\"Pa\",\"psi\")","v":506.33963542953325},"psi",null,{"$f":"U22-F7","v":515.66336995729989},"psi"]
[null,null,null,"Radius interface cement-formation","rcF",{"$f":"CONVERT(F25,\"in\",\"m\")","v":0.17780000000000001},"m",null,"U",{"$f":"(1/Uwb+rcF/((λf*1000/3600)*quDo))^-1","v":2.2597516273976801},"J/(m2 s K)","Overall Wellbore Heat Transfer Coefficient",null,null,null,null,"tol",{"$f":"ABS(R6-Pexit )+ABS(R4-R20)","v":9.4253514547402233}]
[null,null,null,null,null,7,"in.",null,"Uwb",{"$f":"λf/(sth*rcF)*1000/3600","v":6.8116485439320078},"J/(m2 s K)","Near-wellbore Heat Transfer Coefficient",null,null,null,null,"Twh_multi",{"$f":"U20","v":192.17772564380451},"°F"]
[null,null,null,"Production time","t",400,"days",null,"tDFo",{"$f":"κ*t/(rcF^2)*24","v":1123.5940839228617},"-","Dimensionless time for heat transfer",null,null,null,null,"Pwh_multi",{"$f":"U22","v":4000.3002052389861},"psi"]
[null,null,null,"Standard pressure","Pstd",1.0156000000000001,"bar",null,"quDo",{"$f":"1/(-0.0012*(LN(tDFo))^3+0.0249*(LN(tDFo))^2+0.3083*LN(tDFo)+1.0504)","v":0.24822087020351333},"-","Dimensionless unit heat-loss for sth = 0",null,null,null,null,"TD",{"$f":"TD","v":0.98798809818606093}]
[null,null,null,"Standard temperature","Tstd",{"$f":"CONVERT(288.706,\"K\",\"C\")","v":15.55600000000004},"°C",null,null,null,null,null,null,null,null,null,"PD",{"$f":"PD","v":1.1453062856659502}]
[null,null,null,null,null,null,null,null,"U",0,"http://www.majus.co.uk/products/vacuum-insulated-tubing-i-tubing-vit",null,null,null,null,null,"Analysis"]
[null,null,null,"Intermediate Values",null,null,null,null,null,null,null,null,null,null,null,null,"ΔThlD",{"$f":"ΔTfD*(1+(1-EXP(-Nhl))/Nhl)","v":-0.41105647936013923},"Dimensionless Temp drop due to Heat Losses"]
[null,null,null,"Formation Temperature at Inflow","Tf,in",{"$f":"IF(F54=\"Off\", IF(MODE=\"INJ\",Tft,IF(MODE=\"PROD\", Tfb,0)),F52)","v":283.14999999999998},"(K)",{"$f":"IF(MODE=\"INJ\",\"Surface Temp\",IF(MODE=\"PROD\",\"Formation Temp\",\"WTF did you do?\"))","v":"Surface Temp"},null,null,null,null,null,null,null,null,null,{"$f":"R30*Tin","v":-150.64534874416833},"(K)","Temp drop due to Heat Losses"]
[null,null,null,"Formation Temperature at Outflow","Tf,out",{"$f":"IF(F54=\"Off\", IF(MODE=\"INJ\", Tfb,IF(MODE=\"PROD\", Tft,0)), F53)","v":366.48333333333329},"(K)",{"$f":"IF(MODE=\"PROD\",\"Surface Temp\",IF(MODE=\"INJ\",\"Formation Temp\",\"WTF did you do?\"))","v":"Formation Temp"},null,null,null,null,null,null,null,null,null,{"$f":"R31*9/5","v":-271.16162773950299},"(F)"]
[null,null,null,"Heat Capacity,out of tubing","Cpout",{"$f":"[1]!IsobaricHeatCapacity($J$13, \"TP\",\"Molar SI\", Tout, Pout)","v":53.493054846717371},"J/(mol K)"]
[null,null,null,"Heat Capacity,into tubing","Cpin",{"$f":"[1]!IsobaricHeatCapacity($J$13, \"TP\",\"Molar SI\", Tin, Pin)","v":52.662378901081908},"J/(mol K)"]
[null,null,null,"Change in temperature due to gravity, out","Ψout",{"$f":"ηout*Pout/Tout + zout*R_/Cpout","v":0.21679130340182337},"-"]
[null,null,null,"Change in temperature due to gravity, in","Ψin",{"$f":"ηin*Pin/Tin + zin*R_/Cpin","v":0.2222912017400766},"-"]
[null,null,null,"Change in temperature due to friction, out","Ωout",{"$f":"ηout*Tout/Pout","v":11.547069927755466},"(K/Mpa)2"]
[null,null,null,"Change in temperature due to friction, in","Ωin",{"$f":"ηin*Tin/Pin","v":16.869705300297756},"(K/Mpa)2",{"$f":"Ωin","v":16.869705300297756}]
[null,null,null,"Joule–Thomson coefficient, out","ηout",{"$f":"[1]!JouleThomson($J$13,\"TP\",\"SI\", Tout, Pout)","v":0.87944708505695357},"K/MPa "]
[null,null,null,"Joule–Thomson coefficient, in","ηin",{"$f":"[1]!JouleThomson($J$13,\"TP\",\"SI\", Tin, Pin)","v":1.1059354340585386},"K/MPa "]
[null,null,null,"Gas Constant","R",8.3149999999999995,"J/(mol K)"]
[null,null,null,"Gas Compressibility Factor, out","zout",{"$f":"[1]!CompressibilityFactor($J$13,\"TP\",\"SI\", Tout, Pout)","v":0.9637815681795836},"-"]
[null,null,null,"Gas Compressibility Factor, in","zin",{"$f":"[1]!CompressibilityFactor($J$13,\"TP\",\"SI\", Tin, Pin)","v":0.94867559329232132},"-"]
[null,null,null,"acceleration constant","g",9.8000000000000007,"m/s2"]
[null,null,null,"Tubing Cross-Section Area","A",{"$f":"PI()*(dh/2)^2","v":7.9379597845763324E-3},"m2"]
[null,null,null,"Reynold's Number, out","Reout",{"$f":"w*dh/(A*μout)","v":2819288.518661614},"-"]
[null,null,null,"Reynold's Number, in","Rein",{"$f":"w*dh/(A*μin)","v":3022183.9828620609},"-"]
[null,null,null,"Gas viscosity, out","μout",{"$f":"[1]!viscosity($J$13, \"TP\",\"SI\", Tout, Pout)*0.000001","v":2.1455445245122845E-5},"Pa*s"]
[null,null,null,"Gas viscosity, in","μin",{"$f":"[1]!viscosity($J$13, \"TP\",\"SI\", Tin, Pin)*0.000001","v":2.0015025817542562E-5},"Pa*s"]
[null,null,null,"friction factor, out","fout",3.1338234720411336E-3,"-",{"$f":"1/SQRT(fout)","v":17.863342923117123},{"$f":"4*LOG(dh/δ)+2.276+4*LOG(1+4.675*dh/(δ*Reout*SQRT(fout)))","v":17.863354307658661},{"$f":"H50-I50","v":-1.1384541537040604E-5}]
[null,null,null,"friction factor, in","fin",3.1343929849676697E-3,"-",{"$f":"1/SQRT(fin)","v":17.86171998257992},{"$f":"4*LOG(dh/δ)+2.276+4*LOG(1+4.675*dh/(δ*Rein*SQRT(fin)))","v":17.844160727968841},{"$f":"H51-I51","v":1.7559254611079211E-2}]
[null,null,null,null,"Tf,in,Temp",366.48333333333369,"(K)"]
[null,null,null,null,"Tf,out,Temp",370.65000000000038,"(K)"]
[null,null,null,null,"Discretize?","Off"]

{"sheet":"Calculate","index":1,"n_rows":1011,"n_cols":41,"rows_kept":1011,"cut":false,"hidden":false,"merged":[]}
[null,null,null,null,null,200,null,1.61,4]
[null,null,null,null,null,300,null,2.4409999999999998,4]
[null,null,null,null,null,400,null,3.9580000000000002,7]
[null,"MMscf/d","kg/s","psi","psi","°F","°F","in","in",null,"(K)","°F","(MPa)","psi","-","(J/mol K)","-",14.878562565120761,"(Pa s)","-","-","-","(K)","-",null,"-","(K)","°F","°F","psi","psi","-","°F","psi","-","-"]
["Type","flow","mass_flow","Pb","Pin","Tb","Tin","dh","rcF","% Insulated","Tout","T_out","Pout","P_out","zavg","Cpavg","Ψavg","Ωavg","μavg","favg","Ngp","Nfp","ΔTA","ΔTAD","Check","Nhl","Twh","T_wh","ΔTwh","Pwh","ΔPwh","tol","Twh_multi","Pwh_multi","TD","PD"]
["PROD",1,0.23880666652258009,4000,{"$f":"D6","v":4000},200,{"$f":"F6","v":200},3.9580000000000002,7,0,291.96962955806475,65.875333204516608,23.108585995335829,3351.6170349075032,0.89011776374935803,56.902977653189382,0.20922101549380212,12.990607533822455,2.2036651965562697E-5,2.358576980663254E-3,0.16086050691961232,4.5662755528129816E-5,12.334758220249988,3.3657078230706232E-2,null,8.2713843400002194,291.73144364435643,65.446598559841618,-134.55340144015835,3341.3163254514234,-658.68367454857662,10.729444100754847,65.875333614146314,3351.6170347969255,0.79602922455142977,0.835329081362856]
["PROD",2,0.47761333304516018,4000,4000,200,200,3.9580000000000002,7,0,300.00322029089125,80.335796523604301,23.224424730889993,3368.4180230538077,0.89950104181365909,56.304062264517079,0.21224205690321302,13.413004074457398,2.1720273870439827E-5,2.6107080902709437E-3,0.15918246676643169,2.0430762193056955E-4,12.384561609935249,3.3792973604807632E-2,null,4.1796841944438867,299.86490364331024,80.086826557958489,-119.91317344204148,3355.1641005024881,-644.83589949751195,13.50289251696546,80.335796950949884,3368.4180229906246,0.81822248481507187,0.8387910251256222]
["PROD",3,0.71641999956774027,4000,4000,200,200,3.9580000000000002,7,0,306.88688691578216,92.726396448407925,23.302155938310957,3379.6919815291817,0.90714034570202196,55.806170104255393,0.21438781041630256,13.724280745551464,2.1490293684380105E-5,2.749034284886525E-3,0.15784194295102699,4.8815949426664893E-4,12.408524155342128,3.3858358693916402E-2,null,2.8113163674714845,306.86145402906271,92.680617252312928,-107.31938274768704,3366.1173250200072,-633.88267497999277,13.620435705269472,92.726396769346934,3379.6919814895182,0.83731353139041187,0.84152933125500184]
["PROD",4,0.95522666609032036,4000,4000,200,200,3.9580000000000002,7,0,312.51734002158906,102.86121203886036,23.354021622807,3387.2144630743164,0.91310576986334269,55.416872223033572,0.21585214819663781,13.943105093269114,2.1327510991984302E-5,2.8376715893212827E-3,0.15681074353117144,9.0171188426447482E-4,12.41775106759204,3.3883535588499818E-2,null,2.1232991838916182,312.55306607004445,102.92551892608006,-97.074481073919912,3374.2703856799544,-625.72961432004558,13.008384281581712,102.8612122502864,3387.2144630468824,0.85284387485573099,0.8435675964199888]
["PROD",5,1.1940333326129007,4000,4000,200,200,3.9580000000000002,7,0,317.08262557045157,111.07872602681287,23.38860377907055,3392.2301807846143,0.91774948991318772,55.116169205176277,0.21685929588273356,14.098217889547206,2.1247019921824581E-5,2.8986351031329823E-3,0.15601729695150002,1.4465128617357291E-3,12.420686401437784,3.3891545049173091E-2,null,1.7079067905023051,317.1448879087481,111.19079823574663,-88.809201764253345,3380.1840566938913,-619.81594330610869,12.158196299656723,111.07872615957231,3392.230180764082,0.86537329003251118,0.84504601417347291]
["PROD",6,1.4328399991354805,4000,4000,200,200,3.9580000000000002,7,0,320.80977390476704,117.78759302858072,23.411154817220943,3395.5009323414151,0.92140810700390596,54.881746574847689,0.2175702034008358,14.21178775739439,2.1160219329152426E-5,2.9442472193291639E-3,0.15539780213184784,2.124190172096343E-3,12.422103151196019,3.3895410845048032E-2,null,1.4293349721115944,320.88100924137274,117.91581663447097,-82.084183365529,3384.3747364625547,-615.62526353744533,11.254419484750727,117.78759311105877,3395.5009323251088,0.87556780910829812,0.84609368411563868]
["PROD",7,1.6716466656580606,4000,4000,200,200,3.9580000000000002,7,0,323.88828419268776,123.32891154683801,23.42488613203826,3397.4924911785802,0.9243367251368908,54.696003693356985,0.21808740989196584,14.298403219206062,2.1093691214181117E-5,2.9792586221211084E-3,0.1549054481998087,2.934939039923464E-3,12.424427265778942,3.3901752510197669E-2,null,1.2293047453930925,323.96033963380967,123.45861134085744,-76.541388659142527,3387.2266009765412,-612.77339902345875,10.395589996058348,123.32891159833812,3397.492491165046,0.88397018409334593,0.84680665024413537]
["PROD",8,1.9104533321806407,4000,4000,200,200,3.9580000000000002,7,0,326.46279499906291,127.96303099831327,23.431820305486042,3398.4982080084751,0.92671798911225078,54.546218161673778,0.21847508902178131,14.367368456621323,2.1041130654146299E-5,3.0068134898394066E-3,0.15450740826994983,3.8788112739487177E-3,12.428848169698982,3.3913815552409798E-2,null,1.0785953960752337,326.53215647763108,128.08788165973598,-71.912118340263987,3389.0110470080463,-610.98895299195374,9.6120116618515539,127.96303103081412,3398.498207996884,0.8909877388083981,0.8472527617520117]
["PROD",9,2.1492599987032213,4000,4000,200,200,3.9580000000000002,7,0,328.64132729967287,131.88438913941121,23.433279990697567,3398.7099174493528,0.9286817442187616,54.423370108921759,0.21877395853809428,14.42466019253874,2.0998439844941127E-5,3.0294314405873361E-3,0.15418069277901586,4.956528953141204E-3,12.435938860853936,3.3933163474975499E-2,null,0.96091562078323545,328.70668542895561,132.00203377212014,-67.997966227879829,3389.9180956883606,-610.08190431163939,8.9094663937011376,131.88438916015591,3398.7099174391874,0.89692123906213739,0.84747952392209036]
["PROD",10,2.3880666652258014,4000,4000,200,200,3.9580000000000002,7,0,330.50462243999061,135.23832039198317,23.430159862970743,3398.257381182425,0.9303212014815776,54.321037782412212,0.2190104709603046,14.474197228394358,2.096288607124652E-5,3.0478369626669635E-3,0.1539089880643861,6.1672171707650219E-3,12.445934145519173,3.3960436978996339E-2,null,0.86645325176825483,330.56570728689564,135.3482731164122,-64.65172688358777,3390.0860947168189,-609.91390528318107,8.2812391900350804,135.23832040534927,3398.2573811733519,0.90199383497265639,0.84752152367920475]
["PROD",12,2.8656799982709611,4000,4000,200,200,3.9580000000000002,7,0,333.51473887773022,140.65652997991447,23.412493735496628,3395.6951260191263,0.93288147338001903,54.160630568152186,0.21936138152056625,14.559721688181988,2.0906257021737165E-5,3.0769457733314928E-3,0.15348658836163384,8.9902836580157339E-3,12.474969774081094,3.4039664670738358E-2,null,0.72418285096668344,333.56801580445159,140.75242844801289,-59.247571551987065,3388.5709370534432,-611.42906294655677,7.2200874337814867,140.65652998553048,3395.6951260116302,0.91018604521656732,0.84714273426336095]
["PROD",14,3.3432933313161213,4000,4000,200,200,3.9580000000000002,7,0,335.8297319986587,144.82351759758569,23.382006686925642,3391.2733534643194,0.93476105904251905,54.040678370803903,0.21961294122647934,14.636772070336912,2.0861888331893379E-5,3.0987352570159823E-3,0.15317796276359485,1.2348259526799642E-2,12.516002432047477,3.4151627901352892E-2,null,0.62210596648068717,335.87684632564429,144.90832338615979,-55.091676613840193,3384.9923287463957,-615.00767125360426,6.3658305064977299,144.82351759987426,3391.2733534579056,0.91648600570915728,0.84624808218659886]
["PROD",16,3.8209066643612815,4000,4000,200,200,3.9580000000000002,7,0,337.65516199733895,148.10929159521015,23.340456173904933,3385.2469610542657,0.93617105398261424,53.94734258133326,0.21980810463047795,14.711943324089246,2.0824784823851032E-5,3.1154739946398892E-3,0.15294725689898608,1.6239920405574218E-2,12.568749469906276,3.4295555422910393E-2,null,0.54528450306701481,337.69765968137165,148.18578742646901,-51.814212573530959,3379.6574141185833,-620.34258588141665,5.6660427669412456,148.10929159599914,3385.2469610486983,0.92145434448507446,0.84491435352964595]
["PROD",18,4.2985199974064425,4000,4000,200,200,3.9580000000000002,7,0,339.12265388753536,150.75077699756372,23.288873350563595,3377.7655050511012,0.9372417800789824,53.872263494638979,0.21997029460280673,14.788939191540205,2.0792067294231856E-5,3.1288208913623104E-3,0.15277252651157647,2.0665310972841675E-2,12.632966703224337,3.4470780944720558E-2,null,0.4853728345620239,339.16173699846456,150.82112659723626,-49.178873402763713,3372.7516255156092,-627.24837448439075,5.0842291351644633,150.75077699765683,3377.7655050462254,0.92544928009040317,0.8431879063789024]
["PROD",20,4.7761333304516027,4000,4000,200,200,3.9580000000000002,7,0,340.32001782545223,152.90603208581405,23.227893740268573,3368.9211603262415,0.93805771830302098,53.81012475229673,0.22011312192382393,14.870015931896265,2.0761970470028029E-5,3.1397170924123722E-3,0.1526396424240288,2.5623866413667033E-2,12.708496484781268,3.4676874304737648E-2,null,0.43733999914196814,340.35656382411202,152.97181488340169,-47.028185116598294,3364.3933050786904,-635.60669492130955,4.5936380451387322,152.90603109379433,3368.92115194806,0.92870952883017521,0.84109832626967274]
["INJ",1,0.23880666652258009,4000,3342.3394271227344,200,{"$f":"F21","v":200},3.9580000000000002,7,0,358.2774093050117,185.22933674902112,27.581636527570272,4000.3781648556951,0.95163575928974886,53.058630220860707,0.22015706334514584,15.096004105285221,2.0598410708472231E-5,2.3752786975322717E-3,-0.15046176364971731,7.0415585896798169E-5,-12.139070885991908,-3.3123118521056642E-2,null,8.8706850572807348,358.47037359649028,185.57667247368255,-14.423327526317427,3891.411530733471,549.07210361073612,109.31396984688558,185.22933676124649,4000.378164842873,0.97813554121558144,1.1642777807529283,null,null,null,null,156.01761803156273]
["INJ",2,0.47761333304516018,4000,3356.5953052505374,200,200,3.9580000000000002,7,0,351.27827570416025,172.63089626748851,27.581500189056733,4000.358390626126,0.94743983433474654,53.274420344034851,0.21975272806281326,14.923702072638285,2.0715785687767004E-5,2.6143833483033042E-3,-0.1511281133702933,3.060324711984529E-4,-12.167872953118119,-3.3201708908412716E-2,null,4.417377000261193,351.57286138159793,173.16115048687632,-26.838849513123648,3916.0612258886349,559.46592063809749,84.827418956878944,172.6308962861057,4000.3583906091926,0.95931473386219823,1.1666766082175457,null,null,null,null,120.56295424974445]
["INJ",3,0.71641999956774027,4000,3370.1827567671971,200,200,3.9580000000000002,7,0,347.80001148034711,166.37002066462483,27.581347904210144,4000.336303576486,0.94536735137611205,53.396834511921419,0.21944162962963376,14.785092427175627,2.0789577009032873E-5,2.7445840305733377E-3,-0.15145942419785105,7.1547969165901271E-4,-12.172831766560263,-3.3215239710474138E-2,null,2.9381666695047981,347.96026320200718,166.65847376361299,-33.341526236386997,3935.6948464200782,565.51208965288106,64.929910255395953,166.37002067410288,4000.3363035569346,0.94945726463779312,1.167798641933395,null,null,null,null,200.06279314574232]
["INJ",4,0.95522666609032036,4000,3381.9496711850729,200,200,3.9580000000000002,7,0,346.91841053467306,164.78313896241156,27.581219966259638,4000.3177477455752,0.94496163393448529,53.436086850931318,0.21931240136999522,14.693888092201922,2.0819809201831903E-5,2.8297924869895401E-3,-0.15152445300737,1.3017843372089923E-3,-12.164488496320368,-3.3192473954214478E-2,null,2.2020062938598675,346.95240297880468,164.84432536184849,-35.155674638151496,3949.6130485519002,567.66337736682726,50.765885593111904,164.7831389650668,4000.3177477253239,0.94670717989577891,1.1678509240404846,null,null,null,null,473.81223979988272]
["INJ",5,1.1940333326129007,4000,3391.9447922304812,200,200,3.9580000000000002,7,0,347.36832013881866,165.59297624987363,27.581121893706467,4000.3035235243296,0.94541706837983319,53.429893834446887,0.21929870000732085,14.634929757905416,2.0824972266767824E-5,2.8898433007250829E-3,-0.15145145934402274,2.065973592182687E-3,-12.149489150586852,-3.3151546183783312E-2,null,1.7618092213259415,347.32936440528334,165.52285592951006,-34.477144070489906,3959.3841088613408,567.43931663086005,40.989534983352428,165.59297624992652,4000.3035235045022,0.94773577080890459,1.1672902571794874,null,null,null,null,251.09601468678869]
["INJ",6,1.4328399991354805,4000,3400.5365657856132,200,200,3.9580000000000002,7,0,348.42379220192538,167.49282596346572,27.581048126307071,4000.2928244676027,0.94625175540237583,53.402861064897074,0.21933723344255424,14.594254911078783,2.0818265437484204E-5,2.9347444860680656E-3,-0.1513178642759683,3.0086326928447506E-3,-12.130519922834822,-3.3099786046208987E-2,null,1.4689175475948202,348.34880472841832,167.35784851115301,-32.642151488846956,3966.3925523228977,565.85598653728402,34.035249597017724,167.49282596271931,4000.2928244486361,0.95051745344058847,1.1664019708626649,null,null,null,null,549.29528532367351]
["INJ",7,1.6716466656580606,4000,3408.0912486316988,200,200,3.9580000000000002,7,0,349.7192580427681,169.82466447698263,27.580993943926217,4000.2849659776589,0.94722287057713017,53.367852985789852,0.21939253834590844,14.563281834052518,2.0806813780390646E-5,2.9697378492394566E-3,-0.15116272964105362,4.1297952063361629E-3,-12.108737232242566,-3.3040348989701852E-2,null,1.2598981059287733,349.62872030565609,169.66169655018101,-30.338303449818966,3971.5608365670878,563.46958793538897,28.887097337372722,169.82466447600294,4000.2849659596673,0.95400987850013041,1.1653328936429193,null,null,null,null,125.45842204727394]
["INJ",8,1.9104533321806407,4000,3414.9035841024092,200,200,3.9580000000000002,7,0,351.07543873117135,172.26578971610846,27.58095524004624,4000.2793524544659,0.94821420614015262,53.331163651342685,0.21944786927512158,14.53718840495679,2.0794147178558726E-5,2.9976951978872343E-3,-0.15100469257651025,5.4287717892789493E-3,-12.084710604826569,-3.2974789044049033E-2,null,1.1031692495428125,350.98000505658649,172.09400910185573,-27.905990898144239,3975.4759953166199,560.57241121421112,24.975137752098703,172.26578971504927,4000.2793524374015,0.95769704413093781,1.1641546817965447,null,null,null,null,202.76738637895164]
["INJ",9,2.1492599987032213,4000,3421.1974054898874,200,200,3.9580000000000002,7,0,352.40591429206739,174.66064572572137,27.580928961114836,4000.2755410177051,0.94917251163906891,53.295738386425697,0.21949626534216529,14.513301341896177,2.0781933251570627E-5,3.0205360091785658E-3,-0.15085223490892741,6.90466313781706E-3,-12.058742762477875,-3.2903932227417006E-2,null,0.98124668231728762,352.31094161055506,174.48969489899915,-25.510305101000814,3978.5140698875684,557.31666439768105,21.932421956858889,174.66064572462082,4000.2755410014684,0.96132868691770001,1.1629010543219087,null,null,null,null,474.9860890192449]
["INJ",10,2.3880666652258014,4000,3427.1403654657042,200,200,3.9580000000000002,7,0,353.67082461335008,176.93748430403019,27.58091288208561,4000.2732089516812,0.95007551007959468,53.262853770997552,0.21953543521936858,14.490122172923364,2.0770910778696998E-5,3.0395406804186662E-3,-0.15070885753373209,8.55631714884777E-3,-12.030999158631465,-3.2828230002177813E-2,null,0.88366725576438809,353.57888339571463,176.77199011228637,-23.228009887713597,3980.9215698797229,553.7812044140187,19.517133263702107,176.93748430289926,4000.2732089361625,0.96478843984459861,1.1615869632870339,null,null,null,null,252.71903145740723]
["INJ",12,2.8656799982709611,4000,3438.4466600825172,200,200,3.9580000000000002,7,0,355.95086281265412,181.04155306277747,27.580905278433761,4000.272106135219,0.95169450145439449,53.206116036409306,0.2195861608691782,14.442820534566541,2.0753347935457859E-5,3.0693373943369096E-3,-0.15045247658366862,1.2381255161878039E-2,-11.970494959826089,-3.2663136003891285E-2,null,0.73717464789494769,355.86755394288787,180.8915970971982,-19.108402902801764,3984.4571875970396,546.01052751452244,15.964874503758693,181.04155306160592,4000.2721061208249,0.9710333910852369,1.1587956951181611,null,null,null,null,549.90548484669625]
["INJ",14,3.3432933313161213,4000,3449.509865791109,200,200,3.9580000000000002,7,0,357.89606888898686,184.54292400017638,27.580923928179416,4000.2748110521379,0.95308040492861834,53.16094513282335,0.21960561560277375,14.391864978001735,2.074171435520367E-5,3.0916188113811957E-3,-0.15023369901891687,1.6890454842462599E-2,-11.90348076492119,-3.2480278589079606E-2,null,0.63240087931362632,357.82141472546186,184.4085465058314,-15.591453494168571,3986.8945187893223,537.38465299821337,13.51466975716059,184.54292399899114,4000.2748110385319,0.9763647679988956,1.1557857996950445,null,null,null,null,187.44773508185386]
["INJ",16,3.8209066643612815,4000,3460.7404753825299,200,200,3.9580000000000002,7,0,359.54498586491241,187.51097455684237,27.580964063852896,4000.2806322394213,0.95427269712073026,53.125630651983215,0.21960107869701606,14.336040511502498,2.0735310911141048E-5,3.1090738248234443E-3,-0.15004599327518889,2.2069373663986754E-2,-11.82996193705592,-3.227967239180296E-2,null,0.55371860117674054,359.47773450974813,187.38992211754669,-12.610077882453288,3988.651055988752,527.91058060622208,11.750628689964969,187.51097455566233,4000.2806322262941,0.98088426352198332,1.1525426666233531,null,null,null,null,375.9418439242275]
["INJ",18,4.2985199974064425,4000,3472.3943461378522,200,200,3.9580000000000002,7,0,360.94468809891777,190.03043857805201,27.581022952795944,4000.2891733584988,0.95531101596478174,53.098387610262463,0.21957827605215918,14.274919356001529,2.0733367202142865E-5,3.1228604780368955E-3,-0.14988290965143866,2.7897730270350116E-2,-11.749918678227143,-3.2061263390496551E-2,null,0.49244684092086155,360.88345378768253,189.92021681782859,-10.079783182171377,3989.9654323510699,517.57108621321822,10.433962767652332,190.03043857690955,4000.2891733458309,0.98471996121974414,1.149053084016475,null,null,null,null,152.52336309193137]
["INJ",20,4.7761333304516027,4000,3484.6368352816862,200,200,3.9580000000000002,7,0,362.13762535828101,192.17772564490588,27.581099015020349,4000.3002052514526,0.95622858073595252,53.077716873899639,0.21954125257094997,14.208387614026611,2.0735235531332702E-5,3.1341082285044016E-3,-0.14973908705455408,3.4356208469946574E-2,-11.663307553741433,-3.1824933067646825E-2,null,0.44337475873177373,362.08117151688816,192.07610873039874,-7.9238912696012331,3990.9764707112195,506.33963542953325,9.4253514547402233,192.17772564380451,4000.3002052389861,0.98798809818606093,1.1453062856659502,null,null,null,null,367.44108478747046]
[null,null,null,null,null,null,null,null,null,null,null,null,null,null,null,null,null,null,null,null,null,null,null,null,null,null,null,null,null,null,null,null,null,null,null,null,null,null,null,null,156.40955633129147]
[null,null,null,null,null,null,null,null,null,null,null,null,null,null,null,null,null,null,null,null,null,null,null,null,null,null,null,null,null,null,null,null,null,null,null,null,null,null,null,null,368.65027750364396]
[null,null,null,null,null,null,null,null,null,null,null,null,null,null,null,null,null,null,null,null,null,null,null,null,null,null,null,null,null,null,null,null,null,null,null,null,null,null,null,null,121.05536226863336]
[null,null,null,null,null,null,null,null,null,null,null,null,null,null,null,null,null,null,null,null,null,null,null,null,null,null,null,null,null,null,null,null,null,null,null,null,null,null,null,null,360.03861872333596]
[null,null,null,null,null,null,null,null,null,null,null,null,null,null,null,null,null,null,null,null,null,null,null,null,null,null,null,null,null,null,null,null,null,null,null,null,null,null,null,null,200.24113783065997]
[null,null,null,null,null,null,null,null,null,null,null,null,null,null,null,null,null,null,null,null,null,null,null,null,null,null,null,null,null,null,null,null,null,null,null,null,null,null,null,null,478.75132488966852]
[null,null,null,null,null,null,null,null,null,null,null,null,null,null,null,null,null,null,null,null,null,null,null,null,null,null,null,null,null,null,null,null,null,null,null,null,null,null,null,null,520.50685900746316]
[null,null,null,null,null,null,null,null,null,null,null,null,null,null,null,null,null,null,null,null,null,null,null,null,null,null,null,null,null,null,null,null,null,null,null,null,null,null,null,null,251.18612126814551]
[null,null,null,null,null,null,null,null,null,null,null,null,null,null,null,null,null,null,null,null,null,null,null,null,null,null,null,null,null,null,null,null,null,null,null,null,null,null,null,null,551.67372121971971]
[null,null,null,null,null,null,null,null,null,null,null,null,null,null,null,null,null,null,null,null,null,null,null,null,null,null,null,null,null,null,null,null,null,null,null,null,null,null,null,null,597.30366734213521]
[null,null,null,null,null,null,null,null,null,null,null,null,null,null,null,null,null,null,null,null,null,null,null,null,null,null,null,null,null,null,null,null,null,null,null,null,null,null,null,null,125.8388715338006]
[null,null,null,null,null,null,null,null,null,null,null,null,null,null,null,null,null,null,null,null,null,null,null,null,null,null,null,null,null,null,null,null,null,null,null,null,null,null,null,null,361.33497579403081]
[null,null,null,null,null,null,null,null,null,null,null,null,null,null,null,null,null,null,null,null,null,null,null,null,null,null,null,null,null,null,null,null,null,null,null,null,null,null,null,null,202.91715624795521]
[null,null,null,null,null,null,null,null,null,null,null,null,null,null,null,null,null,null,null,null,null,null,null,null,null,null,null,null,null,null,null,null,null,null,null,null,null,null,null,null,479.32538004294105]
[null,null,null,null,null,null,null,null,null,null,null,null,null,null,null,null,null,null,null,null,null,null,null,null,null,null,null,null,null,null,null,null,null,null,null,null,null,null,null,null,521.12238151832707]
[null,null,null,null,null,null,null,null,null,null,null,null,null,null,null,null,null,null,null,null,null,null,null,null,null,null,null,null,null,null,null,null,null,null,null,null,null,null,null,null,252.79697560685375]
[null,null,null,null,null,null,null,null,null,null,null,null,null,null,null,null,null,null,null,null,null,null,null,null,null,null,null,null,null,null,null,null,null,null,null,null,null,null,null,null,551.99126064298071]
[null,null,null,null,null,null,null,null,null,null,null,null,null,null,null,null,null,null,null,null,null,null,null,null,null,null,null,null,null,null,null,null,null,null,null,null,null,null,null,null,597.58676169083913]
[null,null,null,null,null,null,null,null,null,null,null,null,null,null,null,null,null,null,null,null,null,null,null,null,null,null,null,null,null,null,null,null,null,null,null,null,null,null,null,null,175.37822828592229]
[null,null,null,null,null,null,null,null,null,null,null,null,null,null,null,null,null,null,null,null,null,null,null,null,null,null,null,null,null,null,null,null,null,null,null,null,null,null,null,null,373.27622262504065]
[null,null,null,null,null,null,null,null,null,null,null,null,null,null,null,null,null,null,null,null,null,null,null,null,null,null,null,null,null,null,null,null,null,null,null,null,null,null,null,null,406.11364226186322]
[null,null,null,null,null,null,null,null,null,null,null,null,null,null,null,null,null,null,null,null,null,null,null,null,null,null,null,null,null,null,null,null,null,null,null,null,null,null,null,null,138.71548679115415]
[null,null,null,null,null,null,null,null,null,null,null,null,null,null,null,null,null,null,null,null,null,null,null,null,null,null,null,null,null,null,null,null,null,null,null,null,null,null,null,null,364.60694298086128]
[null,null,null,null,null,null,null,null,null,null,null,null,null,null,null,null,null,null,null,null,null,null,null,null,null,null,null,null,null,null,null,null,null,null,null,null,null,null,null,null,401.56438386001463]
[null,null,null,null,null,null,null,null,null,null,null,null,null,null,null,null,null,null,null,null,null,null,null,null,null,null,null,null,null,null,null,null,null,null,null,null,null,null,null,null,142.86057779276507]
[null,null,null,null,null,null,null,null,null,null,null,null,null,null,null,null,null,null,null,null,null,null,null,null,null,null,null,null,null,null,null,null,null,null,null,null,null,null,null,null,365.48481259513835]
[null,null,null,null,null,null,null,null,null,null,null,null,null,null,null,null,null,null,null,null,null,null,null,null,null,null,null,null,null,null,null,null,null,null,null,null,null,null,null,null,402.17742777898934]
[null,null,null,null,null,null,null,null,null,null,null,null,null,null,null,null,null,null,null,null,null,null,null,null,null,null,null,null,null,null,null,null,null,null,null,null,null,null,null,null,105.87013939614928]
[null,null,null,null,null,null,null,null,null,null,null,null,null,null,null,null,null,null,null,null,null,null,null,null,null,null,null,null,null,null,null,null,null,null,null,null,null,null,null,null,356.69589169890514]
[null,null,null,null,null,null,null,null,null,null,null,null,null,null,null,null,null,null,null,null,null,null,null,null,null,null,null,null,null,null,null,null,null,null,null,null,null,null,null,null,397.57976555296943]
[null,null,null,null,null,null,null,null,null,null,null,null,null,null,null,null,null,null,null,null,null,null,null,null,null,null,null,null,null,null,null,null,null,null,null,null,null,null,null,null,182.04458324540482]
[null,null,null,null,null,null,null,null,null,null,null,null,null,null,null,null,null,null,null,null,null,null,null,null,null,null,null,null,null,null,null,null,null,null,null,null,null,null,null,null,473.42977991800069]
[null,null,null,null,null,null,null,null,null,null,null,null,null,null,null,null,null,null,null,null,null,null,null,null,null,null,null,null,null,null,null,null,null,null,null,null,null,null,null,null,520.0883967812108]
[null,null,null,null,null,null,null,null,null,null,null,null,null,null,null,null,null,null,null,null,null,null,null,null,null,null,null,null,null,null,null,null,null,null,null,null,null,null,null,null,231.07682977201225]
[null,null,null,null,null,null,null,null,null,null,null,null,null,null,null,null,null,null,null,null,null,null,null,null,null,null,null,null,null,null,null,null,null,null,null,null,null,null,null,null,545.57720168396315]
[null,null,null,null,null,null,null,null,null,null,null,null,null,null,null,null,null,null,null,null,null,null,null,null,null,null,null,null,null,null,null,null,null,null,null,null,null,null,null,null,595.23018672603428]
[null,null,null,null,null,null,null,null,null,null,null,null,null,null,null,null,null,null,null,null,null,null,null,null,null,null,null,null,null,null,null,null,null,null,null,null,null,null,null,null,111.01553757322048]
[null,null,null,null,null,null,null,null,null,null,null,null,null,null,null,null,null,null,null,null,null,null,null,null,null,null,null,null,null,null,null,null,null,null,null,null,null,null,null,null,357.66659998167216]
[null,null,null,null,null,null,null,null,null,null,null,null,null,null,null,null,null,null,null,null,null,null,null,null,null,null,null,null,null,null,null,null,null,null,null,null,null,null,null,null,398.23370004060632]
[null,null,null,null,null,null,null,null,null,null,null,null,null,null,null,null,null,null,null,null,null,null,null,null,null,null,null,null,null,null,null,null,null,null,null,null,null,null,null,null,184.89459121061023]
[null,null,null,null,null,null,null,null,null,null,null,null,null,null,null,null,null,null,null,null,null,null,null,null,null,null,null,null,null,null,null,null,null,null,null,null,null,null,null,null,473.93516781452513]
[null,null,null,null,null,null,null,null,null,null,null,null,null,null,null,null,null,null,null,null,null,null,null,null,null,null,null,null,null,null,null,null,null,null,null,null,null,null,null,null,520.36043695294188]
[null,null,null,null,null,null,null,null,null,null,null,null,null,null,null,null,null,null,null,null,null,null,null,null,null,null,null,null,null,null,null,null,null,null,null,null,null,null,null,null,232.76841022590523]
[null,null,null,null,null,null,null,null,null,null,null,null,null,null,null,null,null,null,null,null,null,null,null,null,null,null,null,null,null,null,null,null,null,null,null,null,null,null,null,null,545.87497221907245]
[null,null,null,null,null,null,null,null,null,null,null,null,null,null,null,null,null,null,null,null,null,null,null,null,null,null,null,null,null,null,null,null,null,null,null,null,null,null,null,null,595.36105919743659]
[null,null,null,null,null,null,null,null,null,null,null,null,null,null,null,null,null,null,null,null,null,null,null,null,null,null,null,null,null,null,null,null,null,null,null,null,null,null,null,null,187.03765701799978]
[null,null,null,null,null,null,null,null,null,null,null,null,null,null,null,null,null,null,null,null,null,null,null,null,null,null,null,null,null,null,null,null,null,null,null,null,null,null,null,null,152.01860343050203]
[null,null,null,null,null,null,null,null,null,null,null,null,null,null,null,null,null,null,null,null,null,null,null,null,null,null,null,null,null,null,null,null,null,null,null,null,null,null,null,null,156.01726044921793]
[null,null,null,null,null,null,null,null,null,null,null,null,null,null,null,null,null,null,null,null,null,null,null,null,null,null,null,null,null,null,null,null,null,null,null,null,null,null,null,null,120.56606034999156]
[null,null,null,null,null,null,null,null,null,null,null,null,null,null,null,null,null,null,null,null,null,null,null,null,null,null,null,null,null,null,null,null,null,null,null,null,null,null,null,null,200.06371903973127]
[null,null,null,null,null,null,null,null,null,null,null,null,null,null,null,null,null,null,null,null,null,null,null,null,null,null,null,null,null,null,null,null,null,null,null,null,null,null,null,null,251.09639249555983]
[null,null,null,null,null,null,null,null,null,null,null,null,null,null,null,null,null,null,null,null,null,null,null,null,null,null,null,null,null,null,null,null,null,null,null,null,null,null,null,null,549.29504429815131]
[null,null,null,null,null,null,null,null,null,null,null,null,null,null,null,null,null,null,null,null,null,null,null,null,null,null,null,null,null,null,null,null,null,null,null,null,null,null,null,null,125.46183137486621]
[null,null,null,null,null,null,null,null,null,null,null,null,null,null,null,null,null,null,null,null,null,null,null,null,null,null,null,null,null,null,null,null,null,null,null,null,null,null,null,null,202.76855515099291]
[null,null,null,null,null,null,null,null,null,null,null,null,null,null,null,null,null,null,null,null,null,null,null,null,null,null,null,null,null,null,null,null,null,null,null,null,null,null,null,null,252.7193567148469]
[null,null,null,null,null,null,null,null,null,null,null,null,null,null,null,null,null,null,null,null,null,null,null,null,null,null,null,null,null,null,null,null,null,null,null,null,null,null,null,null,549.90563146905936]
[null,null,null,null,null,null,null,null,null,null,null,null,null,null,null,null,null,null,null,null,null,null,null,null,null,null,null,null,null,null,null,null,null,null,null,null,null,null,null,null,187.45283406771748]
[null,null,null,null,null,null,null,null,null,null,null,null,null,null,null,null,null,null,null,null,null,null,null,null,null,null,null,null,null,null,null,null,null,null,null,null,null,null,null,null,375.93537996615049]
[null,null,null,null,null,null,null,null,null,null,null,null,null,null,null,null,null,null,null,null,null,null,null,null,null,null,null,null,null,null,null,null,null,null,null,null,null,null,null,null,152.52191702821978]
[null,null,null,null,null,null,null,null,null,null,null,null,null,null,null,null,null,null,null,null,null,null,null,null,null,null,null,null,null,null,null,null,null,null,null,null,null,null,null,null,367.44610430585129]
[null,null,null,null,null,null,null,null,null,null,null,null,null,null,null,null,null,null,null,null,null,null,null,null,null,null,null,null,null,null,null,null,null,null,null,null,null,null,null,null,156.42551436560905]
[null,null,null,null,null,null,null,null,null,null,null,null,null,null,null,null,null,null,null,null,null,null,null,null,null,null,null,null,null,null,null,null,null,null,null,null,null,null,null,null,368.6480522546056]
[null,null,null,null,null,null,null,null,null,null,null,null,null,null,null,null,null,null,null,null,null,null,null,null,null,null,null,null,null,null,null,null,null,null,null,null,null,null,null,null,121.07405874119975]
[null,null,null,null,null,null,null,null,null,null,null,null,null,null,null,null,null,null,null,null,null,null,null,null,null,null,null,null,null,null,null,null,null,null,null,null,null,null,null,null,360.03863451661675]
[null,null,null,null,null,null,null,null,null,null,null,null,null,null,null,null,null,null,null,null,null,null,null,null,null,null,null,null,null,null,null,null,null,null,null,null,null,null,null,null,200.25376281010853]
[null,null,null,null,null,null,null,null,null,null,null,null,null,null,null,null,null,null,null,null,null,null,null,null,null,null,null,null,null,null,null,null,null,null,null,null,null,null,null,null,478.75013064544771]
[null,null,null,null,null,null,null,null,null,null,null,null,null,null,null,null,null,null,null,null,null,null,null,null,null,null,null,null,null,null,null,null,null,null,null,null,null,null,null,null,520.50481115354523]
[null,null,null,null,null,null,null,null,null,null,null,null,null,null,null,null,null,null,null,null,null,null,null,null,null,null,null,null,null,null,null,null,null,null,null,null,null,null,null,null,251.1864807745915]
[null,null,null,null,null,null,null,null,null,null,null,null,null,null,null,null,null,null,null,null,null,null,null,null,null,null,null,null,null,null,null,null,null,null,null,null,null,null,null,null,551.67240242573939]
[null,null,null,null,null,null,null,null,null,null,null,null,null,null,null,null,null,null,null,null,null,null,null,null,null,null,null,null,null,null,null,null,null,null,null,null,null,null,null,null,597.30324548605859]
[null,null,null,null,null,null,null,null,null,null,null,null,null,null,null,null,null,null,null,null,null,null,null,null,null,null,null,null,null,null,null,null,null,null,null,null,null,null,null,null,125.85948257683314]
[null,null,null,null,null,null,null,null,null,null,null,null,null,null,null,null,null,null,null,null,null,null,null,null,null,null,null,null,null,null,null,null,null,null,null,null,null,null,null,null,361.32915699976928]
[null,null,null,null,null,null,null,null,null,null,null,null,null,null,null,null,null,null,null,null,null,null,null,null,null,null,null,null,null,null,null,null,null,null,null,null,null,null,null,null,202.92914904422767]
[null,null,null,null,null,null,null,null,null,null,null,null,null,null,null,null,null,null,null,null,null,null,null,null,null,null,null,null,null,null,null,null,null,null,null,null,null,null,null,null,479.32580120650982]
[null,null,null,null,null,null,null,null,null,null,null,null,null,null,null,null,null,null,null,null,null,null,null,null,null,null,null,null,null,null,null,null,null,null,null,null,null,null,null,null,521.12282722258476]
[null,null,null,null,null,null,null,null,null,null,null,null,null,null,null,null,null,null,null,null,null,null,null,null,null,null,null,null,null,null,null,null,null,null,null,null,null,null,null,null,252.79727343084789]
[null,null,null,null,null,null,null,null,null,null,null,null,null,null,null,null,null,null,null,null,null,null,null,null,null,null,null,null,null,null,null,null,null,null,null,null,null,null,null,null,551.9915567748335]
[null,null,null,null,null,null,null,null,null,null,null,null,null,null,null,null,null,null,null,null,null,null,null,null,null,null,null,null,null,null,null,null,null,null,null,null,null,null,null,null,597.58619731277406]
[null,null,null,null,null,null,null,null,null,null,null,null,null,null,null,null,null,null,null,null,null,null,null,null,null,null,null,null,null,null,null,null,null,null,null,null,null,null,null,null,175.38146889146046]
[null,null,null,null,null,null,null,null,null,null,null,null,null,null,null,null,null,null,null,null,null,null,null,null,null,null,null,null,null,null,null,null,null,null,null,null,null,null,null,null,373.27858060165801]
[null,null,null,null,null,null,null,null,null,null,null,null,null,null,null,null,null,null,null,null,null,null,null,null,null,null,null,null,null,null,null,null,null,null,null,null,null,null,null,null,406.11355177853102]
[null,null,null,null,null,null,null,null,null,null,null,null,null,null,null,null,null,null,null,null,null,null,null,null,null,null,null,null,null,null,null,null,null,null,null,null,null,null,null,null,138.71072096308689]
[null,null,null,null,null,null,null,null,null,null,null,null,null,null,null,null,null,null,null,null,null,null,null,null,null,null,null,null,null,null,null,null,null,null,null,null,null,null,null,null,364.61015088566336]
[null,null,null,null,null,null,null,null,null,null,null,null,null,null,null,null,null,null,null,null,null,null,null,null,null,null,null,null,null,null,null,null,null,null,null,null,null,null,null,null,401.56585522047402]
[null,null,null,null,null,null,null,null,null,null,null,null,null,null,null,null,null,null,null,null,null,null,null,null,null,null,null,null,null,null,null,null,null,null,null,null,null,null,null,null,142.87648243623687]
[null,null,null,null,null,null,null,null,null,null,null,null,null,null,null,null,null,null,null,null,null,null,null,null,null,null,null,null,null,null,null,null,null,null,null,null,null,null,null,null,365.48954548458204]
[null,null,null,null,null,null,null,null,null,null,null,null,null,null,null,null,null,null,null,null,null,null,null,null,null,null,null,null,null,null,null,null,null,null,null,null,null,null,null,null,402.17813697663877]
[null,null,null,null,null,null,null,null,null,null,null,null,null,null,null,null,null,null,null,null,null,null,null,null,null,null,null,null,null,null,null,null,null,null,null,null,null,null,null,null,105.88870840959332]
[null,null,null,null,null,null,null,null,null,null,null,null,null,null,null,null,null,null,null,null,null,null,null,null,null,null,null,null,null,null,null,null,null,null,null,null,null,null,null,null,356.70164323529838]
[null,null,null,null,null,null,null,null,null,null,null,null,null,null,null,null,null,null,null,null,null,null,null,null,null,null,null,null,null,null,null,null,null,null,null,null,null,null,null,null,397.5822535553782]
[null,null,null,null,null,null,null,null,null,null,null,null,null,null,null,null,null,null,null,null,null,null,null,null,null,null,null,null,null,null,null,null,null,null,null,null,null,null,null,null,182.05770528263884]
[null,null,null,null,null,null,null,null,null,null,null,null,null,null,null,null,null,null,null,null,null,null,null,null,null,null,null,null,null,null,null,null,null,null,null,null,null,null,null,null,473.4305494185532]
[null,null,null,null,null,null,null,null,null,null,null,null,null,null,null,null,null,null,null,null,null,null,null,null,null,null,null,null,null,null,null,null,null,null,null,null,null,null,null,null,520.08906404494326]
[null,null,null,null,null,null,null,null,null,null,null,null,null,null,null,null,null,null,null,null,null,null,null,null,null,null,null,null,null,null,null,null,null,null,null,null,null,null,null,null,231.08508170351433]
[null,null,null,null,null,null,null,null,null,null,null,null,null,null,null,null,null,null,null,null,null,null,null,null,null,null,null,null,null,null,null,null,null,null,null,null,null,null,null,null,545.57689421516613]
[null,null,null,null,null,null,null,null,null,null,null,null,null,null,null,null,null,null,null,null,null,null,null,null,null,null,null,null,null,null,null,null,null,null,null,null,null,null,null,null,595.2300458068172]
[null,null,null,null,null,null,null,null,null,null,null,null,null,null,null,null,null,null,null,null,null,null,null,null,null,null,null,null,null,null,null,null,null,null,null,null,null,null,null,null,111.03638388973998]
[null,null,null,null,null,null,null,null,null,null,null,null,null,null,null,null,null,null,null,null,null,null,null,null,null,null,null,null,null,null,null,null,null,null,null,null,null,null,null,null,357.66867231174751]
[null,null,null,null,null,null,null,null,null,null,null,null,null,null,null,null,null,null,null,null,null,null,null,null,null,null,null,null,null,null,null,null,null,null,null,null,null,null,null,null,398.23532460349531]
[null,null,null,null,null,null,null,null,null,null,null,null,null,null,null,null,null,null,null,null,null,null,null,null,null,null,null,null,null,null,null,null,null,null,null,null,null,null,null,null,184.90704117261907]
[null,null,null,null,null,null,null,null,null,null,null,null,null,null,null,null,null,null,null,null,null,null,null,null,null,null,null,null,null,null,null,null,null,null,null,null,null,null,null,null,473.9376066294729]
[null,null,null,null,null,null,null,null,null,null,null,null,null,null,null,null,null,null,null,null,null,null,null,null,null,null,null,null,null,null,null,null,null,null,null,null,null,null,null,null,520.36120352172702]
[null,null,null,null,null,null,null,null,null,null,null,null,null,null,null,null,null,null,null,null,null,null,null,null,null,null,null,null,null,null,null,null,null,null,null,null,null,null,null,null,232.7758296912977]
[null,null,null,null,null,null,null,null,null,null,null,null,null,null,null,null,null,null,null,null,null,null,null,null,null,null,null,null,null,null,null,null,null,null,null,null,null,null,null,null,545.8756647708002]
[null,null,null,null,null,null,null,null,null,null,null,null,null,null,null,null,null,null,null,null,null,null,null,null,null,null,null,null,null,null,null,null,null,null,null,null,null,null,null,null,595.36103834185178]
[null,null,null,null,null,null,null,null,null,null,null,null,null,null,null,null,null,null,null,null,null,null,null,null,null,null,null,null,null,null,null,null,null,null,null,null,null,null,null,null,129.23254478350401]
[null,null,null,null,null,null,null,null,null,null,null,null,null,null,null,null,null,null,null,null,null,null,null,null,null,null,null,null,null,null,null,null,null,null,null,null,null,null,null,null,132.82955567526272]
[null,null,null,null,null,null,null,null,null,null,null,null,null,null,null,null,null,null,null,null,null,null,null,null,null,null,null,null,null,null,null,null,null,null,null,null,null,null,null,null,98.259674070643399]
[null,null,null,null,null,null,null,null,null,null,null,null,null,null,null,null,null,null,null,null,null,null,null,null,null,null,null,null,null,null,null,null,null,null,null,null,null,null,null,null,168.85543399490007]
[null,null,null,null,null,null,null,null,null,null,null,null,null,null,null,null,null,null,null,null,null,null,null,null,null,null,null,null,null,null,null,null,null,null,null,null,null,null,null,null,370.57468840760123]
[null,null,null,null,null,null,null,null,null,null,null,null,null,null,null,null,null,null,null,null,null,null,null,null,null,null,null,null,null,null,null,null,null,null,null,null,null,null,null,null,102.86082990769914]
[null,null,null,null,null,null,null,null,null,null,null,null,null,null,null,null,null,null,null,null,null,null,null,null,null,null,null,null,null,null,null,null,null,null,null,null,null,null,null,null,171.36223528572219]
[null,null,null,null,null,null,null,null,null,null,null,null,null,null,null,null,null,null,null,null,null,null,null,null,null,null,null,null,null,null,null,null,null,null,null,null,null,null,null,null,372.04814150116351]
[null,null,null,null,null,null,null,null,null,null,null,null,null,null,null,null,null,null,null,null,null,null,null,null,null,null,null,null,null,null,null,null,null,null,null,null,null,null,null,null,68.246480213850162]
[null,null,null,null,null,null,null,null,null,null,null,null,null,null,null,null,null,null,null,null,null,null,null,null,null,null,null,null,null,null,null,null,null,null,null,null,null,null,null,null,140.14639865637852]
[null,null,null,null,null,null,null,null,null,null,null,null,null,null,null,null,null,null,null,null,null,null,null,null,null,null,null,null,null,null,null,null,null,null,null,null,null,null,null,null,363.49754814605973]
[null,null,null,null,null,null,null,null,null,null,null,null,null,null,null,null,null,null,null,null,null,null,null,null,null,null,null,null,null,null,null,null,null,null,null,null,null,null,null,null,186.03124947726928]
[null,null,null,null,null,null,null,null,null,null,null,null,null,null,null,null,null,null,null,null,null,null,null,null,null,null,null,null,null,null,null,null,null,null,null,null,null,null,null,null,436.55392991735181]
[null,null,null,null,null,null,null,null,null,null,null,null,null,null,null,null,null,null,null,null,null,null,null,null,null,null,null,null,null,null,null,null,null,null,null,null,null,null,null,null,73.997273365598829]
[null,null,null,null,null,null,null,null,null,null,null,null,null,null,null,null,null,null,null,null,null,null,null,null,null,null,null,null,null,null,null,null,null,null,null,null,null,null,null,null,143.06481633881094]
[null,null,null,null,null,null,null,null,null,null,null,null,null,null,null,null,null,null,null,null,null,null,null,null,null,null,null,null,null,null,null,null,null,null,null,null,null,null,null,null,365.02454415762531]
[null,null,null,null,null,null,null,null,null,null,null,null,null,null,null,null,null,null,null,null,null,null,null,null,null,null,null,null,null,null,null,null,null,null,null,null,null,null,null,null,187.61287694879488]
[null,null,null,null,null,null,null,null,null,null,null,null,null,null,null,null,null,null,null,null,null,null,null,null,null,null,null,null,null,null,null,null,null,null,null,null,null,null,null,null,437.31895869086054]
[null,null,null,null,null,null,null,null,null,null,null,null,null,null,null,null,null,null,null,null,null,null,null,null,null,null,null,null,null,null,null,null,null,null,null,null,null,null,null,null,129.84760500328997]
[null,null,null,null,null,null,null,null,null,null,null,null,null,null,null,null,null,null,null,null,null,null,null,null,null,null,null,null,null,null,null,null,null,null,null,null,null,null,null,null,272.29552801681189]
[null,null,null,null,null,null,null,null,null,null,null,null,null,null,null,null,null,null,null,null,null,null,null,null,null,null,null,null,null,null,null,null,null,null,null,null,null,null,null,null,133.31305740224204]
[null,null,null,null,null,null,null,null,null,null,null,null,null,null,null,null,null,null,null,null,null,null,null,null,null,null,null,null,null,null,null,null,null,null,null,null,null,null,null,null,273.7490792506743]
[null,null,null,null,null,null,null,null,null,null,null,null,null,null,null,null,null,null,null,null,null,null,null,null,null,null,null,null,null,null,null,null,null,null,null,null,null,null,null,null,98.853266464508408]
[null,null,null,null,null,null,null,null,null,null,null,null,null,null,null,null,null,null,null,null,null,null,null,null,null,null,null,null,null,null,null,null,null,null,null,null,null,null,null,null,264.6164584682262]
[null,null,null,null,null,null,null,null,null,null,null,null,null,null,null,null,null,null,null,null,null,null,null,null,null,null,null,null,null,null,null,null,null,null,null,null,null,null,null,null,169.08032127717439]
[null,null,null,null,null,null,null,null,null,null,null,null,null,null,null,null,null,null,null,null,null,null,null,null,null,null,null,null,null,null,null,null,null,null,null,null,null,null,null,null,377.12553478676176]
[null,null,null,null,null,null,null,null,null,null,null,null,null,null,null,null,null,null,null,null,null,null,null,null,null,null,null,null,null,null,null,null,null,null,null,null,null,null,null,null,408.51076112892014]
[null,null,null,null,null,null,null,null,null,null,null,null,null,null,null,null,null,null,null,null,null,null,null,null,null,null,null,null,null,null,null,null,null,null,null,null,null,null,null,null,103.3230293419723]
[null,null,null,null,null,null,null,null,null,null,null,null,null,null,null,null,null,null,null,null,null,null,null,null,null,null,null,null,null,null,null,null,null,null,null,null,null,null,null,null,266.20207083246424]
[null,null,null,null,null,null,null,null,null,null,null,null,null,null,null,null,null,null,null,null,null,null,null,null,null,null,null,null,null,null,null,null,null,null,null,null,null,null,null,null,171.55239516864336]
[null,null,null,null,null,null,null,null,null,null,null,null,null,null,null,null,null,null,null,null,null,null,null,null,null,null,null,null,null,null,null,null,null,null,null,null,null,null,null,null,377.78997492752029]
[null,null,null,null,null,null,null,null,null,null,null,null,null,null,null,null,null,null,null,null,null,null,null,null,null,null,null,null,null,null,null,null,null,null,null,null,null,null,null,null,409.29559164129785]
[null,null,null,null,null,null,null,null,null,null,null,null,null,null,null,null,null,null,null,null,null,null,null,null,null,null,null,null,null,null,null,null,null,null,null,null,null,null,null,null,483.00048235220822]
[null,null,null,null,null,null,null,null,null,null,null,null,null,null,null,null,null,null,null,null,null,null,null,null,null,null,null,null,null,null,null,null,null,null,null,null,null,null,null,null,68.810694272476624]
[null,null,null,null,null,null,null,null,null,null,null,null,null,null,null,null,null,null,null,null,null,null,null,null,null,null,null,null,null,null,null,null,null,null,null,null,null,null,null,null,256.90313249970364]
[null,null,null,null,null,null,null,null,null,null,null,null,null,null,null,null,null,null,null,null,null,null,null,null,null,null,null,null,null,null,null,null,null,null,null,null,null,null,null,null,140.36399424305785]
[null,null,null,null,null,null,null,null,null,null,null,null,null,null,null,null,null,null,null,null,null,null,null,null,null,null,null,null,null,null,null,null,null,null,null,null,null,null,null,null,370.0458923344068]
[null,null,null,null,null,null,null,null,null,null,null,null,null,null,null,null,null,null,null,null,null,null,null,null,null,null,null,null,null,null,null,null,null,null,null,null,null,null,null,null,404.92938069827727]
[null,null,null,null,null,null,null,null,null,null,null,null,null,null,null,null,null,null,null,null,null,null,null,null,null,null,null,null,null,null,null,null,null,null,null,null,null,null,null,null,186.13949663221061]
[null,null,null,null,null,null,null,null,null,null,null,null,null,null,null,null,null,null,null,null,null,null,null,null,null,null,null,null,null,null,null,null,null,null,null,null,null,null,null,null,439.86940728191206]
[null,null,null,null,null,null,null,null,null,null,null,null,null,null,null,null,null,null,null,null,null,null,null,null,null,null,null,null,null,null,null,null,null,null,null,null,null,null,null,null,479.26577502981627]
[null,null,null,null,null,null,null,null,null,null,null,null,null,null,null,null,null,null,null,null,null,null,null,null,null,null,null,null,null,null,null,null,null,null,null,null,null,null,null,null,74.433633641719098]
[null,null,null,null,null,null,null,null,null,null,null,null,null,null,null,null,null,null,null,null,null,null,null,null,null,null,null,null,null,null,null,null,null,null,null,null,null,null,null,null,258.62817495798777]
[null,null,null,null,null,null,null,null,null,null,null,null,null,null,null,null,null,null,null,null,null,null,null,null,null,null,null,null,null,null,null,null,null,null,null,null,null,null,null,null,143.24867584929081]
[null,null,null,null,null,null,null,null,null,null,null,null,null,null,null,null,null,null,null,null,null,null,null,null,null,null,null,null,null,null,null,null,null,null,null,null,null,null,null,null,370.77808460632673]
[null,null,null,null,null,null,null,null,null,null,null,null,null,null,null,null,null,null,null,null,null,null,null,null,null,null,null,null,null,null,null,null,null,null,null,null,null,null,null,null,405.74371124360965]
[null,null,null,null,null,null,null,null,null,null,null,null,null,null,null,null,null,null,null,null,null,null,null,null,null,null,null,null,null,null,null,null,null,null,null,null,null,null,null,null,187.70702194405882]
[null,null,null,null,null,null,null,null,null,null,null,null,null,null,null,null,null,null,null,null,null,null,null,null,null,null,null,null,null,null,null,null,null,null,null,null,null,null,null,null,440.24467882312882]
[null,null,null,null,null,null,null,null,null,null,null,null,null,null,null,null,null,null,null,null,null,null,null,null,null,null,null,null,null,null,null,null,null,null,null,null,null,null,null,null,479.6213481318681]
[null,null,null,null,null,null,null,null,null,null,null,null,null,null,null,null,null,null,null,null,null,null,null,null,null,null,null,null,null,null,null,null,null,null,null,null,null,null,null,null,120.88698547504859]
[null,null,null,null,null,null,null,null,null,null,null,null,null,null,null,null,null,null,null,null,null,null,null,null,null,null,null,null,null,null,null,null,null,null,null,null,null,null,null,null,271.46129730621874]
[null,null,null,null,null,null,null,null,null,null,null,null,null,null,null,null,null,null,null,null,null,null,null,null,null,null,null,null,null,null,null,null,null,null,null,null,null,null,null,null,296.8868448211453]
[null,null,null,null,null,null,null,null,null,null,null,null,null,null,null,null,null,null,null,null,null,null,null,null,null,null,null,null,null,null,null,null,null,null,null,null,null,null,null,null,124.51302891562446]
[null,null,null,null,null,null,null,null,null,null,null,null,null,null,null,null,null,null,null,null,null,null,null,null,null,null,null,null,null,null,null,null,null,null,null,null,null,null,null,null,272.4822652956617]
[null,null,null,null,null,null,null,null,null,null,null,null,null,null,null,null,null,null,null,null,null,null,null,null,null,null,null,null,null,null,null,null,null,null,null,null,null,null,null,null,297.66452996243743]
[null,null,null,null,null,null,null,null,null,null,null,null,null,null,null,null,null,null,null,null,null,null,null,null,null,null,null,null,null,null,null,null,null,null,null,null,null,null,null,null,88.518878524163256]
[null,null,null,null,null,null,null,null,null,null,null,null,null,null,null,null,null,null,null,null,null,null,null,null,null,null,null,null,null,null,null,null,null,null,null,null,null,null,null,null,263.25750730925256]
[null,null,null,null,null,null,null,null,null,null,null,null,null,null,null,null,null,null,null,null,null,null,null,null,null,null,null,null,null,null,null,null,null,null,null,null,null,null,null,null,292.70852573105526]
[null,null,null,null,null,null,null,null,null,null,null,null,null,null,null,null,null,null,null,null,null,null,null,null,null,null,null,null,null,null,null,null,null,null,null,null,null,null,null,null,155.90105023087904]
[null,null,null,null,null,null,null,null,null,null,null,null,null,null,null,null,null,null,null,null,null,null,null,null,null,null,null,null,null,null,null,null,null,null,null,null,null,null,null,null,373.37021461647032]
[null,null,null,null,null,null,null,null,null,null,null,null,null,null,null,null,null,null,null,null,null,null,null,null,null,null,null,null,null,null,null,null,null,null,null,null,null,null,null,null,409.65095765431329]
[null,null,null,null,null,null,null,null,null,null,null,null,null,null,null,null,null,null,null,null,null,null,null,null,null,null,null,null,null,null,null,null,null,null,null,null,null,null,null,null,93.241329951374922]
[null,null,null,null,null,null,null,null,null,null,null,null,null,null,null,null,null,null,null,null,null,null,null,null,null,null,null,null,null,null,null,null,null,null,null,null,null,null,null,null,264.41619205637181]
[null,null,null,null,null,null,null,null,null,null,null,null,null,null,null,null,null,null,null,null,null,null,null,null,null,null,null,null,null,null,null,null,null,null,null,null,null,null,null,null,293.5474654576924]
[null,null,null,null,null,null,null,null,null,null,null,null,null,null,null,null,null,null,null,null,null,null,null,null,null,null,null,null,null,null,null,null,null,null,null,null,null,null,null,null,158.49132784666267]
[null,null,null,null,null,null,null,null,null,null,null,null,null,null,null,null,null,null,null,null,null,null,null,null,null,null,null,null,null,null,null,null,null,null,null,null,null,null,null,null,373.94169693952489]
[null,null,null,null,null,null,null,null,null,null,null,null,null,null,null,null,null,null,null,null,null,null,null,null,null,null,null,null,null,null,null,null,null,null,null,null,null,null,null,null,409.97334723883591]
[null,null,null,null,null,null,null,null,null,null,null,null,null,null,null,null,null,null,null,null,null,null,null,null,null,null,null,null,null,null,null,null,null,null,null,null,null,null,null,null,481.86143236714048]
[null,null,null,null,null,null,null,null,null,null,null,null,null,null,null,null,null,null,null,null,null,null,null,null,null,null,null,null,null,null,null,null,null,null,null,null,null,null,null,null,57.385499133125201]
[null,null,null,null,null,null,null,null,null,null,null,null,null,null,null,null,null,null,null,null,null,null,null,null,null,null,null,null,null,null,null,null,null,null,null,null,null,null,null,null,255.02650682029883]
[null,null,null,null,null,null,null,null,null,null,null,null,null,null,null,null,null,null,null,null,null,null,null,null,null,null,null,null,null,null,null,null,null,null,null,null,null,null,null,null,288.52368621475671]
[null,null,null,null,null,null,null,null,null,null,null,null,null,null,null,null,null,null,null,null,null,null,null,null,null,null,null,null,null,null,null,null,null,null,null,null,null,null,null,null,126.04844759417888]
[null,null,null,null,null,null,null,null,null,null,null,null,null,null,null,null,null,null,null,null,null,null,null,null,null,null,null,null,null,null,null,null,null,null,null,null,null,null,null,null,365.81047481847116]
[null,null,null,null,null,null,null,null,null,null,null,null,null,null,null,null,null,null,null,null,null,null,null,null,null,null,null,null,null,null,null,null,null,null,null,null,null,null,null,null,405.82402016354968]
[null,null,null,null,null,null,null,null,null,null,null,null,null,null,null,null,null,null,null,null,null,null,null,null,null,null,null,null,null,null,null,null,null,null,null,null,null,null,null,null,169.82386025213265]
[null,null,null,null,null,null,null,null,null,null,null,null,null,null,null,null,null,null,null,null,null,null,null,null,null,null,null,null,null,null,null,null,null,null,null,null,null,null,null,null,434.7180372694317]
[null,null,null,null,null,null,null,null,null,null,null,null,null,null,null,null,null,null,null,null,null,null,null,null,null,null,null,null,null,null,null,null,null,null,null,null,null,null,null,null,478.0951211394418]
[null,null,null,null,null,null,null,null,null,null,null,null,null,null,null,null,null,null,null,null,null,null,null,null,null,null,null,null,null,null,null,null,null,null,null,null,null,null,null,null,63.364746137605309]
[null,null,null,null,null,null,null,null,null,null,null,null,null,null,null,null,null,null,null,null,null,null,null,null,null,null,null,null,null,null,null,null,null,null,null,null,null,null,null,null,256.34138575600025]
[null,null,null,null,null,null,null,null,null,null,null,null,null,null,null,null,null,null,null,null,null,null,null,null,null,null,null,null,null,null,null,null,null,null,null,null,null,null,null,null,289.42939923428662]
[null,null,null,null,null,null,null,null,null,null,null,null,null,null,null,null,null,null,null,null,null,null,null,null,null,null,null,null,null,null,null,null,null,null,null,null,null,null,null,null,129.06086038197071]
[null,null,null,null,null,null,null,null,null,null,null,null,null,null,null,null,null,null,null,null,null,null,null,null,null,null,null,null,null,null,null,null,null,null,null,null,null,null,null,null,366.44610829347164]
[null,null,null,null,null,null,null,null,null,null,null,null,null,null,null,null,null,null,null,null,null,null,null,null,null,null,null,null,null,null,null,null,null,null,null,null,null,null,null,null,406.17740991059009]
[null,null,null,null,null,null,null,null,null,null,null,null,null,null,null,null,null,null,null,null,null,null,null,null,null,null,null,null,null,null,null,null,null,null,null,null,null,null,null,null,171.42308347256775]
[null,null,null,null,null,null,null,null,null,null,null,null,null,null,null,null,null,null,null,null,null,null,null,null,null,null,null,null,null,null,null,null,null,null,null,null,null,null,null,null,435.06224426955532]
[null,null,null,null,null,null,null,null,null,null,null,null,null,null,null,null,null,null,null,null,null,null,null,null,null,null,null,null,null,null,null,null,null,null,null,null,null,null,null,null,478.24741150809717]
[null,null,null,null,null,null,null,null,null,null,null,null,null,null,null,null,null,null,null,null,null,null,null,null,null,null,null,null,null,null,null,null,null,null,null,null,null,null,null,null,129.23254480607233]
[null,null,null,null,null,null,null,null,null,null,null,null,null,null,null,null,null,null,null,null,null,null,null,null,null,null,null,null,null,null,null,null,null,null,null,null,null,null,null,null,132.82955567526272]
[null,null,null,null,null,null,null,null,null,null,null,null,null,null,null,null,null,null,null,null,null,null,null,null,null,null,null,null,null,null,null,null,null,null,null,null,null,null,null,null,98.259674070643399]
[null,null,null,null,null,null,null,null,null,null,null,null,null,null,null,null,null,null,null,null,null,null,null,null,null,null,null,null,null,null,null,null,null,null,null,null,null,null,null,null,168.85543399490007]
[null,null,null,null,null,null,null,null,null,null,null,null,null,null,null,null,null,null,null,null,null,null,null,null,null,null,null,null,null,null,null,null,null,null,null,null,null,null,null,null,370.57468840760123]
[null,null,null,null,null,null,null,null,null,null,null,null,null,null,null,null,null,null,null,null,null,null,null,null,null,null,null,null,null,null,null,null,null,null,null,null,null,null,null,null,102.86082990769914]
[null,null,null,null,null,null,null,null,null,null,null,null,null,null,null,null,null,null,null,null,null,null,null,null,null,null,null,null,null,null,null,null,null,null,null,null,null,null,null,null,171.36223528572219]
[null,null,null,null,null,null,null,null,null,null,null,null,null,null,null,null,null,null,null,null,null,null,null,null,null,null,null,null,null,null,null,null,null,null,null,null,null,null,null,null,372.04814150116351]
[null,null,null,null,null,null,null,null,null,null,null,null,null,null,null,null,null,null,null,null,null,null,null,null,null,null,null,null,null,null,null,null,null,null,null,null,null,null,null,null,215.72842230255802]
[null,null,null,null,null,null,null,null,null,null,null,null,null,null,null,null,null,null,null,null,null,null,null,null,null,null,null,null,null,null,null,null,null,null,null,null,null,null,null,null,444.01727899818343]
[null,null,null,null,null,null,null,null,null,null,null,null,null,null,null,null,null,null,null,null,null,null,null,null,null,null,null,null,null,null,null,null,null,null,null,null,null,null,null,null,68.24648045037361]
[null,null,null,null,null,null,null,null,null,null,null,null,null,null,null,null,null,null,null,null,null,null,null,null,null,null,null,null,null,null,null,null,null,null,null,null,null,null,null,null,140.14639865637852]
[null,null,null,null,null,null,null,null,null,null,null,null,null,null,null,null,null,null,null,null,null,null,null,null,null,null,null,null,null,null,null,null,null,null,null,null,null,null,null,null,363.49754814605973]
[null,null,null,null,null,null,null,null,null,null,null,null,null,null,null,null,null,null,null,null,null,null,null,null,null,null,null,null,null,null,null,null,null,null,null,null,null,null,null,null,186.03124947726928]
[null,null,null,null,null,null,null,null,null,null,null,null,null,null,null,null,null,null,null,null,null,null,null,null,null,null,null,null,null,null,null,null,null,null,null,null,null,null,null,null,436.55392991735181]
[null,null,null,null,null,null,null,null,null,null,null,null,null,null,null,null,null,null,null,null,null,null,null,null,null,null,null,null,null,null,null,null,null,null,null,null,null,null,null,null,73.997273365598829]
[null,null,null,null,null,null,null,null,null,null,null,null,null,null,null,null,null,null,null,null,null,null,null,null,null,null,null,null,null,null,null,null,null,null,null,null,null,null,null,null,143.06481633881094]
[null,null,null,null,null,null,null,null,null,null,null,null,null,null,null,null,null,null,null,null,null,null,null,null,null,null,null,null,null,null,null,null,null,null,null,null,null,null,null,null,365.02454415762531]
[null,null,null,null,null,null,null,null,null,null,null,null,null,null,null,null,null,null,null,null,null,null,null,null,null,null,null,null,null,null,null,null,null,null,null,null,null,null,null,null,187.61287694879488]
[null,null,null,null,null,null,null,null,null,null,null,null,null,null,null,null,null,null,null,null,null,null,null,null,null,null,null,null,null,null,null,null,null,null,null,null,null,null,null,null,437.31895869086054]
[null,null,null,null,null,null,null,null,null,null,null,null,null,null,null,null,null,null,null,null,null,null,null,null,null,null,null,null,null,null,null,null,null,null,null,null,null,null,null,null,129.84760500328997]
[null,null,null,null,null,null,null,null,null,null,null,null,null,null,null,null,null,null,null,null,null,null,null,null,null,null,null,null,null,null,null,null,null,null,null,null,null,null,null,null,272.29552801681189]
[null,null,null,null,null,null,null,null,null,null,null,null,null,null,null,null,null,null,null,null,null,null,null,null,null,null,null,null,null,null,null,null,null,null,null,null,null,null,null,null,133.31305740224204]
[null,null,null,null,null,null,null,null,null,null,null,null,null,null,null,null,null,null,null,null,null,null,null,null,null,null,null,null,null,null,null,null,null,null,null,null,null,null,null,null,273.7490792506743]
[null,null,null,null,null,null,null,null,null,null,null,null,null,null,null,null,null,null,null,null,null,null,null,null,null,null,null,null,null,null,null,null,null,null,null,null,null,null,null,null,98.853266464508408]
[null,null,null,null,null,null,null,null,null,null,null,null,null,null,null,null,null,null,null,null,null,null,null,null,null,null,null,null,null,null,null,null,null,null,null,null,null,null,null,null,264.6164584682262]
[null,null,null,null,null,null,null,null,null,null,null,null,null,null,null,null,null,null,null,null,null,null,null,null,null,null,null,null,null,null,null,null,null,null,null,null,null,null,null,null,169.08032127717439]
[null,null,null,null,null,null,null,null,null,null,null,null,null,null,null,null,null,null,null,null,null,null,null,null,null,null,null,null,null,null,null,null,null,null,null,null,null,null,null,null,377.12553478676176]
[null,null,null,null,null,null,null,null,null,null,null,null,null,null,null,null,null,null,null,null,null,null,null,null,null,null,null,null,null,null,null,null,null,null,null,null,null,null,null,null,408.51076112892014]
[null,null,null,null,null,null,null,null,null,null,null,null,null,null,null,null,null,null,null,null,null,null,null,null,null,null,null,null,null,null,null,null,null,null,null,null,null,null,null,null,103.3230293419723]
[null,null,null,null,null,null,null,null,null,null,null,null,null,null,null,null,null,null,null,null,null,null,null,null,null,null,null,null,null,null,null,null,null,null,null,null,null,null,null,null,266.20207083246424]
[null,null,null,null,null,null,null,null,null,null,null,null,null,null,null,null,null,null,null,null,null,null,null,null,null,null,null,null,null,null,null,null,null,null,null,null,null,null,null,null,171.55239516864336]
[null,null,null,null,null,null,null,null,null,null,null,null,null,null,null,null,null,null,null,null,null,null,null,null,null,null,null,null,null,null,null,null,null,null,null,null,null,null,null,null,377.78997492752029]
[null,null,null,null,null,null,null,null,null,null,null,null,null,null,null,null,null,null,null,null,null,null,null,null,null,null,null,null,null,null,null,null,null,null,null,null,null,null,null,null,409.29559164129785]
[null,null,null,null,null,null,null,null,null,null,null,null,null,null,null,null,null,null,null,null,null,null,null,null,null,null,null,null,null,null,null,null,null,null,null,null,null,null,null,null,215.82451958612961]
[null,null,null,null,null,null,null,null,null,null,null,null,null,null,null,null,null,null,null,null,null,null,null,null,null,null,null,null,null,null,null,null,null,null,null,null,null,null,null,null,446.93777607412767]
[null,null,null,null,null,null,null,null,null,null,null,null,null,null,null,null,null,null,null,null,null,null,null,null,null,null,null,null,null,null,null,null,null,null,null,null,null,null,null,null,483.00047934255247]
[null,null,null,null,null,null,null,null,null,null,null,null,null,null,null,null,null,null,null,null,null,null,null,null,null,null,null,null,null,null,null,null,null,null,null,null,null,null,null,null,68.810694272476724]
[null,null,null,null,null,null,null,null,null,null,null,null,null,null,null,null,null,null,null,null,null,null,null,null,null,null,null,null,null,null,null,null,null,null,null,null,null,null,null,null,256.90313249970364]
[null,null,null,null,null,null,null,null,null,null,null,null,null,null,null,null,null,null,null,null,null,null,null,null,null,null,null,null,null,null,null,null,null,null,null,null,null,null,null,null,140.36399424305785]
[null,null,null,null,null,null,null,null,null,null,null,null,null,null,null,null,null,null,null,null,null,null,null,null,null,null,null,null,null,null,null,null,null,null,null,null,null,null,null,null,370.0458923344068]
[null,null,null,null,null,null,null,null,null,null,null,null,null,null,null,null,null,null,null,null,null,null,null,null,null,null,null,null,null,null,null,null,null,null,null,null,null,null,null,null,404.92938069827727]
[null,null,null,null,null,null,null,null,null,null,null,null,null,null,null,null,null,null,null,null,null,null,null,null,null,null,null,null,null,null,null,null,null,null,null,null,null,null,null,null,186.13949663221061]
[null,null,null,null,null,null,null,null,null,null,null,null,null,null,null,null,null,null,null,null,null,null,null,null,null,null,null,null,null,null,null,null,null,null,null,null,null,null,null,null,439.86940728191206]
[null,null,null,null,null,null,null,null,null,null,null,null,null,null,null,null,null,null,null,null,null,null,null,null,null,null,null,null,null,null,null,null,null,null,null,null,null,null,null,null,479.26577502981627]
[null,null,null,null,null,null,null,null,null,null,null,null,null,null,null,null,null,null,null,null,null,null,null,null,null,null,null,null,null,null,null,null,null,null,null,null,null,null,null,null,74.433633641719098]
[null,null,null,null,null,null,null,null,null,null,null,null,null,null,null,null,null,null,null,null,null,null,null,null,null,null,null,null,null,null,null,null,null,null,null,null,null,null,null,null,258.62817495798777]
[null,null,null,null,null,null,null,null,null,null,null,null,null,null,null,null,null,null,null,null,null,null,null,null,null,null,null,null,null,null,null,null,null,null,null,null,null,null,null,null,143.24867584929081]
[null,null,null,null,null,null,null,null,null,null,null,null,null,null,null,null,null,null,null,null,null,null,null,null,null,null,null,null,null,null,null,null,null,null,null,null,null,null,null,null,370.77808460632673]
[null,null,null,null,null,null,null,null,null,null,null,null,null,null,null,null,null,null,null,null,null,null,null,null,null,null,null,null,null,null,null,null,null,null,null,null,null,null,null,null,405.74371124360965]
[null,null,null,null,null,null,null,null,null,null,null,null,null,null,null,null,null,null,null,null,null,null,null,null,null,null,null,null,null,null,null,null,null,null,null,null,null,null,null,null,187.70702194405882]
[null,null,null,null,null,null,null,null,null,null,null,null,null,null,null,null,null,null,null,null,null,null,null,null,null,null,null,null,null,null,null,null,null,null,null,null,null,null,null,null,440.24467882312882]
[null,null,null,null,null,null,null,null,null,null,null,null,null,null,null,null,null,null,null,null,null,null,null,null,null,null,null,null,null,null,null,null,null,null,null,null,null,null,null,null,479.6213481318681]
[null,null,null,null,null,null,null,null,null,null,null,null,null,null,null,null,null,null,null,null,null,null,null,null,null,null,null,null,null,null,null,null,null,null,null,null,null,null,null,null,120.88698547504859]
[null,null,null,null,null,null,null,null,null,null,null,null,null,null,null,null,null,null,null,null,null,null,null,null,null,null,null,null,null,null,null,null,null,null,null,null,null,null,null,null,271.46129730621874]
[null,null,null,null,null,null,null,null,null,null,null,null,null,null,null,null,null,null,null,null,null,null,null,null,null,null,null,null,null,null,null,null,null,null,null,null,null,null,null,null,296.8868448211453]
[null,null,null,null,null,null,null,null,null,null,null,null,null,null,null,null,null,null,null,null,null,null,null,null,null,null,null,null,null,null,null,null,null,null,null,null,null,null,null,null,124.51302891562446]
[null,null,null,null,null,null,null,null,null,null,null,null,null,null,null,null,null,null,null,null,null,null,null,null,null,null,null,null,null,null,null,null,null,null,null,null,null,null,null,null,272.4822652956617]
[null,null,null,null,null,null,null,null,null,null,null,null,null,null,null,null,null,null,null,null,null,null,null,null,null,null,null,null,null,null,null,null,null,null,null,null,null,null,null,null,297.66452996243743]
[null,null,null,null,null,null,null,null,null,null,null,null,null,null,null,null,null,null,null,null,null,null,null,null,null,null,null,null,null,null,null,null,null,null,null,null,null,null,null,null,88.518878524163256]
[null,null,null,null,null,null,null,null,null,null,null,null,null,null,null,null,null,null,null,null,null,null,null,null,null,null,null,null,null,null,null,null,null,null,null,null,null,null,null,null,263.25750730925256]
[null,null,null,null,null,null,null,null,null,null,null,null,null,null,null,null,null,null,null,null,null,null,null,null,null,null,null,null,null,null,null,null,null,null,null,null,null,null,null,null,292.70852573105526]
[null,null,null,null,null,null,null,null,null,null,null,null,null,null,null,null,null,null,null,null,null,null,null,null,null,null,null,null,null,null,null,null,null,null,null,null,null,null,null,null,155.90105023087904]
[null,null,null,null,null,null,null,null,null,null,null,null,null,null,null,null,null,null,null,null,null,null,null,null,null,null,null,null,null,null,null,null,null,null,null,null,null,null,null,null,373.37021461647032]
[null,null,null,null,null,null,null,null,null,null,null,null,null,null,null,null,null,null,null,null,null,null,null,null,null,null,null,null,null,null,null,null,null,null,null,null,null,null,null,null,409.65095765431329]
[null,null,null,null,null,null,null,null,null,null,null,null,null,null,null,null,null,null,null,null,null,null,null,null,null,null,null,null,null,null,null,null,null,null,null,null,null,null,null,null,93.241329951374922]
[null,null,null,null,null,null,null,null,null,null,null,null,null,null,null,null,null,null,null,null,null,null,null,null,null,null,null,null,null,null,null,null,null,null,null,null,null,null,null,null,264.41619205637181]
[null,null,null,null,null,null,null,null,null,null,null,null,null,null,null,null,null,null,null,null,null,null,null,null,null,null,null,null,null,null,null,null,null,null,null,null,null,null,null,null,293.5474654576924]
[null,null,null,null,null,null,null,null,null,null,null,null,null,null,null,null,null,null,null,null,null,null,null,null,null,null,null,null,null,null,null,null,null,null,null,null,null,null,null,null,158.49132784666267]
[null,null,null,null,null,null,null,null,null,null,null,null,null,null,null,null,null,null,null,null,null,null,null,null,null,null,null,null,null,null,null,null,null,null,null,null,null,null,null,null,373.94169693952489]
[null,null,null,null,null,null,null,null,null,null,null,null,null,null,null,null,null,null,null,null,null,null,null,null,null,null,null,null,null,null,null,null,null,null,null,null,null,null,null,null,409.97334723883591]
[null,null,null,null,null,null,null,null,null,null,null,null,null,null,null,null,null,null,null,null,null,null,null,null,null,null,null,null,null,null,null,null,null,null,null,null,null,null,null,null,200.81826105044411]
[null,null,null,null,null,null,null,null,null,null,null,null,null,null,null,null,null,null,null,null,null,null,null,null,null,null,null,null,null,null,null,null,null,null,null,null,null,null,null,null,442.21668434885089]
[null,null,null,null,null,null,null,null,null,null,null,null,null,null,null,null,null,null,null,null,null,null,null,null,null,null,null,null,null,null,null,null,null,null,null,null,null,null,null,null,481.86142900800843]
[null,null,null,null,null,null,null,null,null,null,null,null,null,null,null,null,null,null,null,null,null,null,null,null,null,null,null,null,null,null,null,null,null,null,null,null,null,null,null,null,57.385499133127141]
[null,null,null,null,null,null,null,null,null,null,null,null,null,null,null,null,null,null,null,null,null,null,null,null,null,null,null,null,null,null,null,null,null,null,null,null,null,null,null,null,255.02650682029883]
[null,null,null,null,null,null,null,null,null,null,null,null,null,null,null,null,null,null,null,null,null,null,null,null,null,null,null,null,null,null,null,null,null,null,null,null,null,null,null,null,288.52368621475671]
[null,null,null,null,null,null,null,null,null,null,null,null,null,null,null,null,null,null,null,null,null,null,null,null,null,null,null,null,null,null,null,null,null,null,null,null,null,null,null,null,126.04844759417888]
[null,null,null,null,null,null,null,null,null,null,null,null,null,null,null,null,null,null,null,null,null,null,null,null,null,null,null,null,null,null,null,null,null,null,null,null,null,null,null,null,365.81047481847116]
[null,null,null,null,null,null,null,null,null,null,null,null,null,null,null,null,null,null,null,null,null,null,null,null,null,null,null,null,null,null,null,null,null,null,null,null,null,null,null,null,405.82402016354968]
[null,null,null,null,null,null,null,null,null,null,null,null,null,null,null,null,null,null,null,null,null,null,null,null,null,null,null,null,null,null,null,null,null,null,null,null,null,null,null,null,169.82386025213265]
[null,null,null,null,null,null,null,null,null,null,null,null,null,null,null,null,null,null,null,null,null,null,null,null,null,null,null,null,null,null,null,null,null,null,null,null,null,null,null,null,434.7180372694317]
[null,null,null,null,null,null,null,null,null,null,null,null,null,null,null,null,null,null,null,null,null,null,null,null,null,null,null,null,null,null,null,null,null,null,null,null,null,null,null,null,478.0951211394418]
[null,null,null,null,null,null,null,null,null,null,null,null,null,null,null,null,null,null,null,null,null,null,null,null,null,null,null,null,null,null,null,null,null,null,null,null,null,null,null,null,63.364746137605309]
[null,null,null,null,null,null,null,null,null,null,null,null,null,null,null,null,null,null,null,null,null,null,null,null,null,null,null,null,null,null,null,null,null,null,null,null,null,null,null,null,256.34138575600025]
[null,null,null,null,null,null,null,null,null,null,null,null,null,null,null,null,null,null,null,null,null,null,null,null,null,null,null,null,null,null,null,null,null,null,null,null,null,null,null,null,289.42939923428662]
[null,null,null,null,null,null,null,null,null,null,null,null,null,null,null,null,null,null,null,null,null,null,null,null,null,null,null,null,null,null,null,null,null,null,null,null,null,null,null,null,129.06086038197071]
[null,null,null,null,null,null,null,null,null,null,null,null,null,null,null,null,null,null,null,null,null,null,null,null,null,null,null,null,null,null,null,null,null,null,null,null,null,null,null,null,366.44610829347164]
[null,null,null,null,null,null,null,null,null,null,null,null,null,null,null,null,null,null,null,null,null,null,null,null,null,null,null,null,null,null,null,null,null,null,null,null,null,null,null,null,406.17740991059009]
[null,null,null,null,null,null,null,null,null,null,null,null,null,null,null,null,null,null,null,null,null,null,null,null,null,null,null,null,null,null,null,null,null,null,null,null,null,null,null,null,171.42308347256775]
[null,null,null,null,null,null,null,null,null,null,null,null,null,null,null,null,null,null,null,null,null,null,null,null,null,null,null,null,null,null,null,null,null,null,null,null,null,null,null,null,435.06224426955532]
[null,null,null,null,null,null,null,null,null,null,null,null,null,null,null,null,null,null,null,null,null,null,null,null,null,null,null,null,null,null,null,null,null,null,null,null,null,null,null,null,478.24741150809717]
[null,null,null,null,null,null,null,null,null,null,null,null,null,null,null,null,null,null,null,null,null,null,null,null,null,null,null,null,null,null,null,null,null,null,null,null,null,null,null,null,100.61202007857212]
[null,null,null,null,null,null,null,null,null,null,null,null,null,null,null,null,null,null,null,null,null,null,null,null,null,null,null,null,null,null,null,null,null,null,null,null,null,null,null,null,104.36711780507704]
[null,null,null,null,null,null,null,null,null,null,null,null,null,null,null,null,null,null,null,null,null,null,null,null,null,null,null,null,null,null,null,null,null,null,null,null,null,null,null,null,167.595762969139]
[null,null,null,null,null,null,null,null,null,null,null,null,null,null,null,null,null,null,null,null,null,null,null,null,null,null,null,null,null,null,null,null,null,null,null,null,null,null,null,null,317.46056396361274]
[null,null,null,null,null,null,null,null,null,null,null,null,null,null,null,null,null,null,null,null,null,null,null,null,null,null,null,null,null,null,null,null,null,null,null,null,null,null,null,null,70.493972647745721]
[null,null,null,null,null,null,null,null,null,null,null,null,null,null,null,null,null,null,null,null,null,null,null,null,null,null,null,null,null,null,null,null,null,null,null,null,null,null,null,null,136.85247837808163]
[null,null,null,null,null,null,null,null,null,null,null,null,null,null,null,null,null,null,null,null,null,null,null,null,null,null,null,null,null,null,null,null,null,null,null,null,null,null,null,null,308.66278068003942]
[null,null,null,null,null,null,null,null,null,null,null,null,null,null,null,null,null,null,null,null,null,null,null,null,null,null,null,null,null,null,null,null,null,null,null,null,null,null,null,null,179.24588587898731]
[null,null,null,null,null,null,null,null,null,null,null,null,null,null,null,null,null,null,null,null,null,null,null,null,null,null,null,null,null,null,null,null,null,null,null,null,null,null,null,null,379.59932571432995]
[null,null,null,null,null,null,null,null,null,null,null,null,null,null,null,null,null,null,null,null,null,null,null,null,null,null,null,null,null,null,null,null,null,null,null,null,null,null,null,null,75.411094205469368]
[null,null,null,null,null,null,null,null,null,null,null,null,null,null,null,null,null,null,null,null,null,null,null,null,null,null,null,null,null,null,null,null,null,null,null,null,null,null,null,null,139.38197974407257]
[null,null,null,null,null,null,null,null,null,null,null,null,null,null,null,null,null,null,null,null,null,null,null,null,null,null,null,null,null,null,null,null,null,null,null,null,null,null,null,null,310.36094667380854]
[null,null,null,null,null,null,null,null,null,null,null,null,null,null,null,null,null,null,null,null,null,null,null,null,null,null,null,null,null,null,null,null,null,null,null,null,null,null,null,null,180.5719849345619]
[null,null,null,null,null,null,null,null,null,null,null,null,null,null,null,null,null,null,null,null,null,null,null,null,null,null,null,null,null,null,null,null,null,null,null,null,null,null,null,null,380.40772332658446]
[null,null,null,null,null,null,null,null,null,null,null,null,null,null,null,null,null,null,null,null,null,null,null,null,null,null,null,null,null,null,null,null,null,null,null,null,null,null,null,null,41.780199261854101]
[null,null,null,null,null,null,null,null,null,null,null,null,null,null,null,null,null,null,null,null,null,null,null,null,null,null,null,null,null,null,null,null,null,null,null,null,null,null,null,null,109.14567167132888]
[null,null,null,null,null,null,null,null,null,null,null,null,null,null,null,null,null,null,null,null,null,null,null,null,null,null,null,null,null,null,null,null,null,null,null,null,null,null,null,null,301.48034518973208]
[null,null,null,null,null,null,null,null,null,null,null,null,null,null,null,null,null,null,null,null,null,null,null,null,null,null,null,null,null,null,null,null,null,null,null,null,null,null,null,null,151.6207509387836]
[null,null,null,null,null,null,null,null,null,null,null,null,null,null,null,null,null,null,null,null,null,null,null,null,null,null,null,null,null,null,null,null,null,null,null,null,null,null,null,null,372.74483160555468]
[null,null,null,null,null,null,null,null,null,null,null,null,null,null,null,null,null,null,null,null,null,null,null,null,null,null,null,null,null,null,null,null,null,null,null,null,null,null,null,null,47.995564808084247]
[null,null,null,null,null,null,null,null,null,null,null,null,null,null,null,null,null,null,null,null,null,null,null,null,null,null,null,null,null,null,null,null,null,null,null,null,null,null,null,null,112.06664995327429]
[null,null,null,null,null,null,null,null,null,null,null,null,null,null,null,null,null,null,null,null,null,null,null,null,null,null,null,null,null,null,null,null,null,null,null,null,null,null,null,null,303.24935298565384]
[null,null,null,null,null,null,null,null,null,null,null,null,null,null,null,null,null,null,null,null,null,null,null,null,null,null,null,null,null,null,null,null,null,null,null,null,null,null,null,null,153.06204231217106]
[null,null,null,null,null,null,null,null,null,null,null,null,null,null,null,null,null,null,null,null,null,null,null,null,null,null,null,null,null,null,null,null,null,null,null,null,null,null,null,null,373.59865441878736]
[null,null,null,null,null,null,null,null,null,null,null,null,null,null,null,null,null,null,null,null,null,null,null,null,null,null,null,null,null,null,null,null,null,null,null,null,null,null,null,null,101.27851170856081]
[null,null,null,null,null,null,null,null,null,null,null,null,null,null,null,null,null,null,null,null,null,null,null,null,null,null,null,null,null,null,null,null,null,null,null,null,null,null,null,null,215.35917254674766]
[null,null,null,null,null,null,null,null,null,null,null,null,null,null,null,null,null,null,null,null,null,null,null,null,null,null,null,null,null,null,null,null,null,null,null,null,null,null,null,null,104.88827755420297]
[null,null,null,null,null,null,null,null,null,null,null,null,null,null,null,null,null,null,null,null,null,null,null,null,null,null,null,null,null,null,null,null,null,null,null,null,null,null,null,null,217.03691831144235]
[null,null,null,null,null,null,null,null,null,null,null,null,null,null,null,null,null,null,null,null,null,null,null,null,null,null,null,null,null,null,null,null,null,null,null,null,null,null,null,null,167.80692416101741]
[null,null,null,null,null,null,null,null,null,null,null,null,null,null,null,null,null,null,null,null,null,null,null,null,null,null,null,null,null,null,null,null,null,null,null,null,null,null,null,null,324.05568896878458]
[null,null,null,null,null,null,null,null,null,null,null,null,null,null,null,null,null,null,null,null,null,null,null,null,null,null,null,null,null,null,null,null,null,null,null,null,null,null,null,null,347.58655751163286]
[null,null,null,null,null,null,null,null,null,null,null,null,null,null,null,null,null,null,null,null,null,null,null,null,null,null,null,null,null,null,null,null,null,null,null,null,null,null,null,null,71.127602930591962]
[null,null,null,null,null,null,null,null,null,null,null,null,null,null,null,null,null,null,null,null,null,null,null,null,null,null,null,null,null,null,null,null,null,null,null,null,null,null,null,null,207.58337029490966]
[null,null,null,null,null,null,null,null,null,null,null,null,null,null,null,null,null,null,null,null,null,null,null,null,null,null,null,null,null,null,null,null,null,null,null,null,null,null,null,null,137.09366793758358]
[null,null,null,null,null,null,null,null,null,null,null,null,null,null,null,null,null,null,null,null,null,null,null,null,null,null,null,null,null,null,null,null,null,null,null,null,null,null,null,null,316.20666769503879]
[null,null,null,null,null,null,null,null,null,null,null,null,null,null,null,null,null,null,null,null,null,null,null,null,null,null,null,null,null,null,null,null,null,null,null,null,null,null,null,null,343.05802014411211]
[null,null,null,null,null,null,null,null,null,null,null,null,null,null,null,null,null,null,null,null,null,null,null,null,null,null,null,null,null,null,null,null,null,null,null,null,null,null,null,null,179.36656195107787]
[null,null,null,null,null,null,null,null,null,null,null,null,null,null,null,null,null,null,null,null,null,null,null,null,null,null,null,null,null,null,null,null,null,null,null,null,null,null,null,null,383.47613669647353]
[null,null,null,null,null,null,null,null,null,null,null,null,null,null,null,null,null,null,null,null,null,null,null,null,null,null,null,null,null,null,null,null,null,null,null,null,null,null,null,null,415.43503966754486]
[null,null,null,null,null,null,null,null,null,null,null,null,null,null,null,null,null,null,null,null,null,null,null,null,null,null,null,null,null,null,null,null,null,null,null,null,null,null,null,null,75.900893355817431]
[null,null,null,null,null,null,null,null,null,null,null,null,null,null,null,null,null,null,null,null,null,null,null,null,null,null,null,null,null,null,null,null,null,null,null,null,null,null,null,null,209.43960975140288]
[null,null,null,null,null,null,null,null,null,null,null,null,null,null,null,null,null,null,null,null,null,null,null,null,null,null,null,null,null,null,null,null,null,null,null,null,null,null,null,null,139.58569778631002]
[null,null,null,null,null,null,null,null,null,null,null,null,null,null,null,null,null,null,null,null,null,null,null,null,null,null,null,null,null,null,null,null,null,null,null,null,null,null,null,null,316.95163480749284]
[null,null,null,null,null,null,null,null,null,null,null,null,null,null,null,null,null,null,null,null,null,null,null,null,null,null,null,null,null,null,null,null,null,null,null,null,null,null,null,null,343.96670713391603]
[null,null,null,null,null,null,null,null,null,null,null,null,null,null,null,null,null,null,null,null,null,null,null,null,null,null,null,null,null,null,null,null,null,null,null,null,null,null,null,null,180.67702615444193]
[null,null,null,null,null,null,null,null,null,null,null,null,null,null,null,null,null,null,null,null,null,null,null,null,null,null,null,null,null,null,null,null,null,null,null,null,null,null,null,null,383.83108140216791]
[null,null,null,null,null,null,null,null,null,null,null,null,null,null,null,null,null,null,null,null,null,null,null,null,null,null,null,null,null,null,null,null,null,null,null,null,null,null,null,null,415.81276790186513]
[null,null,null,null,null,null,null,null,null,null,null,null,null,null,null,null,null,null,null,null,null,null,null,null,null,null,null,null,null,null,null,null,null,null,null,null,null,null,null,null,42.402355951250321]
[null,null,null,null,null,null,null,null,null,null,null,null,null,null,null,null,null,null,null,null,null,null,null,null,null,null,null,null,null,null,null,null,null,null,null,null,null,null,null,null,199.79253135611708]
[null,null,null,null,null,null,null,null,null,null,null,null,null,null,null,null,null,null,null,null,null,null,null,null,null,null,null,null,null,null,null,null,null,null,null,null,null,null,null,null,109.37555435417424]
[null,null,null,null,null,null,null,null,null,null,null,null,null,null,null,null,null,null,null,null,null,null,null,null,null,null,null,null,null,null,null,null,null,null,null,null,null,null,null,null,309.01460166407787]
[null,null,null,null,null,null,null,null,null,null,null,null,null,null,null,null,null,null,null,null,null,null,null,null,null,null,null,null,null,null,null,null,null,null,null,null,null,null,null,null,339.40619537310306]
[null,null,null,null,null,null,null,null,null,null,null,null,null,null,null,null,null,null,null,null,null,null,null,null,null,null,null,null,null,null,null,null,null,null,null,null,null,null,null,null,151.73778294136761]
[null,null,null,null,null,null,null,null,null,null,null,null,null,null,null,null,null,null,null,null,null,null,null,null,null,null,null,null,null,null,null,null,null,null,null,null,null,null,null,null,376.6221162950855]
[null,null,null,null,null,null,null,null,null,null,null,null,null,null,null,null,null,null,null,null,null,null,null,null,null,null,null,null,null,null,null,null,null,null,null,null,null,null,null,null,411.96279671888482]
[null,null,null,null,null,null,null,null,null,null,null,null,null,null,null,null,null,null,null,null,null,null,null,null,null,null,null,null,null,null,null,null,null,null,null,null,null,null,null,null,48.478090773870122]
[null,null,null,null,null,null,null,null,null,null,null,null,null,null,null,null,null,null,null,null,null,null,null,null,null,null,null,null,null,null,null,null,null,null,null,null,null,null,null,null,201.83254983318443]
[null,null,null,null,null,null,null,null,null,null,null,null,null,null,null,null,null,null,null,null,null,null,null,null,null,null,null,null,null,null,null,null,null,null,null,null,null,null,null,null,112.26095138864065]
[null,null,null,null,null,null,null,null,null,null,null,null,null,null,null,null,null,null,null,null,null,null,null,null,null,null,null,null,null,null,null,null,null,null,null,null,null,null,null,null,309.84082047094523]
[null,null,null,null,null,null,null,null,null,null,null,null,null,null,null,null,null,null,null,null,null,null,null,null,null,null,null,null,null,null,null,null,null,null,null,null,null,null,null,null,340.35050371925195]
[null,null,null,null,null,null,null,null,null,null,null,null,null,null,null,null,null,null,null,null,null,null,null,null,null,null,null,null,null,null,null,null,null,null,null,null,null,null,null,null,153.16405272355235]
[null,null,null,null,null,null,null,null,null,null,null,null,null,null,null,null,null,null,null,null,null,null,null,null,null,null,null,null,null,null,null,null,null,null,null,null,null,null,null,null,377.02140907686277]
[null,null,null,null,null,null,null,null,null,null,null,null,null,null,null,null,null,null,null,null,null,null,null,null,null,null,null,null,null,null,null,null,null,null,null,null,null,null,null,null,412.35762380610385]
[null,null,null,null,null,null,null,null,null,null,null,null,null,null,null,null,null,null,null,null,null,null,null,null,null,null,null,null,null,null,null,null,null,null,null,null,null,null,null,null,94.116542922241791]
[null,null,null,null,null,null,null,null,null,null,null,null,null,null,null,null,null,null,null,null,null,null,null,null,null,null,null,null,null,null,null,null,null,null,null,null,null,null,null,null,215.45352054286585]
[null,null,null,null,null,null,null,null,null,null,null,null,null,null,null,null,null,null,null,null,null,null,null,null,null,null,null,null,null,null,null,null,null,null,null,null,null,null,null,null,236.02980659933436]
[null,null,null,null,null,null,null,null,null,null,null,null,null,null,null,null,null,null,null,null,null,null,null,null,null,null,null,null,null,null,null,null,null,null,null,null,null,null,null,null,97.87345487826056]
[null,null,null,null,null,null,null,null,null,null,null,null,null,null,null,null,null,null,null,null,null,null,null,null,null,null,null,null,null,null,null,null,null,null,null,null,null,null,null,null,216.62848266827311]
[null,null,null,null,null,null,null,null,null,null,null,null,null,null,null,null,null,null,null,null,null,null,null,null,null,null,null,null,null,null,null,null,null,null,null,null,null,null,null,null,236.95055156054292]
[null,null,null,null,null,null,null,null,null,null,null,null,null,null,null,null,null,null,null,null,null,null,null,null,null,null,null,null,null,null,null,null,null,null,null,null,null,null,null,null,157.9757123247291]
[null,null,null,null,null,null,null,null,null,null,null,null,null,null,null,null,null,null,null,null,null,null,null,null,null,null,null,null,null,null,null,null,null,null,null,null,null,null,null,null,321.36624921100821]
[null,null,null,null,null,null,null,null,null,null,null,null,null,null,null,null,null,null,null,null,null,null,null,null,null,null,null,null,null,null,null,null,null,null,null,null,null,null,null,null,349.26889272558327]
[null,null,null,null,null,null,null,null,null,null,null,null,null,null,null,null,null,null,null,null,null,null,null,null,null,null,null,null,null,null,null,null,null,null,null,null,null,null,null,null,62.697130791578971]
[null,null,null,null,null,null,null,null,null,null,null,null,null,null,null,null,null,null,null,null,null,null,null,null,null,null,null,null,null,null,null,null,null,null,null,null,null,null,null,null,207.1582278890267]
[null,null,null,null,null,null,null,null,null,null,null,null,null,null,null,null,null,null,null,null,null,null,null,null,null,null,null,null,null,null,null,null,null,null,null,null,null,null,null,null,231.77088875893153]
[null,null,null,null,null,null,null,null,null,null,null,null,null,null,null,null,null,null,null,null,null,null,null,null,null,null,null,null,null,null,null,null,null,null,null,null,null,null,null,null,125.95079041842119]
[null,null,null,null,null,null,null,null,null,null,null,null,null,null,null,null,null,null,null,null,null,null,null,null,null,null,null,null,null,null,null,null,null,null,null,null,null,null,null,null,313.15327759685351]
[null,null,null,null,null,null,null,null,null,null,null,null,null,null,null,null,null,null,null,null,null,null,null,null,null,null,null,null,null,null,null,null,null,null,null,null,null,null,null,null,345.03756912445505]
[null,null,null,null,null,null,null,null,null,null,null,null,null,null,null,null,null,null,null,null,null,null,null,null,null,null,null,null,null,null,null,null,null,null,null,null,null,null,null,null,166.35491685980492]
[null,null,null,null,null,null,null,null,null,null,null,null,null,null,null,null,null,null,null,null,null,null,null,null,null,null,null,null,null,null,null,null,null,null,null,null,null,null,null,null,379.39851585941744]
[null,null,null,null,null,null,null,null,null,null,null,null,null,null,null,null,null,null,null,null,null,null,null,null,null,null,null,null,null,null,null,null,null,null,null,null,null,null,null,null,415.07572693772579]
[null,null,null,null,null,null,null,null,null,null,null,null,null,null,null,null,null,null,null,null,null,null,null,null,null,null,null,null,null,null,null,null,null,null,null,null,null,null,null,null,67.711210817080513]
[null,null,null,null,null,null,null,null,null,null,null,null,null,null,null,null,null,null,null,null,null,null,null,null,null,null,null,null,null,null,null,null,null,null,null,null,null,null,null,null,208.51537080483172]
[null,null,null,null,null,null,null,null,null,null,null,null,null,null,null,null,null,null,null,null,null,null,null,null,null,null,null,null,null,null,null,null,null,null,null,null,null,null,null,null,232.77959929004268]
[null,null,null,null,null,null,null,null,null,null,null,null,null,null,null,null,null,null,null,null,null,null,null,null,null,null,null,null,null,null,null,null,null,null,null,null,null,null,null,null,128.53553491750566]
[null,null,null,null,null,null,null,null,null,null,null,null,null,null,null,null,null,null,null,null,null,null,null,null,null,null,null,null,null,null,null,null,null,null,null,null,null,null,null,null,313.78592793088825]
[null,null,null,null,null,null,null,null,null,null,null,null,null,null,null,null,null,null,null,null,null,null,null,null,null,null,null,null,null,null,null,null,null,null,null,null,null,null,null,null,345.40244130566549]
[null,null,null,null,null,null,null,null,null,null,null,null,null,null,null,null,null,null,null,null,null,null,null,null,null,null,null,null,null,null,null,null,null,null,null,null,null,null,null,null,167.68467158242757]
[null,null,null,null,null,null,null,null,null,null,null,null,null,null,null,null,null,null,null,null,null,null,null,null,null,null,null,null,null,null,null,null,null,null,null,null,null,null,null,null,379.71342194155397]
[null,null,null,null,null,null,null,null,null,null,null,null,null,null,null,null,null,null,null,null,null,null,null,null,null,null,null,null,null,null,null,null,null,null,null,null,null,null,null,null,415.2118315786899]
[null,null,null,null,null,null,null,null,null,null,null,null,null,null,null,null,null,null,null,null,null,null,null,null,null,null,null,null,null,null,null,null,null,null,null,null,null,null,null,null,33.046083642789107]
[null,null,null,null,null,null,null,null,null,null,null,null,null,null,null,null,null,null,null,null,null,null,null,null,null,null,null,null,null,null,null,null,null,null,null,null,null,null,null,null,198.84667004684783]
[null,null,null,null,null,null,null,null,null,null,null,null,null,null,null,null,null,null,null,null,null,null,null,null,null,null,null,null,null,null,null,null,null,null,null,null,null,null,null,null,227.51452321391679]
[null,null,null,null,null,null,null,null,null,null,null,null,null,null,null,null,null,null,null,null,null,null,null,null,null,null,null,null,null,null,null,null,null,null,null,null,null,null,null,null,97.229325495520939]
[null,null,null,null,null,null,null,null,null,null,null,null,null,null,null,null,null,null,null,null,null,null,null,null,null,null,null,null,null,null,null,null,null,null,null,null,null,null,null,null,305.47505557475802]
[null,null,null,null,null,null,null,null,null,null,null,null,null,null,null,null,null,null,null,null,null,null,null,null,null,null,null,null,null,null,null,null,null,null,null,null,null,null,null,null,341.12648194445023]
[null,null,null,null,null,null,null,null,null,null,null,null,null,null,null,null,null,null,null,null,null,null,null,null,null,null,null,null,null,null,null,null,null,null,null,null,null,null,null,null,137.550919596932]
[null,null,null,null,null,null,null,null,null,null,null,null,null,null,null,null,null,null,null,null,null,null,null,null,null,null,null,null,null,null,null,null,null,null,null,null,null,null,null,null,372.07736000704381]
[null,null,null,null,null,null,null,null,null,null,null,null,null,null,null,null,null,null,null,null,null,null,null,null,null,null,null,null,null,null,null,null,null,null,null,null,null,null,null,null,411.36133288399702]
[null,null,null,null,null,null,null,null,null,null,null,null,null,null,null,null,null,null,null,null,null,null,null,null,null,null,null,null,null,null,null,null,null,null,null,null,null,null,null,null,39.455533170029675]
[null,null,null,null,null,null,null,null,null,null,null,null,null,null,null,null,null,null,null,null,null,null,null,null,null,null,null,null,null,null,null,null,null,null,null,null,null,null,null,null,200.405783993109]
[null,null,null,null,null,null,null,null,null,null,null,null,null,null,null,null,null,null,null,null,null,null,null,null,null,null,null,null,null,null,null,null,null,null,null,null,null,null,null,null,228.6135630952958]
[null,null,null,null,null,null,null,null,null,null,null,null,null,null,null,null,null,null,null,null,null,null,null,null,null,null,null,null,null,null,null,null,null,null,null,null,null,null,null,null,100.19641485030424]
[null,null,null,null,null,null,null,null,null,null,null,null,null,null,null,null,null,null,null,null,null,null,null,null,null,null,null,null,null,null,null,null,null,null,null,null,null,null,null,null,306.19251574249211]
[null,null,null,null,null,null,null,null,null,null,null,null,null,null,null,null,null,null,null,null,null,null,null,null,null,null,null,null,null,null,null,null,null,null,null,null,null,null,null,null,341.53245818270642]
[null,null,null,null,null,null,null,null,null,null,null,null,null,null,null,null,null,null,null,null,null,null,null,null,null,null,null,null,null,null,null,null,null,null,null,null,null,null,null,null,138.9698695027468]
[null,null,null,null,null,null,null,null,null,null,null,null,null,null,null,null,null,null,null,null,null,null,null,null,null,null,null,null,null,null,null,null,null,null,null,null,null,null,null,null,372.43912135456441]
[null,null,null,null,null,null,null,null,null,null,null,null,null,null,null,null,null,null,null,null,null,null,null,null,null,null,null,null,null,null,null,null,null,null,null,null,null,null,null,null,411.51760907868908]
[null,null,null,null,null,null,null,null,null,null,null,null,null,null,null,null,null,null,null,null,null,null,null,null,null,null,null,null,null,null,null,null,null,null,null,null,null,null,null,null,100.6120200903251]
[null,null,null,null,null,null,null,null,null,null,null,null,null,null,null,null,null,null,null,null,null,null,null,null,null,null,null,null,null,null,null,null,null,null,null,null,null,null,null,null,104.36711780507704]
[null,null,null,null,null,null,null,null,null,null,null,null,null,null,null,null,null,null,null,null,null,null,null,null,null,null,null,null,null,null,null,null,null,null,null,null,null,null,null,null,167.595762969139]
[null,null,null,null,null,null,null,null,null,null,null,null,null,null,null,null,null,null,null,null,null,null,null,null,null,null,null,null,null,null,null,null,null,null,null,null,null,null,null,null,317.46056396361251]
[null,null,null,null,null,null,null,null,null,null,null,null,null,null,null,null,null,null,null,null,null,null,null,null,null,null,null,null,null,null,null,null,null,null,null,null,null,null,null,null,70.493972647745721]
[null,null,null,null,null,null,null,null,null,null,null,null,null,null,null,null,null,null,null,null,null,null,null,null,null,null,null,null,null,null,null,null,null,null,null,null,null,null,null,null,136.85247837808163]
[null,null,null,null,null,null,null,null,null,null,null,null,null,null,null,null,null,null,null,null,null,null,null,null,null,null,null,null,null,null,null,null,null,null,null,null,null,null,null,null,308.66278068003942]
[null,null,null,null,null,null,null,null,null,null,null,null,null,null,null,null,null,null,null,null,null,null,null,null,null,null,null,null,null,null,null,null,null,null,null,null,null,null,null,null,179.24588587898731]
[null,null,null,null,null,null,null,null,null,null,null,null,null,null,null,null,null,null,null,null,null,null,null,null,null,null,null,null,null,null,null,null,null,null,null,null,null,null,null,null,379.59932571432995]
[null,null,null,null,null,null,null,null,null,null,null,null,null,null,null,null,null,null,null,null,null,null,null,null,null,null,null,null,null,null,null,null,null,null,null,null,null,null,null,null,75.411094205469368]
[null,null,null,null,null,null,null,null,null,null,null,null,null,null,null,null,null,null,null,null,null,null,null,null,null,null,null,null,null,null,null,null,null,null,null,null,null,null,null,null,139.38197974407257]
[null,null,null,null,null,null,null,null,null,null,null,null,null,null,null,null,null,null,null,null,null,null,null,null,null,null,null,null,null,null,null,null,null,null,null,null,null,null,null,null,310.36094667380854]
[null,null,null,null,null,null,null,null,null,null,null,null,null,null,null,null,null,null,null,null,null,null,null,null,null,null,null,null,null,null,null,null,null,null,null,null,null,null,null,null,180.5719849345619]
[null,null,null,null,null,null,null,null,null,null,null,null,null,null,null,null,null,null,null,null,null,null,null,null,null,null,null,null,null,null,null,null,null,null,null,null,null,null,null,null,380.40775428891664]
[null,null,null,null,null,null,null,null,null,null,null,null,null,null,null,null,null,null,null,null,null,null,null,null,null,null,null,null,null,null,null,null,null,null,null,null,null,null,null,null,41.780193802953747]
[null,null,null,null,null,null,null,null,null,null,null,null,null,null,null,null,null,null,null,null,null,null,null,null,null,null,null,null,null,null,null,null,null,null,null,null,null,null,null,null,109.14567167132878]
[null,null,null,null,null,null,null,null,null,null,null,null,null,null,null,null,null,null,null,null,null,null,null,null,null,null,null,null,null,null,null,null,null,null,null,null,null,null,null,null,301.48034518973208]
[null,null,null,null,null,null,null,null,null,null,null,null,null,null,null,null,null,null,null,null,null,null,null,null,null,null,null,null,null,null,null,null,null,null,null,null,null,null,null,null,151.6207509387836]
[null,null,null,null,null,null,null,null,null,null,null,null,null,null,null,null,null,null,null,null,null,null,null,null,null,null,null,null,null,null,null,null,null,null,null,null,null,null,null,null,372.74483160555468]
[null,null,null,null,null,null,null,null,null,null,null,null,null,null,null,null,null,null,null,null,null,null,null,null,null,null,null,null,null,null,null,null,null,null,null,null,null,null,null,null,47.995564808084247]
[null,null,null,null,null,null,null,null,null,null,null,null,null,null,null,null,null,null,null,null,null,null,null,null,null,null,null,null,null,null,null,null,null,null,null,null,null,null,null,null,112.06664995327429]
[null,null,null,null,null,null,null,null,null,null,null,null,null,null,null,null,null,null,null,null,null,null,null,null,null,null,null,null,null,null,null,null,null,null,null,null,null,null,null,null,303.24935298565384]
[null,null,null,null,null,null,null,null,null,null,null,null,null,null,null,null,null,null,null,null,null,null,null,null,null,null,null,null,null,null,null,null,null,null,null,null,null,null,null,null,153.06204231217106]
[null,null,null,null,null,null,null,null,null,null,null,null,null,null,null,null,null,null,null,null,null,null,null,null,null,null,null,null,null,null,null,null,null,null,null,null,null,null,null,null,373.59865441878736]
[null,null,null,null,null,null,null,null,null,null,null,null,null,null,null,null,null,null,null,null,null,null,null,null,null,null,null,null,null,null,null,null,null,null,null,null,null,null,null,null,101.27851170856081]
[null,null,null,null,null,null,null,null,null,null,null,null,null,null,null,null,null,null,null,null,null,null,null,null,null,null,null,null,null,null,null,null,null,null,null,null,null,null,null,null,215.35917254674766]
[null,null,null,null,null,null,null,null,null,null,null,null,null,null,null,null,null,null,null,null,null,null,null,null,null,null,null,null,null,null,null,null,null,null,null,null,null,null,null,null,104.88827755420297]
[null,null,null,null,null,null,null,null,null,null,null,null,null,null,null,null,null,null,null,null,null,null,null,null,null,null,null,null,null,null,null,null,null,null,null,null,null,null,null,null,217.03691831144235]
[null,null,null,null,null,null,null,null,null,null,null,null,null,null,null,null,null,null,null,null,null,null,null,null,null,null,null,null,null,null,null,null,null,null,null,null,null,null,null,null,167.80692416101741]
[null,null,null,null,null,null,null,null,null,null,null,null,null,null,null,null,null,null,null,null,null,null,null,null,null,null,null,null,null,null,null,null,null,null,null,null,null,null,null,null,324.05568896878458]
[null,null,null,null,null,null,null,null,null,null,null,null,null,null,null,null,null,null,null,null,null,null,null,null,null,null,null,null,null,null,null,null,null,null,null,null,null,null,null,null,347.58655751163286]
[null,null,null,null,null,null,null,null,null,null,null,null,null,null,null,null,null,null,null,null,null,null,null,null,null,null,null,null,null,null,null,null,null,null,null,null,null,null,null,null,71.127602930591962]
[null,null,null,null,null,null,null,null,null,null,null,null,null,null,null,null,null,null,null,null,null,null,null,null,null,null,null,null,null,null,null,null,null,null,null,null,null,null,null,null,207.58337029490966]
[null,null,null,null,null,null,null,null,null,null,null,null,null,null,null,null,null,null,null,null,null,null,null,null,null,null,null,null,null,null,null,null,null,null,null,null,null,null,null,null,137.09366793758358]
[null,null,null,null,null,null,null,null,null,null,null,null,null,null,null,null,null,null,null,null,null,null,null,null,null,null,null,null,null,null,null,null,null,null,null,null,null,null,null,null,316.20666769503879]
[null,null,null,null,null,null,null,null,null,null,null,null,null,null,null,null,null,null,null,null,null,null,null,null,null,null,null,null,null,null,null,null,null,null,null,null,null,null,null,null,343.05802014411211]
[null,null,null,null,null,null,null,null,null,null,null,null,null,null,null,null,null,null,null,null,null,null,null,null,null,null,null,null,null,null,null,null,null,null,null,null,null,null,null,null,179.36656195107787]
[null,null,null,null,null,null,null,null,null,null,null,null,null,null,null,null,null,null,null,null,null,null,null,null,null,null,null,null,null,null,null,null,null,null,null,null,null,null,null,null,383.47613669647353]
[null,null,null,null,null,null,null,null,null,null,null,null,null,null,null,null,null,null,null,null,null,null,null,null,null,null,null,null,null,null,null,null,null,null,null,null,null,null,null,null,415.43503966754486]
[null,null,null,null,null,null,null,null,null,null,null,null,null,null,null,null,null,null,null,null,null,null,null,null,null,null,null,null,null,null,null,null,null,null,null,null,null,null,null,null,75.900893355817431]
[null,null,null,null,null,null,null,null,null,null,null,null,null,null,null,null,null,null,null,null,null,null,null,null,null,null,null,null,null,null,null,null,null,null,null,null,null,null,null,null,209.43960975140288]
[null,null,null,null,null,null,null,null,null,null,null,null,null,null,null,null,null,null,null,null,null,null,null,null,null,null,null,null,null,null,null,null,null,null,null,null,null,null,null,null,139.58569778631002]
[null,null,null,null,null,null,null,null,null,null,null,null,null,null,null,null,null,null,null,null,null,null,null,null,null,null,null,null,null,null,null,null,null,null,null,null,null,null,null,null,316.95163480749284]
[null,null,null,null,null,null,null,null,null,null,null,null,null,null,null,null,null,null,null,null,null,null,null,null,null,null,null,null,null,null,null,null,null,null,null,null,null,null,null,null,343.96670713391603]
[null,null,null,null,null,null,null,null,null,null,null,null,null,null,null,null,null,null,null,null,null,null,null,null,null,null,null,null,null,null,null,null,null,null,null,null,null,null,null,null,180.67702615444193]
[null,null,null,null,null,null,null,null,null,null,null,null,null,null,null,null,null,null,null,null,null,null,null,null,null,null,null,null,null,null,null,null,null,null,null,null,null,null,null,null,383.83108140216791]
[null,null,null,null,null,null,null,null,null,null,null,null,null,null,null,null,null,null,null,null,null,null,null,null,null,null,null,null,null,null,null,null,null,null,null,null,null,null,null,null,415.81276790186513]
[null,null,null,null,null,null,null,null,null,null,null,null,null,null,null,null,null,null,null,null,null,null,null,null,null,null,null,null,null,null,null,null,null,null,null,null,null,null,null,null,42.402355951250321]
[null,null,null,null,null,null,null,null,null,null,null,null,null,null,null,null,null,null,null,null,null,null,null,null,null,null,null,null,null,null,null,null,null,null,null,null,null,null,null,null,199.79253135611708]
[null,null,null,null,null,null,null,null,null,null,null,null,null,null,null,null,null,null,null,null,null,null,null,null,null,null,null,null,null,null,null,null,null,null,null,null,null,null,null,null,109.37555435417424]
[null,null,null,null,null,null,null,null,null,null,null,null,null,null,null,null,null,null,null,null,null,null,null,null,null,null,null,null,null,null,null,null,null,null,null,null,null,null,null,null,309.01460166407787]
[null,null,null,null,null,null,null,null,null,null,null,null,null,null,null,null,null,null,null,null,null,null,null,null,null,null,null,null,null,null,null,null,null,null,null,null,null,null,null,null,339.40619537310306]
[null,null,null,null,null,null,null,null,null,null,null,null,null,null,null,null,null,null,null,null,null,null,null,null,null,null,null,null,null,null,null,null,null,null,null,null,null,null,null,null,151.73778294136761]
[null,null,null,null,null,null,null,null,null,null,null,null,null,null,null,null,null,null,null,null,null,null,null,null,null,null,null,null,null,null,null,null,null,null,null,null,null,null,null,null,376.6221162950855]
[null,null,null,null,null,null,null,null,null,null,null,null,null,null,null,null,null,null,null,null,null,null,null,null,null,null,null,null,null,null,null,null,null,null,null,null,null,null,null,null,411.96279671888482]
[null,null,null,null,null,null,null,null,null,null,null,null,null,null,null,null,null,null,null,null,null,null,null,null,null,null,null,null,null,null,null,null,null,null,null,null,null,null,null,null,48.478090773870122]
[null,null,null,null,null,null,null,null,null,null,null,null,null,null,null,null,null,null,null,null,null,null,null,null,null,null,null,null,null,null,null,null,null,null,null,null,null,null,null,null,201.83254983318443]
[null,null,null,null,null,null,null,null,null,null,null,null,null,null,null,null,null,null,null,null,null,null,null,null,null,null,null,null,null,null,null,null,null,null,null,null,null,null,null,null,112.26095138864065]
[null,null,null,null,null,null,null,null,null,null,null,null,null,null,null,null,null,null,null,null,null,null,null,null,null,null,null,null,null,null,null,null,null,null,null,null,null,null,null,null,309.84082047094523]
[null,null,null,null,null,null,null,null,null,null,null,null,null,null,null,null,null,null,null,null,null,null,null,null,null,null,null,null,null,null,null,null,null,null,null,null,null,null,null,null,340.35050371925195]
[null,null,null,null,null,null,null,null,null,null,null,null,null,null,null,null,null,null,null,null,null,null,null,null,null,null,null,null,null,null,null,null,null,null,null,null,null,null,null,null,153.16405272355235]
[null,null,null,null,null,null,null,null,null,null,null,null,null,null,null,null,null,null,null,null,null,null,null,null,null,null,null,null,null,null,null,null,null,null,null,null,null,null,null,null,377.02140907686277]
[null,null,null,null,null,null,null,null,null,null,null,null,null,null,null,null,null,null,null,null,null,null,null,null,null,null,null,null,null,null,null,null,null,null,null,null,null,null,null,null,412.35762380610385]
[null,null,null,null,null,null,null,null,null,null,null,null,null,null,null,null,null,null,null,null,null,null,null,null,null,null,null,null,null,null,null,null,null,null,null,null,null,null,null,null,94.116542922241791]
[null,null,null,null,null,null,null,null,null,null,null,null,null,null,null,null,null,null,null,null,null,null,null,null,null,null,null,null,null,null,null,null,null,null,null,null,null,null,null,null,215.45352054286585]
[null,null,null,null,null,null,null,null,null,null,null,null,null,null,null,null,null,null,null,null,null,null,null,null,null,null,null,null,null,null,null,null,null,null,null,null,null,null,null,null,236.02980659933436]
[null,null,null,null,null,null,null,null,null,null,null,null,null,null,null,null,null,null,null,null,null,null,null,null,null,null,null,null,null,null,null,null,null,null,null,null,null,null,null,null,97.87345487826056]
[null,null,null,null,null,null,null,null,null,null,null,null,null,null,null,null,null,null,null,null,null,null,null,null,null,null,null,null,null,null,null,null,null,null,null,null,null,null,null,null,216.62848266827311]
[null,null,null,null,null,null,null,null,null,null,null,null,null,null,null,null,null,null,null,null,null,null,null,null,null,null,null,null,null,null,null,null,null,null,null,null,null,null,null,null,236.95055156054292]
[null,null,null,null,null,null,null,null,null,null,null,null,null,null,null,null,null,null,null,null,null,null,null,null,null,null,null,null,null,null,null,null,null,null,null,null,null,null,null,null,157.9757123247291]
[null,null,null,null,null,null,null,null,null,null,null,null,null,null,null,null,null,null,null,null,null,null,null,null,null,null,null,null,null,null,null,null,null,null,null,null,null,null,null,null,321.36624921100821]
[null,null,null,null,null,null,null,null,null,null,null,null,null,null,null,null,null,null,null,null,null,null,null,null,null,null,null,null,null,null,null,null,null,null,null,null,null,null,null,null,349.26889272558327]
[null,null,null,null,null,null,null,null,null,null,null,null,null,null,null,null,null,null,null,null,null,null,null,null,null,null,null,null,null,null,null,null,null,null,null,null,null,null,null,null,62.697130791578971]
[null,null,null,null,null,null,null,null,null,null,null,null,null,null,null,null,null,null,null,null,null,null,null,null,null,null,null,null,null,null,null,null,null,null,null,null,null,null,null,null,207.1582278890267]
[null,null,null,null,null,null,null,null,null,null,null,null,null,null,null,null,null,null,null,null,null,null,null,null,null,null,null,null,null,null,null,null,null,null,null,null,null,null,null,null,231.77088875893153]
[null,null,null,null,null,null,null,null,null,null,null,null,null,null,null,null,null,null,null,null,null,null,null,null,null,null,null,null,null,null,null,null,null,null,null,null,null,null,null,null,125.95079041842119]
[null,null,null,null,null,null,null,null,null,null,null,null,null,null,null,null,null,null,null,null,null,null,null,null,null,null,null,null,null,null,null,null,null,null,null,null,null,null,null,null,313.15327759685351]
[null,null,null,null,null,null,null,null,null,null,null,null,null,null,null,null,null,null,null,null,null,null,null,null,null,null,null,null,null,null,null,null,null,null,null,null,null,null,null,null,345.03756912445505]
[null,null,null,null,null,null,null,null,null,null,null,null,null,null,null,null,null,null,null,null,null,null,null,null,null,null,null,null,null,null,null,null,null,null,null,null,null,null,null,null,166.35491685980492]
[null,null,null,null,null,null,null,null,null,null,null,null,null,null,null,null,null,null,null,null,null,null,null,null,null,null,null,null,null,null,null,null,null,null,null,null,null,null,null,null,379.39851585941744]
[null,null,null,null,null,null,null,null,null,null,null,null,null,null,null,null,null,null,null,null,null,null,null,null,null,null,null,null,null,null,null,null,null,null,null,null,null,null,null,null,415.07572693772579]
[null,null,null,null,null,null,null,null,null,null,null,null,null,null,null,null,null,null,null,null,null,null,null,null,null,null,null,null,null,null,null,null,null,null,null,null,null,null,null,null,67.711210817080513]
[null,null,null,null,null,null,null,null,null,null,null,null,null,null,null,null,null,null,null,null,null,null,null,null,null,null,null,null,null,null,null,null,null,null,null,null,null,null,null,null,208.51537080483172]
[null,null,null,null,null,null,null,null,null,null,null,null,null,null,null,null,null,null,null,null,null,null,null,null,null,null,null,null,null,null,null,null,null,null,null,null,null,null,null,null,232.77959929004268]
[null,null,null,null,null,null,null,null,null,null,null,null,null,null,null,null,null,null,null,null,null,null,null,null,null,null,null,null,null,null,null,null,null,null,null,null,null,null,null,null,128.53553491750566]
[null,null,null,null,null,null,null,null,null,null,null,null,null,null,null,null,null,null,null,null,null,null,null,null,null,null,null,null,null,null,null,null,null,null,null,null,null,null,null,null,313.78592793088825]
[null,null,null,null,null,null,null,null,null,null,null,null,null,null,null,null,null,null,null,null,null,null,null,null,null,null,null,null,null,null,null,null,null,null,null,null,null,null,null,null,345.40244130566549]
[null,null,null,null,null,null,null,null,null,null,null,null,null,null,null,null,null,null,null,null,null,null,null,null,null,null,null,null,null,null,null,null,null,null,null,null,null,null,null,null,167.68467158242757]
[null,null,null,null,null,null,null,null,null,null,null,null,null,null,null,null,null,null,null,null,null,null,null,null,null,null,null,null,null,null,null,null,null,null,null,null,null,null,null,null,379.71342194155397]
[null,null,null,null,null,null,null,null,null,null,null,null,null,null,null,null,null,null,null,null,null,null,null,null,null,null,null,null,null,null,null,null,null,null,null,null,null,null,null,null,415.2118315786899]
[null,null,null,null,null,null,null,null,null,null,null,null,null,null,null,null,null,null,null,null,null,null,null,null,null,null,null,null,null,null,null,null,null,null,null,null,null,null,null,null,33.046083642789107]
[null,null,null,null,null,null,null,null,null,null,null,null,null,null,null,null,null,null,null,null,null,null,null,null,null,null,null,null,null,null,null,null,null,null,null,null,null,null,null,null,198.84667004684783]
[null,null,null,null,null,null,null,null,null,null,null,null,null,null,null,null,null,null,null,null,null,null,null,null,null,null,null,null,null,null,null,null,null,null,null,null,null,null,null,null,227.51452321391679]
[null,null,null,null,null,null,null,null,null,null,null,null,null,null,null,null,null,null,null,null,null,null,null,null,null,null,null,null,null,null,null,null,null,null,null,null,null,null,null,null,97.229325495520939]
[null,null,null,null,null,null,null,null,null,null,null,null,null,null,null,null,null,null,null,null,null,null,null,null,null,null,null,null,null,null,null,null,null,null,null,null,null,null,null,null,305.47505557475802]
[null,null,null,null,null,null,null,null,null,null,null,null,null,null,null,null,null,null,null,null,null,null,null,null,null,null,null,null,null,null,null,null,null,null,null,null,null,null,null,null,341.12648194445023]
[null,null,null,null,null,null,null,null,null,null,null,null,null,null,null,null,null,null,null,null,null,null,null,null,null,null,null,null,null,null,null,null,null,null,null,null,null,null,null,null,137.550919596932]
[null,null,null,null,null,null,null,null,null,null,null,null,null,null,null,null,null,null,null,null,null,null,null,null,null,null,null,null,null,null,null,null,null,null,null,null,null,null,null,null,372.07736000704381]
[null,null,null,null,null,null,null,null,null,null,null,null,null,null,null,null,null,null,null,null,null,null,null,null,null,null,null,null,null,null,null,null,null,null,null,null,null,null,null,null,411.36133288399702]
[null,null,null,null,null,null,null,null,null,null,null,null,null,null,null,null,null,null,null,null,null,null,null,null,null,null,null,null,null,null,null,null,null,null,null,null,null,null,null,null,39.455533170029675]
[null,null,null,null,null,null,null,null,null,null,null,null,null,null,null,null,null,null,null,null,null,null,null,null,null,null,null,null,null,null,null,null,null,null,null,null,null,null,null,null,200.405783993109]
[null,null,null,null,null,null,null,null,null,null,null,null,null,null,null,null,null,null,null,null,null,null,null,null,null,null,null,null,null,null,null,null,null,null,null,null,null,null,null,null,228.6135630952958]
[null,null,null,null,null,null,null,null,null,null,null,null,null,null,null,null,null,null,null,null,null,null,null,null,null,null,null,null,null,null,null,null,null,null,null,null,null,null,null,null,100.19641485030424]
[null,null,null,null,null,null,null,null,null,null,null,null,null,null,null,null,null,null,null,null,null,null,null,null,null,null,null,null,null,null,null,null,null,null,null,null,null,null,null,null,306.19251574249211]
[null,null,null,null,null,null,null,null,null,null,null,null,null,null,null,null,null,null,null,null,null,null,null,null,null,null,null,null,null,null,null,null,null,null,null,null,null,null,null,null,341.53245818270642]
[null,null,null,null,null,null,null,null,null,null,null,null,null,null,null,null,null,null,null,null,null,null,null,null,null,null,null,null,null,null,null,null,null,null,null,null,null,null,null,null,138.9698695027468]
[null,null,null,null,null,null,null,null,null,null,null,null,null,null,null,null,null,null,null,null,null,null,null,null,null,null,null,null,null,null,null,null,null,null,null,null,null,null,null,null,372.43912135456441]
[null,null,null,null,null,null,null,null,null,null,null,null,null,null,null,null,null,null,null,null,null,null,null,null,null,null,null,null,null,null,null,null,null,null,null,null,null,null,null,null,411.51760907868908]
[null,null,null,null,null,null,null,null,null,null,null,null,null,null,null,null,null,null,null,null,null,null,null,null,null,null,null,null,null,null,null,null,null,null,null,null,null,null,null,null,81.59653895001334]
[null,null,null,null,null,null,null,null,null,null,null,null,null,null,null,null,null,null,null,null,null,null,null,null,null,null,null,null,null,null,null,null,null,null,null,null,null,null,null,null,143.60423336012178]
[null,null,null,null,null,null,null,null,null,null,null,null,null,null,null,null,null,null,null,null,null,null,null,null,null,null,null,null,null,null,null,null,null,null,null,null,null,null,null,null,273.05161470734504]
[null,null,null,null,null,null,null,null,null,null,null,null,null,null,null,null,null,null,null,null,null,null,null,null,null,null,null,null,null,null,null,null,null,null,null,null,null,null,null,null,85.420016140926123]
[null,null,null,null,null,null,null,null,null,null,null,null,null,null,null,null,null,null,null,null,null,null,null,null,null,null,null,null,null,null,null,null,null,null,null,null,null,null,null,null,145.67413375746759]
[null,null,null,null,null,null,null,null,null,null,null,null,null,null,null,null,null,null,null,null,null,null,null,null,null,null,null,null,null,null,null,null,null,null,null,null,null,null,null,null,274.82380228442173]
[null,null,null,null,null,null,null,null,null,null,null,null,null,null,null,null,null,null,null,null,null,null,null,null,null,null,null,null,null,null,null,null,null,null,null,null,null,null,null,null,52.281233022142914]
[null,null,null,null,null,null,null,null,null,null,null,null,null,null,null,null,null,null,null,null,null,null,null,null,null,null,null,null,null,null,null,null,null,null,null,null,null,null,null,null,115.62668731926777]
[null,null,null,null,null,null,null,null,null,null,null,null,null,null,null,null,null,null,null,null,null,null,null,null,null,null,null,null,null,null,null,null,null,null,null,null,null,null,null,null,265.85327294462456]
[null,null,null,null,null,null,null,null,null,null,null,null,null,null,null,null,null,null,null,null,null,null,null,null,null,null,null,null,null,null,null,null,null,null,null,null,null,null,null,null,155.68828678878788]
[null,null,null,null,null,null,null,null,null,null,null,null,null,null,null,null,null,null,null,null,null,null,null,null,null,null,null,null,null,null,null,null,null,null,null,null,null,null,null,null,335.24253196349014]
[null,null,null,null,null,null,null,null,null,null,null,null,null,null,null,null,null,null,null,null,null,null,null,null,null,null,null,null,null,null,null,null,null,null,null,null,null,null,null,null,57.386696436761227]
[null,null,null,null,null,null,null,null,null,null,null,null,null,null,null,null,null,null,null,null,null,null,null,null,null,null,null,null,null,null,null,null,null,null,null,null,null,null,null,null,118.10946959913484]
[null,null,null,null,null,null,null,null,null,null,null,null,null,null,null,null,null,null,null,null,null,null,null,null,null,null,null,null,null,null,null,null,null,null,null,null,null,null,null,null,267.71455011139369]
[null,null,null,null,null,null,null,null,null,null,null,null,null,null,null,null,null,null,null,null,null,null,null,null,null,null,null,null,null,null,null,null,null,null,null,null,null,null,null,null,156.8890657374298]
[null,null,null,null,null,null,null,null,null,null,null,null,null,null,null,null,null,null,null,null,null,null,null,null,null,null,null,null,null,null,null,null,null,null,null,null,null,null,null,null,336.10166014784897]
[null,null,null,null,null,null,null,null,null,null,null,null,null,null,null,null,null,null,null,null,null,null,null,null,null,null,null,null,null,null,null,null,null,null,null,null,null,null,null,null,24.75358086806682]
[null,null,null,null,null,null,null,null,null,null,null,null,null,null,null,null,null,null,null,null,null,null,null,null,null,null,null,null,null,null,null,null,null,null,null,null,null,null,null,null,88.797544462850681]
[null,null,null,null,null,null,null,null,null,null,null,null,null,null,null,null,null,null,null,null,null,null,null,null,null,null,null,null,null,null,null,null,null,null,null,null,null,null,null,null,258.62703340750488]
[null,null,null,null,null,null,null,null,null,null,null,null,null,null,null,null,null,null,null,null,null,null,null,null,null,null,null,null,null,null,null,null,null,null,null,null,null,null,null,null,128.62547435703868]
[null,null,null,null,null,null,null,null,null,null,null,null,null,null,null,null,null,null,null,null,null,null,null,null,null,null,null,null,null,null,null,null,null,null,null,null,null,null,null,null,328.33618613467883]
[null,null,null,null,null,null,null,null,null,null,null,null,null,null,null,null,null,null,null,null,null,null,null,null,null,null,null,null,null,null,null,null,null,null,null,null,null,null,null,null,31.248013300731202]
[null,null,null,null,null,null,null,null,null,null,null,null,null,null,null,null,null,null,null,null,null,null,null,null,null,null,null,null,null,null,null,null,null,null,null,null,null,null,null,null,91.628938754328672]
[null,null,null,null,null,null,null,null,null,null,null,null,null,null,null,null,null,null,null,null,null,null,null,null,null,null,null,null,null,null,null,null,null,null,null,null,null,null,null,null,260.58610431099999]
[null,null,null,null,null,null,null,null,null,null,null,null,null,null,null,null,null,null,null,null,null,null,null,null,null,null,null,null,null,null,null,null,null,null,null,null,null,null,null,null,129.89220467795224]
[null,null,null,null,null,null,null,null,null,null,null,null,null,null,null,null,null,null,null,null,null,null,null,null,null,null,null,null,null,null,null,null,null,null,null,null,null,null,null,null,329.2449070484335]
[null,null,null,null,null,null,null,null,null,null,null,null,null,null,null,null,null,null,null,null,null,null,null,null,null,null,null,null,null,null,null,null,null,null,null,null,null,null,null,null,82.299772022796574]
[null,null,null,null,null,null,null,null,null,null,null,null,null,null,null,null,null,null,null,null,null,null,null,null,null,null,null,null,null,null,null,null,null,null,null,null,null,null,null,null,176.39982817499086]
[null,null,null,null,null,null,null,null,null,null,null,null,null,null,null,null,null,null,null,null,null,null,null,null,null,null,null,null,null,null,null,null,null,null,null,null,null,null,null,null,143.86692394152777]
[null,null,null,null,null,null,null,null,null,null,null,null,null,null,null,null,null,null,null,null,null,null,null,null,null,null,null,null,null,null,null,null,null,null,null,null,null,null,null,null,281.3040780554694]
[null,null,null,null,null,null,null,null,null,null,null,null,null,null,null,null,null,null,null,null,null,null,null,null,null,null,null,null,null,null,null,null,null,null,null,null,null,null,null,null,301.20016650477652]
[null,null,null,null,null,null,null,null,null,null,null,null,null,null,null,null,null,null,null,null,null,null,null,null,null,null,null,null,null,null,null,null,null,null,null,null,null,null,null,null,85.967233476020709]
[null,null,null,null,null,null,null,null,null,null,null,null,null,null,null,null,null,null,null,null,null,null,null,null,null,null,null,null,null,null,null,null,null,null,null,null,null,null,null,null,178.24843981353823]
[null,null,null,null,null,null,null,null,null,null,null,null,null,null,null,null,null,null,null,null,null,null,null,null,null,null,null,null,null,null,null,null,null,null,null,null,null,null,null,null,145.896120027461]
[null,null,null,null,null,null,null,null,null,null,null,null,null,null,null,null,null,null,null,null,null,null,null,null,null,null,null,null,null,null,null,null,null,null,null,null,null,null,null,null,282.01432879726724]
[null,null,null,null,null,null,null,null,null,null,null,null,null,null,null,null,null,null,null,null,null,null,null,null,null,null,null,null,null,null,null,null,null,null,null,null,null,null,null,null,302.15594481053284]
[null,null,null,null,null,null,null,null,null,null,null,null,null,null,null,null,null,null,null,null,null,null,null,null,null,null,null,null,null,null,null,null,null,null,null,null,null,null,null,null,52.941620573312449]
[null,null,null,null,null,null,null,null,null,null,null,null,null,null,null,null,null,null,null,null,null,null,null,null,null,null,null,null,null,null,null,null,null,null,null,null,null,null,null,null,168.6330114415866]
[null,null,null,null,null,null,null,null,null,null,null,null,null,null,null,null,null,null,null,null,null,null,null,null,null,null,null,null,null,null,null,null,null,null,null,null,null,null,null,null,115.87766728524463]
[null,null,null,null,null,null,null,null,null,null,null,null,null,null,null,null,null,null,null,null,null,null,null,null,null,null,null,null,null,null,null,null,null,null,null,null,null,null,null,null,274.08755154619325]
[null,null,null,null,null,null,null,null,null,null,null,null,null,null,null,null,null,null,null,null,null,null,null,null,null,null,null,null,null,null,null,null,null,null,null,null,null,null,null,null,297.50668369843692]
[null,null,null,null,null,null,null,null,null,null,null,null,null,null,null,null,null,null,null,null,null,null,null,null,null,null,null,null,null,null,null,null,null,null,null,null,null,null,null,null,155.8153835769466]
[null,null,null,null,null,null,null,null,null,null,null,null,null,null,null,null,null,null,null,null,null,null,null,null,null,null,null,null,null,null,null,null,null,null,null,null,null,null,null,null,339.51439750486077]
[null,null,null,null,null,null,null,null,null,null,null,null,null,null,null,null,null,null,null,null,null,null,null,null,null,null,null,null,null,null,null,null,null,null,null,null,null,null,null,null,368.36349779732103]
[null,null,null,null,null,null,null,null,null,null,null,null,null,null,null,null,null,null,null,null,null,null,null,null,null,null,null,null,null,null,null,null,null,null,null,null,null,null,null,null,57.894133743622618]
[null,null,null,null,null,null,null,null,null,null,null,null,null,null,null,null,null,null,null,null,null,null,null,null,null,null,null,null,null,null,null,null,null,null,null,null,null,null,null,null,170.70139946993905]
[null,null,null,null,null,null,null,null,null,null,null,null,null,null,null,null,null,null,null,null,null,null,null,null,null,null,null,null,null,null,null,null,null,null,null,null,null,null,null,null,118.32164657093351]
[null,null,null,null,null,null,null,null,null,null,null,null,null,null,null,null,null,null,null,null,null,null,null,null,null,null,null,null,null,null,null,null,null,null,null,null,null,null,null,null,274.88352701977124]
[null,null,null,null,null,null,null,null,null,null,null,null,null,null,null,null,null,null,null,null,null,null,null,null,null,null,null,null,null,null,null,null,null,null,null,null,null,null,null,null,298.50591764265153]
[null,null,null,null,null,null,null,null,null,null,null,null,null,null,null,null,null,null,null,null,null,null,null,null,null,null,null,null,null,null,null,null,null,null,null,null,null,null,null,null,156.99975073534239]
[null,null,null,null,null,null,null,null,null,null,null,null,null,null,null,null,null,null,null,null,null,null,null,null,null,null,null,null,null,null,null,null,null,null,null,null,null,null,null,null,339.86917296338606]
[null,null,null,null,null,null,null,null,null,null,null,null,null,null,null,null,null,null,null,null,null,null,null,null,null,null,null,null,null,null,null,null,null,null,null,null,null,null,null,null,368.75815056559424]
[null,null,null,null,null,null,null,null,null,null,null,null,null,null,null,null,null,null,null,null,null,null,null,null,null,null,null,null,null,null,null,null,null,null,null,null,null,null,null,null,25.399729225712111]
[null,null,null,null,null,null,null,null,null,null,null,null,null,null,null,null,null,null,null,null,null,null,null,null,null,null,null,null,null,null,null,null,null,null,null,null,null,null,null,null,160.86601587614552]
[null,null,null,null,null,null,null,null,null,null,null,null,null,null,null,null,null,null,null,null,null,null,null,null,null,null,null,null,null,null,null,null,null,null,null,null,null,null,null,null,89.033869540613949]
[null,null,null,null,null,null,null,null,null,null,null,null,null,null,null,null,null,null,null,null,null,null,null,null,null,null,null,null,null,null,null,null,null,null,null,null,null,null,null,null,266.86367146944303]
[null,null,null,null,null,null,null,null,null,null,null,null,null,null,null,null,null,null,null,null,null,null,null,null,null,null,null,null,null,null,null,null,null,null,null,null,null,null,null,null,293.82317040296357]
[null,null,null,null,null,null,null,null,null,null,null,null,null,null,null,null,null,null,null,null,null,null,null,null,null,null,null,null,null,null,null,null,null,null,null,null,null,null,null,null,128.74792233280183]
[null,null,null,null,null,null,null,null,null,null,null,null,null,null,null,null,null,null,null,null,null,null,null,null,null,null,null,null,null,null,null,null,null,null,null,null,null,null,null,null,332.60494922731817]
[null,null,null,null,null,null,null,null,null,null,null,null,null,null,null,null,null,null,null,null,null,null,null,null,null,null,null,null,null,null,null,null,null,null,null,null,null,null,null,null,364.84653095441388]
[null,null,null,null,null,null,null,null,null,null,null,null,null,null,null,null,null,null,null,null,null,null,null,null,null,null,null,null,null,null,null,null,null,null,null,null,null,null,null,null,31.718369663383065]
[null,null,null,null,null,null,null,null,null,null,null,null,null,null,null,null,null,null,null,null,null,null,null,null,null,null,null,null,null,null,null,null,null,null,null,null,null,null,null,null,163.15870434112875]
[null,null,null,null,null,null,null,null,null,null,null,null,null,null,null,null,null,null,null,null,null,null,null,null,null,null,null,null,null,null,null,null,null,null,null,null,null,null,null,null,91.829329455413585]
[null,null,null,null,null,null,null,null,null,null,null,null,null,null,null,null,null,null,null,null,null,null,null,null,null,null,null,null,null,null,null,null,null,null,null,null,null,null,null,null,267.75433230275985]
[null,null,null,null,null,null,null,null,null,null,null,null,null,null,null,null,null,null,null,null,null,null,null,null,null,null,null,null,null,null,null,null,null,null,null,null,null,null,null,null,294.86450584909591]
[null,null,null,null,null,null,null,null,null,null,null,null,null,null,null,null,null,null,null,null,null,null,null,null,null,null,null,null,null,null,null,null,null,null,null,null,null,null,null,null,129.99908645160144]
[null,null,null,null,null,null,null,null,null,null,null,null,null,null,null,null,null,null,null,null,null,null,null,null,null,null,null,null,null,null,null,null,null,null,null,null,null,null,null,null,333.00692245621411]
[null,null,null,null,null,null,null,null,null,null,null,null,null,null,null,null,null,null,null,null,null,null,null,null,null,null,null,null,null,null,null,null,null,null,null,null,null,null,null,null,365.26265519060928]
[null,null,null,null,null,null,null,null,null,null,null,null,null,null,null,null,null,null,null,null,null,null,null,null,null,null,null,null,null,null,null,null,null,null,null,null,null,null,null,null,76.349389281372765]
[null,null,null,null,null,null,null,null,null,null,null,null,null,null,null,null,null,null,null,null,null,null,null,null,null,null,null,null,null,null,null,null,null,null,null,null,null,null,null,null,177.17554932235083]
[null,null,null,null,null,null,null,null,null,null,null,null,null,null,null,null,null,null,null,null,null,null,null,null,null,null,null,null,null,null,null,null,null,null,null,null,null,null,null,null,194.16332677215459]
[null,null,null,null,null,null,null,null,null,null,null,null,null,null,null,null,null,null,null,null,null,null,null,null,null,null,null,null,null,null,null,null,null,null,null,null,null,null,null,null,135.27659185329156]
[null,null,null,null,null,null,null,null,null,null,null,null,null,null,null,null,null,null,null,null,null,null,null,null,null,null,null,null,null,null,null,null,null,null,null,null,null,null,null,null,279.25595844857287]
[null,null,null,null,null,null,null,null,null,null,null,null,null,null,null,null,null,null,null,null,null,null,null,null,null,null,null,null,null,null,null,null,null,null,null,null,null,null,null,null,304.04576806138112]
[null,null,null,null,null,null,null,null,null,null,null,null,null,null,null,null,null,null,null,null,null,null,null,null,null,null,null,null,null,null,null,null,null,null,null,null,null,null,null,null,80.152467886411472]
[null,null,null,null,null,null,null,null,null,null,null,null,null,null,null,null,null,null,null,null,null,null,null,null,null,null,null,null,null,null,null,null,null,null,null,null,null,null,null,null,178.46364813596284]
[null,null,null,null,null,null,null,null,null,null,null,null,null,null,null,null,null,null,null,null,null,null,null,null,null,null,null,null,null,null,null,null,null,null,null,null,null,null,null,null,195.20204877467003]
[null,null,null,null,null,null,null,null,null,null,null,null,null,null,null,null,null,null,null,null,null,null,null,null,null,null,null,null,null,null,null,null,null,null,null,null,null,null,null,null,137.37230756072611]
[null,null,null,null,null,null,null,null,null,null,null,null,null,null,null,null,null,null,null,null,null,null,null,null,null,null,null,null,null,null,null,null,null,null,null,null,null,null,null,null,279.83105485221131]
[null,null,null,null,null,null,null,null,null,null,null,null,null,null,null,null,null,null,null,null,null,null,null,null,null,null,null,null,null,null,null,null,null,null,null,null,null,null,null,null,304.39016251803082]
[null,null,null,null,null,null,null,null,null,null,null,null,null,null,null,null,null,null,null,null,null,null,null,null,null,null,null,null,null,null,null,null,null,null,null,null,null,null,null,null,45.792355767970356]
[null,null,null,null,null,null,null,null,null,null,null,null,null,null,null,null,null,null,null,null,null,null,null,null,null,null,null,null,null,null,null,null,null,null,null,null,null,null,null,null,168.8909148222011]
[null,null,null,null,null,null,null,null,null,null,null,null,null,null,null,null,null,null,null,null,null,null,null,null,null,null,null,null,null,null,null,null,null,null,null,null,null,null,null,null,189.88678174863767]
[null,null,null,null,null,null,null,null,null,null,null,null,null,null,null,null,null,null,null,null,null,null,null,null,null,null,null,null,null,null,null,null,null,null,null,null,null,null,null,null,106.1225467049847]
[null,null,null,null,null,null,null,null,null,null,null,null,null,null,null,null,null,null,null,null,null,null,null,null,null,null,null,null,null,null,null,null,null,null,null,null,null,null,null,null,271.55599254729509]
[null,null,null,null,null,null,null,null,null,null,null,null,null,null,null,null,null,null,null,null,null,null,null,null,null,null,null,null,null,null,null,null,null,null,null,null,null,null,null,null,300.10010401945954]
[null,null,null,null,null,null,null,null,null,null,null,null,null,null,null,null,null,null,null,null,null,null,null,null,null,null,null,null,null,null,null,null,null,null,null,null,null,null,null,null,144.20315102688443]
[null,null,null,null,null,null,null,null,null,null,null,null,null,null,null,null,null,null,null,null,null,null,null,null,null,null,null,null,null,null,null,null,null,null,null,null,null,null,null,null,335.89471975167629]
[null,null,null,null,null,null,null,null,null,null,null,null,null,null,null,null,null,null,null,null,null,null,null,null,null,null,null,null,null,null,null,null,null,null,null,null,null,null,null,null,368.42437833454386]
[null,null,null,null,null,null,null,null,null,null,null,null,null,null,null,null,null,null,null,null,null,null,null,null,null,null,null,null,null,null,null,null,null,null,null,null,null,null,null,null,50.973020970958579]
[null,null,null,null,null,null,null,null,null,null,null,null,null,null,null,null,null,null,null,null,null,null,null,null,null,null,null,null,null,null,null,null,null,null,null,null,null,null,null,null,170.40158976046934]
[null,null,null,null,null,null,null,null,null,null,null,null,null,null,null,null,null,null,null,null,null,null,null,null,null,null,null,null,null,null,null,null,null,null,null,null,null,null,null,null,191.04056673433624]
[null,null,null,null,null,null,null,null,null,null,null,null,null,null,null,null,null,null,null,null,null,null,null,null,null,null,null,null,null,null,null,null,null,null,null,null,null,null,null,null,108.63631417087954]
[null,null,null,null,null,null,null,null,null,null,null,null,null,null,null,null,null,null,null,null,null,null,null,null,null,null,null,null,null,null,null,null,null,null,null,null,null,null,null,null,272.22639320874111]
[null,null,null,null,null,null,null,null,null,null,null,null,null,null,null,null,null,null,null,null,null,null,null,null,null,null,null,null,null,null,null,null,null,null,null,null,null,null,null,null,300.49273261428954]
[null,null,null,null,null,null,null,null,null,null,null,null,null,null,null,null,null,null,null,null,null,null,null,null,null,null,null,null,null,null,null,null,null,null,null,null,null,null,null,null,145.38652269727743]
[null,null,null,null,null,null,null,null,null,null,null,null,null,null,null,null,null,null,null,null,null,null,null,null,null,null,null,null,null,null,null,null,null,null,null,null,null,null,null,null,336.20423492122814]
[null,null,null,null,null,null,null,null,null,null,null,null,null,null,null,null,null,null,null,null,null,null,null,null,null,null,null,null,null,null,null,null,null,null,null,null,null,null,null,null,368.55108693257108]
[null,null,null,null,null,null,null,null,null,null,null,null,null,null,null,null,null,null,null,null,null,null,null,null,null,null,null,null,null,null,null,null,null,null,null,null,null,null,null,null,17.435039669952005]
[null,null,null,null,null,null,null,null,null,null,null,null,null,null,null,null,null,null,null,null,null,null,null,null,null,null,null,null,null,null,null,null,null,null,null,null,null,null,null,null,160.60318993669105]
[null,null,null,null,null,null,null,null,null,null,null,null,null,null,null,null,null,null,null,null,null,null,null,null,null,null,null,null,null,null,null,null,null,null,null,null,null,null,null,null,185.61884332384122]
[null,null,null,null,null,null,null,null,null,null,null,null,null,null,null,null,null,null,null,null,null,null,null,null,null,null,null,null,null,null,null,null,null,null,null,null,null,null,null,null,78.352329163687756]
[null,null,null,null,null,null,null,null,null,null,null,null,null,null,null,null,null,null,null,null,null,null,null,null,null,null,null,null,null,null,null,null,null,null,null,null,null,null,null,null,263.84816091764401]
[null,null,null,null,null,null,null,null,null,null,null,null,null,null,null,null,null,null,null,null,null,null,null,null,null,null,null,null,null,null,null,null,null,null,null,null,null,null,null,null,296.15516123872118]
[null,null,null,null,null,null,null,null,null,null,null,null,null,null,null,null,null,null,null,null,null,null,null,null,null,null,null,null,null,null,null,null,null,null,null,null,null,null,null,null,116.00519370203199]
[null,null,null,null,null,null,null,null,null,null,null,null,null,null,null,null,null,null,null,null,null,null,null,null,null,null,null,null,null,null,null,null,null,null,null,null,null,null,null,null,328.52027815443699]
[null,null,null,null,null,null,null,null,null,null,null,null,null,null,null,null,null,null,null,null,null,null,null,null,null,null,null,null,null,null,null,null,null,null,null,null,null,null,null,null,364.66363824856666]
[null,null,null,null,null,null,null,null,null,null,null,null,null,null,null,null,null,null,null,null,null,null,null,null,null,null,null,null,null,null,null,null,null,null,null,null,null,null,null,null,24.054291540880275]
[null,null,null,null,null,null,null,null,null,null,null,null,null,null,null,null,null,null,null,null,null,null,null,null,null,null,null,null,null,null,null,null,null,null,null,null,null,null,null,null,162.36289809509648]
[null,null,null,null,null,null,null,null,null,null,null,null,null,null,null,null,null,null,null,null,null,null,null,null,null,null,null,null,null,null,null,null,null,null,null,null,null,null,null,null,186.87963321950818]
[null,null,null,null,null,null,null,null,null,null,null,null,null,null,null,null,null,null,null,null,null,null,null,null,null,null,null,null,null,null,null,null,null,null,null,null,null,null,null,null,81.187502751506898]
[null,null,null,null,null,null,null,null,null,null,null,null,null,null,null,null,null,null,null,null,null,null,null,null,null,null,null,null,null,null,null,null,null,null,null,null,null,null,null,null,264.6167363107881]
[null,null,null,null,null,null,null,null,null,null,null,null,null,null,null,null,null,null,null,null,null,null,null,null,null,null,null,null,null,null,null,null,null,null,null,null,null,null,null,null,296.59384646104036]
[null,null,null,null,null,null,null,null,null,null,null,null,null,null,null,null,null,null,null,null,null,null,null,null,null,null,null,null,null,null,null,null,null,null,null,null,null,null,null,null,117.21794913175538]
[null,null,null,null,null,null,null,null,null,null,null,null,null,null,null,null,null,null,null,null,null,null,null,null,null,null,null,null,null,null,null,null,null,null,null,null,null,null,null,null,328.8793720313941]
[null,null,null,null,null,null,null,null,null,null,null,null,null,null,null,null,null,null,null,null,null,null,null,null,null,null,null,null,null,null,null,null,null,null,null,null,null,null,null,null,364.81449491052939]
[null,null,null,null,null,null,null,null,null,null,null,null,null,null,null,null,null,null,null,null,null,null,null,null,null,null,null,null,null,null,null,null,null,null,null,null,null,null,null,null,81.596538958074987]
[null,null,null,null,null,null,null,null,null,null,null,null,null,null,null,null,null,null,null,null,null,null,null,null,null,null,null,null,null,null,null,null,null,null,null,null,null,null,null,null,143.60423336012178]
[null,null,null,null,null,null,null,null,null,null,null,null,null,null,null,null,null,null,null,null,null,null,null,null,null,null,null,null,null,null,null,null,null,null,null,null,null,null,null,null,273.05161470734504]
[null,null,null,null,null,null,null,null,null,null,null,null,null,null,null,null,null,null,null,null,null,null,null,null,null,null,null,null,null,null,null,null,null,null,null,null,null,null,null,null,85.420016140926123]
[null,null,null,null,null,null,null,null,null,null,null,null,null,null,null,null,null,null,null,null,null,null,null,null,null,null,null,null,null,null,null,null,null,null,null,null,null,null,null,null,145.67413375746759]
[null,null,null,null,null,null,null,null,null,null,null,null,null,null,null,null,null,null,null,null,null,null,null,null,null,null,null,null,null,null,null,null,null,null,null,null,null,null,null,null,274.82380228442173]
[null,null,null,null,null,null,null,null,null,null,null,null,null,null,null,null,null,null,null,null,null,null,null,null,null,null,null,null,null,null,null,null,null,null,null,null,null,null,null,null,52.281233022142914]
[null,null,null,null,null,null,null,null,null,null,null,null,null,null,null,null,null,null,null,null,null,null,null,null,null,null,null,null,null,null,null,null,null,null,null,null,null,null,null,null,115.62668731926777]
[null,null,null,null,null,null,null,null,null,null,null,null,null,null,null,null,null,null,null,null,null,null,null,null,null,null,null,null,null,null,null,null,null,null,null,null,null,null,null,null,265.85327294462456]
[null,null,null,null,null,null,null,null,null,null,null,null,null,null,null,null,null,null,null,null,null,null,null,null,null,null,null,null,null,null,null,null,null,null,null,null,null,null,null,null,155.68828678878788]
[null,null,null,null,null,null,null,null,null,null,null,null,null,null,null,null,null,null,null,null,null,null,null,null,null,null,null,null,null,null,null,null,null,null,null,null,null,null,null,null,335.24253196349014]
[null,null,null,null,null,null,null,null,null,null,null,null,null,null,null,null,null,null,null,null,null,null,null,null,null,null,null,null,null,null,null,null,null,null,null,null,null,null,null,null,57.386696436761227]
[null,null,null,null,null,null,null,null,null,null,null,null,null,null,null,null,null,null,null,null,null,null,null,null,null,null,null,null,null,null,null,null,null,null,null,null,null,null,null,null,118.10946959913484]
[null,null,null,null,null,null,null,null,null,null,null,null,null,null,null,null,null,null,null,null,null,null,null,null,null,null,null,null,null,null,null,null,null,null,null,null,null,null,null,null,267.71455011139369]
[null,null,null,null,null,null,null,null,null,null,null,null,null,null,null,null,null,null,null,null,null,null,null,null,null,null,null,null,null,null,null,null,null,null,null,null,null,null,null,null,156.8890657374298]
[null,null,null,null,null,null,null,null,null,null,null,null,null,null,null,null,null,null,null,null,null,null,null,null,null,null,null,null,null,null,null,null,null,null,null,null,null,null,null,null,336.10166014784897]
[null,null,null,null,null,null,null,null,null,null,null,null,null,null,null,null,null,null,null,null,null,null,null,null,null,null,null,null,null,null,null,null,null,null,null,null,null,null,null,null,24.75358086806682]
[null,null,null,null,null,null,null,null,null,null,null,null,null,null,null,null,null,null,null,null,null,null,null,null,null,null,null,null,null,null,null,null,null,null,null,null,null,null,null,null,88.797544462850681]
[null,null,null,null,null,null,null,null,null,null,null,null,null,null,null,null,null,null,null,null,null,null,null,null,null,null,null,null,null,null,null,null,null,null,null,null,null,null,null,null,258.62703340750488]
[null,null,null,null,null,null,null,null,null,null,null,null,null,null,null,null,null,null,null,null,null,null,null,null,null,null,null,null,null,null,null,null,null,null,null,null,null,null,null,null,128.62547435703868]
[null,null,null,null,null,null,null,null,null,null,null,null,null,null,null,null,null,null,null,null,null,null,null,null,null,null,null,null,null,null,null,null,null,null,null,null,null,null,null,null,328.33618613467883]
[null,null,null,null,null,null,null,null,null,null,null,null,null,null,null,null,null,null,null,null,null,null,null,null,null,null,null,null,null,null,null,null,null,null,null,null,null,null,null,null,31.248013300731202]
[null,null,null,null,null,null,null,null,null,null,null,null,null,null,null,null,null,null,null,null,null,null,null,null,null,null,null,null,null,null,null,null,null,null,null,null,null,null,null,null,91.628938754328672]
[null,null,null,null,null,null,null,null,null,null,null,null,null,null,null,null,null,null,null,null,null,null,null,null,null,null,null,null,null,null,null,null,null,null,null,null,null,null,null,null,260.58610431099999]
[null,null,null,null,null,null,null,null,null,null,null,null,null,null,null,null,null,null,null,null,null,null,null,null,null,null,null,null,null,null,null,null,null,null,null,null,null,null,null,null,129.89220467795224]
[null,null,null,null,null,null,null,null,null,null,null,null,null,null,null,null,null,null,null,null,null,null,null,null,null,null,null,null,null,null,null,null,null,null,null,null,null,null,null,null,329.2449070484335]
[null,null,null,null,null,null,null,null,null,null,null,null,null,null,null,null,null,null,null,null,null,null,null,null,null,null,null,null,null,null,null,null,null,null,null,null,null,null,null,null,82.299772022796574]
[null,null,null,null,null,null,null,null,null,null,null,null,null,null,null,null,null,null,null,null,null,null,null,null,null,null,null,null,null,null,null,null,null,null,null,null,null,null,null,null,176.39982817499086]
[null,null,null,null,null,null,null,null,null,null,null,null,null,null,null,null,null,null,null,null,null,null,null,null,null,null,null,null,null,null,null,null,null,null,null,null,null,null,null,null,143.86692394152777]
[null,null,null,null,null,null,null,null,null,null,null,null,null,null,null,null,null,null,null,null,null,null,null,null,null,null,null,null,null,null,null,null,null,null,null,null,null,null,null,null,281.3040780554694]
[null,null,null,null,null,null,null,null,null,null,null,null,null,null,null,null,null,null,null,null,null,null,null,null,null,null,null,null,null,null,null,null,null,null,null,null,null,null,null,null,301.20016650477652]
[null,null,null,null,null,null,null,null,null,null,null,null,null,null,null,null,null,null,null,null,null,null,null,null,null,null,null,null,null,null,null,null,null,null,null,null,null,null,null,null,85.967233476020709]
[null,null,null,null,null,null,null,null,null,null,null,null,null,null,null,null,null,null,null,null,null,null,null,null,null,null,null,null,null,null,null,null,null,null,null,null,null,null,null,null,178.24843981353823]
[null,null,null,null,null,null,null,null,null,null,null,null,null,null,null,null,null,null,null,null,null,null,null,null,null,null,null,null,null,null,null,null,null,null,null,null,null,null,null,null,145.896120027461]
[null,null,null,null,null,null,null,null,null,null,null,null,null,null,null,null,null,null,null,null,null,null,null,null,null,null,null,null,null,null,null,null,null,null,null,null,null,null,null,null,282.01432879726724]
[null,null,null,null,null,null,null,null,null,null,null,null,null,null,null,null,null,null,null,null,null,null,null,null,null,null,null,null,null,null,null,null,null,null,null,null,null,null,null,null,302.15594481053284]
[null,null,null,null,null,null,null,null,null,null,null,null,null,null,null,null,null,null,null,null,null,null,null,null,null,null,null,null,null,null,null,null,null,null,null,null,null,null,null,null,52.941620573312449]
[null,null,null,null,null,null,null,null,null,null,null,null,null,null,null,null,null,null,null,null,null,null,null,null,null,null,null,null,null,null,null,null,null,null,null,null,null,null,null,null,168.6330114415866]
[null,null,null,null,null,null,null,null,null,null,null,null,null,null,null,null,null,null,null,null,null,null,null,null,null,null,null,null,null,null,null,null,null,null,null,null,null,null,null,null,115.87766728524463]
[null,null,null,null,null,null,null,null,null,null,null,null,null,null,null,null,null,null,null,null,null,null,null,null,null,null,null,null,null,null,null,null,null,null,null,null,null,null,null,null,274.08755154619325]
[null,null,null,null,null,null,null,null,null,null,null,null,null,null,null,null,null,null,null,null,null,null,null,null,null,null,null,null,null,null,null,null,null,null,null,null,null,null,null,null,297.50668369843692]
[null,null,null,null,null,null,null,null,null,null,null,null,null,null,null,null,null,null,null,null,null,null,null,null,null,null,null,null,null,null,null,null,null,null,null,null,null,null,null,null,155.8153835769466]
[null,null,null,null,null,null,null,null,null,null,null,null,null,null,null,null,null,null,null,null,null,null,null,null,null,null,null,null,null,null,null,null,null,null,null,null,null,null,null,null,339.51439750486077]
[null,null,null,null,null,null,null,null,null,null,null,null,null,null,null,null,null,null,null,null,null,null,null,null,null,null,null,null,null,null,null,null,null,null,null,null,null,null,null,null,368.36349779732103]
[null,null,null,null,null,null,null,null,null,null,null,null,null,null,null,null,null,null,null,null,null,null,null,null,null,null,null,null,null,null,null,null,null,null,null,null,null,null,null,null,57.894133743622618]
[null,null,null,null,null,null,null,null,null,null,null,null,null,null,null,null,null,null,null,null,null,null,null,null,null,null,null,null,null,null,null,null,null,null,null,null,null,null,null,null,170.70139946993905]
[null,null,null,null,null,null,null,null,null,null,null,null,null,null,null,null,null,null,null,null,null,null,null,null,null,null,null,null,null,null,null,null,null,null,null,null,null,null,null,null,118.32164657093351]
[null,null,null,null,null,null,null,null,null,null,null,null,null,null,null,null,null,null,null,null,null,null,null,null,null,null,null,null,null,null,null,null,null,null,null,null,null,null,null,null,274.88352701977124]
[null,null,null,null,null,null,null,null,null,null,null,null,null,null,null,null,null,null,null,null,null,null,null,null,null,null,null,null,null,null,null,null,null,null,null,null,null,null,null,null,298.50591764265153]
[null,null,null,null,null,null,null,null,null,null,null,null,null,null,null,null,null,null,null,null,null,null,null,null,null,null,null,null,null,null,null,null,null,null,null,null,null,null,null,null,156.99975073739557]
[null,null,null,null,null,null,null,null,null,null,null,null,null,null,null,null,null,null,null,null,null,null,null,null,null,null,null,null,null,null,null,null,null,null,null,null,null,null,null,null,339.86917296338606]
[null,null,null,null,null,null,null,null,null,null,null,null,null,null,null,null,null,null,null,null,null,null,null,null,null,null,null,null,null,null,null,null,null,null,null,null,null,null,null,null,368.75815056559384]
[null,null,null,null,null,null,null,null,null,null,null,null,null,null,null,null,null,null,null,null,null,null,null,null,null,null,null,null,null,null,null,null,null,null,null,null,null,null,null,null,25.399729225712111]
[null,null,null,null,null,null,null,null,null,null,null,null,null,null,null,null,null,null,null,null,null,null,null,null,null,null,null,null,null,null,null,null,null,null,null,null,null,null,null,null,160.86601587614552]
[null,null,null,null,null,null,null,null,null,null,null,null,null,null,null,null,null,null,null,null,null,null,null,null,null,null,null,null,null,null,null,null,null,null,null,null,null,null,null,null,89.033869540613949]
[null,null,null,null,null,null,null,null,null,null,null,null,null,null,null,null,null,null,null,null,null,null,null,null,null,null,null,null,null,null,null,null,null,null,null,null,null,null,null,null,266.86367146944303]
[null,null,null,null,null,null,null,null,null,null,null,null,null,null,null,null,null,null,null,null,null,null,null,null,null,null,null,null,null,null,null,null,null,null,null,null,null,null,null,null,293.82317040296357]
[null,null,null,null,null,null,null,null,null,null,null,null,null,null,null,null,null,null,null,null,null,null,null,null,null,null,null,null,null,null,null,null,null,null,null,null,null,null,null,null,128.74792233280183]
[null,null,null,null,null,null,null,null,null,null,null,null,null,null,null,null,null,null,null,null,null,null,null,null,null,null,null,null,null,null,null,null,null,null,null,null,null,null,null,null,332.60494922731817]
[null,null,null,null,null,null,null,null,null,null,null,null,null,null,null,null,null,null,null,null,null,null,null,null,null,null,null,null,null,null,null,null,null,null,null,null,null,null,null,null,364.84653095441388]
[null,null,null,null,null,null,null,null,null,null,null,null,null,null,null,null,null,null,null,null,null,null,null,null,null,null,null,null,null,null,null,null,null,null,null,null,null,null,null,null,31.718369663383065]
[null,null,null,null,null,null,null,null,null,null,null,null,null,null,null,null,null,null,null,null,null,null,null,null,null,null,null,null,null,null,null,null,null,null,null,null,null,null,null,null,163.15870434112875]
[null,null,null,null,null,null,null,null,null,null,null,null,null,null,null,null,null,null,null,null,null,null,null,null,null,null,null,null,null,null,null,null,null,null,null,null,null,null,null,null,91.829329455413585]
[null,null,null,null,null,null,null,null,null,null,null,null,null,null,null,null,null,null,null,null,null,null,null,null,null,null,null,null,null,null,null,null,null,null,null,null,null,null,null,null,267.75433230275985]
[null,null,null,null,null,null,null,null,null,null,null,null,null,null,null,null,null,null,null,null,null,null,null,null,null,null,null,null,null,null,null,null,null,null,null,null,null,null,null,null,294.86450584909591]
[null,null,null,null,null,null,null,null,null,null,null,null,null,null,null,null,null,null,null,null,null,null,null,null,null,null,null,null,null,null,null,null,null,null,null,null,null,null,null,null,129.99908645160144]
[null,null,null,null,null,null,null,null,null,null,null,null,null,null,null,null,null,null,null,null,null,null,null,null,null,null,null,null,null,null,null,null,null,null,null,null,null,null,null,null,333.00692245621411]
[null,null,null,null,null,null,null,null,null,null,null,null,null,null,null,null,null,null,null,null,null,null,null,null,null,null,null,null,null,null,null,null,null,null,null,null,null,null,null,null,365.26265519060928]
[null,null,null,null,null,null,null,null,null,null,null,null,null,null,null,null,null,null,null,null,null,null,null,null,null,null,null,null,null,null,null,null,null,null,null,null,null,null,null,null,76.349389281372765]
[null,null,null,null,null,null,null,null,null,null,null,null,null,null,null,null,null,null,null,null,null,null,null,null,null,null,null,null,null,null,null,null,null,null,null,null,null,null,null,null,177.17554932235083]
[null,null,null,null,null,null,null,null,null,null,null,null,null,null,null,null,null,null,null,null,null,null,null,null,null,null,null,null,null,null,null,null,null,null,null,null,null,null,null,null,194.16332677215459]
[null,null,null,null,null,null,null,null,null,null,null,null,null,null,null,null,null,null,null,null,null,null,null,null,null,null,null,null,null,null,null,null,null,null,null,null,null,null,null,null,135.27659185329156]
[null,null,null,null,null,null,null,null,null,null,null,null,null,null,null,null,null,null,null,null,null,null,null,null,null,null,null,null,null,null,null,null,null,null,null,null,null,null,null,null,279.25595844857287]
[null,null,null,null,null,null,null,null,null,null,null,null,null,null,null,null,null,null,null,null,null,null,null,null,null,null,null,null,null,null,null,null,null,null,null,null,null,null,null,null,304.04576806138112]
[null,null,null,null,null,null,null,null,null,null,null,null,null,null,null,null,null,null,null,null,null,null,null,null,null,null,null,null,null,null,null,null,null,null,null,null,null,null,null,null,80.152467886411472]
[null,null,null,null,null,null,null,null,null,null,null,null,null,null,null,null,null,null,null,null,null,null,null,null,null,null,null,null,null,null,null,null,null,null,null,null,null,null,null,null,178.46364813596284]
[null,null,null,null,null,null,null,null,null,null,null,null,null,null,null,null,null,null,null,null,null,null,null,null,null,null,null,null,null,null,null,null,null,null,null,null,null,null,null,null,195.20204877467003]
[null,null,null,null,null,null,null,null,null,null,null,null,null,null,null,null,null,null,null,null,null,null,null,null,null,null,null,null,null,null,null,null,null,null,null,null,null,null,null,null,137.37230756072611]
[null,null,null,null,null,null,null,null,null,null,null,null,null,null,null,null,null,null,null,null,null,null,null,null,null,null,null,null,null,null,null,null,null,null,null,null,null,null,null,null,279.83105485221131]
[null,null,null,null,null,null,null,null,null,null,null,null,null,null,null,null,null,null,null,null,null,null,null,null,null,null,null,null,null,null,null,null,null,null,null,null,null,null,null,null,304.39016251803082]
[null,null,null,null,null,null,null,null,null,null,null,null,null,null,null,null,null,null,null,null,null,null,null,null,null,null,null,null,null,null,null,null,null,null,null,null,null,null,null,null,45.792355767970356]
[null,null,null,null,null,null,null,null,null,null,null,null,null,null,null,null,null,null,null,null,null,null,null,null,null,null,null,null,null,null,null,null,null,null,null,null,null,null,null,null,168.8909148222011]
[null,null,null,null,null,null,null,null,null,null,null,null,null,null,null,null,null,null,null,null,null,null,null,null,null,null,null,null,null,null,null,null,null,null,null,null,null,null,null,null,189.88678174863767]
[null,null,null,null,null,null,null,null,null,null,null,null,null,null,null,null,null,null,null,null,null,null,null,null,null,null,null,null,null,null,null,null,null,null,null,null,null,null,null,null,106.1225467049847]
[null,null,null,null,null,null,null,null,null,null,null,null,null,null,null,null,null,null,null,null,null,null,null,null,null,null,null,null,null,null,null,null,null,null,null,null,null,null,null,null,271.55599254729509]
[null,null,null,null,null,null,null,null,null,null,null,null,null,null,null,null,null,null,null,null,null,null,null,null,null,null,null,null,null,null,null,null,null,null,null,null,null,null,null,null,300.10010401945954]
[null,null,null,null,null,null,null,null,null,null,null,null,null,null,null,null,null,null,null,null,null,null,null,null,null,null,null,null,null,null,null,null,null,null,null,null,null,null,null,null,144.20315102688443]
[null,null,null,null,null,null,null,null,null,null,null,null,null,null,null,null,null,null,null,null,null,null,null,null,null,null,null,null,null,null,null,null,null,null,null,null,null,null,null,null,335.89471975167629]
[null,null,null,null,null,null,null,null,null,null,null,null,null,null,null,null,null,null,null,null,null,null,null,null,null,null,null,null,null,null,null,null,null,null,null,null,null,null,null,null,368.42437833454386]
[null,null,null,null,null,null,null,null,null,null,null,null,null,null,null,null,null,null,null,null,null,null,null,null,null,null,null,null,null,null,null,null,null,null,null,null,null,null,null,null,50.973020970958579]
[null,null,null,null,null,null,null,null,null,null,null,null,null,null,null,null,null,null,null,null,null,null,null,null,null,null,null,null,null,null,null,null,null,null,null,null,null,null,null,null,170.40158976046934]
[null,null,null,null,null,null,null,null,null,null,null,null,null,null,null,null,null,null,null,null,null,null,null,null,null,null,null,null,null,null,null,null,null,null,null,null,null,null,null,null,191.04056673433624]
[null,null,null,null,null,null,null,null,null,null,null,null,null,null,null,null,null,null,null,null,null,null,null,null,null,null,null,null,null,null,null,null,null,null,null,null,null,null,null,null,108.63631417087954]
[null,null,null,null,null,null,null,null,null,null,null,null,null,null,null,null,null,null,null,null,null,null,null,null,null,null,null,null,null,null,null,null,null,null,null,null,null,null,null,null,272.22639320874111]
[null,null,null,null,null,null,null,null,null,null,null,null,null,null,null,null,null,null,null,null,null,null,null,null,null,null,null,null,null,null,null,null,null,null,null,null,null,null,null,null,300.49273261428954]
[null,null,null,null,null,null,null,null,null,null,null,null,null,null,null,null,null,null,null,null,null,null,null,null,null,null,null,null,null,null,null,null,null,null,null,null,null,null,null,null,145.38652269727743]
[null,null,null,null,null,null,null,null,null,null,null,null,null,null,null,null,null,null,null,null,null,null,null,null,null,null,null,null,null,null,null,null,null,null,null,null,null,null,null,null,336.20423492122814]
[null,null,null,null,null,null,null,null,null,null,null,null,null,null,null,null,null,null,null,null,null,null,null,null,null,null,null,null,null,null,null,null,null,null,null,null,null,null,null,null,368.55108693257108]
[null,null,null,null,null,null,null,null,null,null,null,null,null,null,null,null,null,null,null,null,null,null,null,null,null,null,null,null,null,null,null,null,null,null,null,null,null,null,null,null,17.435039669952005]
[null,null,null,null,null,null,null,null,null,null,null,null,null,null,null,null,null,null,null,null,null,null,null,null,null,null,null,null,null,null,null,null,null,null,null,null,null,null,null,null,160.60318993669105]
[null,null,null,null,null,null,null,null,null,null,null,null,null,null,null,null,null,null,null,null,null,null,null,null,null,null,null,null,null,null,null,null,null,null,null,null,null,null,null,null,185.61884332384122]
[null,null,null,null,null,null,null,null,null,null,null,null,null,null,null,null,null,null,null,null,null,null,null,null,null,null,null,null,null,null,null,null,null,null,null,null,null,null,null,null,78.352329163687756]
[null,null,null,null,null,null,null,null,null,null,null,null,null,null,null,null,null,null,null,null,null,null,null,null,null,null,null,null,null,null,null,null,null,null,null,null,null,null,null,null,263.84816091764401]
[null,null,null,null,null,null,null,null,null,null,null,null,null,null,null,null,null,null,null,null,null,null,null,null,null,null,null,null,null,null,null,null,null,null,null,null,null,null,null,null,296.15516123872118]
[null,null,null,null,null,null,null,null,null,null,null,null,null,null,null,null,null,null,null,null,null,null,null,null,null,null,null,null,null,null,null,null,null,null,null,null,null,null,null,null,116.00519370203199]
[null,null,null,null,null,null,null,null,null,null,null,null,null,null,null,null,null,null,null,null,null,null,null,null,null,null,null,null,null,null,null,null,null,null,null,null,null,null,null,null,328.52027815443699]
[null,null,null,null,null,null,null,null,null,null,null,null,null,null,null,null,null,null,null,null,null,null,null,null,null,null,null,null,null,null,null,null,null,null,null,null,null,null,null,null,364.66363824856666]
[null,null,null,null,null,null,null,null,null,null,null,null,null,null,null,null,null,null,null,null,null,null,null,null,null,null,null,null,null,null,null,null,null,null,null,null,null,null,null,null,24.054291540880275]
[null,null,null,null,null,null,null,null,null,null,null,null,null,null,null,null,null,null,null,null,null,null,null,null,null,null,null,null,null,null,null,null,null,null,null,null,null,null,null,null,162.36289809509648]
[null,null,null,null,null,null,null,null,null,null,null,null,null,null,null,null,null,null,null,null,null,null,null,null,null,null,null,null,null,null,null,null,null,null,null,null,null,null,null,null,186.87963321950818]
[null,null,null,null,null,null,null,null,null,null,null,null,null,null,null,null,null,null,null,null,null,null,null,null,null,null,null,null,null,null,null,null,null,null,null,null,null,null,null,null,81.187502751506898]
[null,null,null,null,null,null,null,null,null,null,null,null,null,null,null,null,null,null,null,null,null,null,null,null,null,null,null,null,null,null,null,null,null,null,null,null,null,null,null,null,264.6167363107881]
[null,null,null,null,null,null,null,null,null,null,null,null,null,null,null,null,null,null,null,null,null,null,null,null,null,null,null,null,null,null,null,null,null,null,null,null,null,null,null,null,296.59384646104036]
[null,null,null,null,null,null,null,null,null,null,null,null,null,null,null,null,null,null,null,null,null,null,null,null,null,null,null,null,null,null,null,null,null,null,null,null,null,null,null,null,117.21794913175538]
[null,null,null,null,null,null,null,null,null,null,null,null,null,null,null,null,null,null,null,null,null,null,null,null,null,null,null,null,null,null,null,null,null,null,null,null,null,null,null,null,328.8793720313941]
[null,null,null,null,null,null,null,null,null,null,null,null,null,null,null,null,null,null,null,null,null,null,null,null,null,null,null,null,null,null,null,null,null,null,null,null,null,null,null,null,364.81449491052939]
[null,null,null,null,null,null,null,null,null,null,null,null,null,null,null,null,null,null,null,null,null,null,null,null,null,null,null,null,null,null,null,null,null,null,null,null,null,null,null,null,67.4938335669693]
[null,null,null,null,null,null,null,null,null,null,null,null,null,null,null,null,null,null,null,null,null,null,null,null,null,null,null,null,null,null,null,null,null,null,null,null,null,null,null,null,127.2931902692042]
[null,null,null,null,null,null,null,null,null,null,null,null,null,null,null,null,null,null,null,null,null,null,null,null,null,null,null,null,null,null,null,null,null,null,null,null,null,null,null,null,240.4712631302956]
[null,null,null,null,null,null,null,null,null,null,null,null,null,null,null,null,null,null,null,null,null,null,null,null,null,null,null,null,null,null,null,null,null,null,null,null,null,null,null,null,71.328668060326805]
[null,null,null,null,null,null,null,null,null,null,null,null,null,null,null,null,null,null,null,null,null,null,null,null,null,null,null,null,null,null,null,null,null,null,null,null,null,null,null,null,129.29448959582223]
[null,null,null,null,null,null,null,null,null,null,null,null,null,null,null,null,null,null,null,null,null,null,null,null,null,null,null,null,null,null,null,null,null,null,null,null,null,null,null,null,242.35545146340866]
[null,null,null,null,null,null,null,null,null,null,null,null,null,null,null,null,null,null,null,null,null,null,null,null,null,null,null,null,null,null,null,null,null,null,null,null,null,null,null,null,309.01135536879582]
[null,null,null,null,null,null,null,null,null,null,null,null,null,null,null,null,null,null,null,null,null,null,null,null,null,null,null,null,null,null,null,null,null,null,null,null,null,null,null,null,38.928980981666108]
[null,null,null,null,null,null,null,null,null,null,null,null,null,null,null,null,null,null,null,null,null,null,null,null,null,null,null,null,null,null,null,null,null,null,null,null,null,null,null,null,99.917383494719786]
[null,null,null,null,null,null,null,null,null,null,null,null,null,null,null,null,null,null,null,null,null,null,null,null,null,null,null,null,null,null,null,null,null,null,null,null,null,null,null,null,233.28398888376492]
[null,null,null,null,null,null,null,null,null,null,null,null,null,null,null,null,null,null,null,null,null,null,null,null,null,null,null,null,null,null,null,null,null,null,null,null,null,null,null,null,138.05318464394895]
[null,null,null,null,null,null,null,null,null,null,null,null,null,null,null,null,null,null,null,null,null,null,null,null,null,null,null,null,null,null,null,null,null,null,null,null,null,null,null,null,301.24774152620381]
[null,null,null,null,null,null,null,null,null,null,null,null,null,null,null,null,null,null,null,null,null,null,null,null,null,null,null,null,null,null,null,null,null,null,null,null,null,null,null,null,44.149269498339073]
[null,null,null,null,null,null,null,null,null,null,null,null,null,null,null,null,null,null,null,null,null,null,null,null,null,null,null,null,null,null,null,null,null,null,null,null,null,null,null,null,102.31428195813315]
[null,null,null,null,null,null,null,null,null,null,null,null,null,null,null,null,null,null,null,null,null,null,null,null,null,null,null,null,null,null,null,null,null,null,null,null,null,null,null,null,235.27132770026475]
[null,null,null,null,null,null,null,null,null,null,null,null,null,null,null,null,null,null,null,null,null,null,null,null,null,null,null,null,null,null,null,null,null,null,null,null,null,null,null,null,139.11495613246336]
[null,null,null,null,null,null,null,null,null,null,null,null,null,null,null,null,null,null,null,null,null,null,null,null,null,null,null,null,null,null,null,null,null,null,null,null,null,null,null,null,302.14160940509362]
[null,null,null,null,null,null,null,null,null,null,null,null,null,null,null,null,null,null,null,null,null,null,null,null,null,null,null,null,null,null,null,null,null,null,null,null,null,null,null,null,12.478264286899321]
[null,null,null,null,null,null,null,null,null,null,null,null,null,null,null,null,null,null,null,null,null,null,null,null,null,null,null,null,null,null,null,null,null,null,null,null,null,null,null,null,73.840503626792497]
[null,null,null,null,null,null,null,null,null,null,null,null,null,null,null,null,null,null,null,null,null,null,null,null,null,null,null,null,null,null,null,null,null,null,null,null,null,null,null,null,226.08668868273148]
[null,null,null,null,null,null,null,null,null,null,null,null,null,null,null,null,null,null,null,null,null,null,null,null,null,null,null,null,null,null,null,null,null,null,null,null,null,null,null,null,111.47148731622629]
[null,null,null,null,null,null,null,null,null,null,null,null,null,null,null,null,null,null,null,null,null,null,null,null,null,null,null,null,null,null,null,null,null,null,null,null,null,null,null,null,294.33374642718138]
[null,null,null,null,null,null,null,null,null,null,null,null,null,null,null,null,null,null,null,null,null,null,null,null,null,null,null,null,null,null,null,null,null,null,null,null,null,null,null,null,19.138743981125195]
[null,null,null,null,null,null,null,null,null,null,null,null,null,null,null,null,null,null,null,null,null,null,null,null,null,null,null,null,null,null,null,null,null,null,null,null,null,null,null,null,76.533672451922328]
[null,null,null,null,null,null,null,null,null,null,null,null,null,null,null,null,null,null,null,null,null,null,null,null,null,null,null,null,null,null,null,null,null,null,null,null,null,null,null,null,228.18121965458121]
[null,null,null,null,null,null,null,null,null,null,null,null,null,null,null,null,null,null,null,null,null,null,null,null,null,null,null,null,null,null,null,null,null,null,null,null,null,null,null,null,112.54904135228377]
[null,null,null,null,null,null,null,null,null,null,null,null,null,null,null,null,null,null,null,null,null,null,null,null,null,null,null,null,null,null,null,null,null,null,null,null,null,null,null,null,295.27465308939765]
[null,null,null,null,null,null,null,null,null,null,null,null,null,null,null,null,null,null,null,null,null,null,null,null,null,null,null,null,null,null,null,null,null,null,null,null,null,null,null,null,68.225915051991791]
[null,null,null,null,null,null,null,null,null,null,null,null,null,null,null,null,null,null,null,null,null,null,null,null,null,null,null,null,null,null,null,null,null,null,null,null,null,null,null,null,147.05585454788468]
[null,null,null,null,null,null,null,null,null,null,null,null,null,null,null,null,null,null,null,null,null,null,null,null,null,null,null,null,null,null,null,null,null,null,null,null,null,null,null,null,127.56595539729027]
[null,null,null,null,null,null,null,null,null,null,null,null,null,null,null,null,null,null,null,null,null,null,null,null,null,null,null,null,null,null,null,null,null,null,null,null,null,null,null,null,249.25427695665581]
[null,null,null,null,null,null,null,null,null,null,null,null,null,null,null,null,null,null,null,null,null,null,null,null,null,null,null,null,null,null,null,null,null,null,null,null,null,null,null,null,266.38436576333561]
[null,null,null,null,null,null,null,null,null,null,null,null,null,null,null,null,null,null,null,null,null,null,null,null,null,null,null,null,null,null,null,null,null,null,null,null,null,null,null,null,71.900940958238621]
[null,null,null,null,null,null,null,null,null,null,null,null,null,null,null,null,null,null,null,null,null,null,null,null,null,null,null,null,null,null,null,null,null,null,null,null,null,null,null,null,149.03959601098924]
[null,null,null,null,null,null,null,null,null,null,null,null,null,null,null,null,null,null,null,null,null,null,null,null,null,null,null,null,null,null,null,null,null,null,null,null,null,null,null,null,129.52440013700101]
[null,null,null,null,null,null,null,null,null,null,null,null,null,null,null,null,null,null,null,null,null,null,null,null,null,null,null,null,null,null,null,null,null,null,null,null,null,null,null,null,249.9842398997003]
[null,null,null,null,null,null,null,null,null,null,null,null,null,null,null,null,null,null,null,null,null,null,null,null,null,null,null,null,null,null,null,null,null,null,null,null,null,null,null,null,267.40189888508348]
[null,null,null,null,null,null,null,null,null,null,null,null,null,null,null,null,null,null,null,null,null,null,null,null,null,null,null,null,null,null,null,null,null,null,null,null,null,null,null,null,313.03825292314718]
[null,null,null,null,null,null,null,null,null,null,null,null,null,null,null,null,null,null,null,null,null,null,null,null,null,null,null,null,null,null,null,null,null,null,null,null,null,null,null,null,336.04272698226339]
[null,null,null,null,null,null,null,null,null,null,null,null,null,null,null,null,null,null,null,null,null,null,null,null,null,null,null,null,null,null,null,null,null,null,null,null,null,null,null,null,39.609251653796584]
[null,null,null,null,null,null,null,null,null,null,null,null,null,null,null,null,null,null,null,null,null,null,null,null,null,null,null,null,null,null,null,null,null,null,null,null,null,null,null,null,139.35379439325925]
[null,null,null,null,null,null,null,null,null,null,null,null,null,null,null,null,null,null,null,null,null,null,null,null,null,null,null,null,null,null,null,null,null,null,null,null,null,null,null,null,100.17586420815223]
[null,null,null,null,null,null,null,null,null,null,null,null,null,null,null,null,null,null,null,null,null,null,null,null,null,null,null,null,null,null,null,null,null,null,null,null,null,null,null,null,242.04339025650742]
[null,null,null,null,null,null,null,null,null,null,null,null,null,null,null,null,null,null,null,null,null,null,null,null,null,null,null,null,null,null,null,null,null,null,null,null,null,null,null,null,262.68657422577894]
[null,null,null,null,null,null,null,null,null,null,null,null,null,null,null,null,null,null,null,null,null,null,null,null,null,null,null,null,null,null,null,null,null,null,null,null,null,null,null,null,138.18482306667846]
[null,null,null,null,null,null,null,null,null,null,null,null,null,null,null,null,null,null,null,null,null,null,null,null,null,null,null,null,null,null,null,null,null,null,null,null,null,null,null,null,305.81763993543126]
[null,null,null,null,null,null,null,null,null,null,null,null,null,null,null,null,null,null,null,null,null,null,null,null,null,null,null,null,null,null,null,null,null,null,null,null,null,null,null,null,332.12912112069642]
[null,null,null,null,null,null,null,null,null,null,null,null,null,null,null,null,null,null,null,null,null,null,null,null,null,null,null,null,null,null,null,null,null,null,null,null,null,null,null,null,44.667457783313623]
[null,null,null,null,null,null,null,null,null,null,null,null,null,null,null,null,null,null,null,null,null,null,null,null,null,null,null,null,null,null,null,null,null,null,null,null,null,null,null,null,141.59686216566098]
[null,null,null,null,null,null,null,null,null,null,null,null,null,null,null,null,null,null,null,null,null,null,null,null,null,null,null,null,null,null,null,null,null,null,null,null,null,null,null,null,102.53238972923238]
[null,null,null,null,null,null,null,null,null,null,null,null,null,null,null,null,null,null,null,null,null,null,null,null,null,null,null,null,null,null,null,null,null,null,null,null,null,null,null,null,242.8701356601629]
[null,null,null,null,null,null,null,null,null,null,null,null,null,null,null,null,null,null,null,null,null,null,null,null,null,null,null,null,null,null,null,null,null,null,null,null,null,null,null,null,263.75312286113285]
[null,null,null,null,null,null,null,null,null,null,null,null,null,null,null,null,null,null,null,null,null,null,null,null,null,null,null,null,null,null,null,null,null,null,null,null,null,null,null,null,139.2296132035892]
[null,null,null,null,null,null,null,null,null,null,null,null,null,null,null,null,null,null,null,null,null,null,null,null,null,null,null,null,null,null,null,null,null,null,null,null,null,null,null,null,306.16157538518883]
[null,null,null,null,null,null,null,null,null,null,null,null,null,null,null,null,null,null,null,null,null,null,null,null,null,null,null,null,null,null,null,null,null,null,null,null,null,null,null,null,332.53119604701163]
[null,null,null,null,null,null,null,null,null,null,null,null,null,null,null,null,null,null,null,null,null,null,null,null,null,null,null,null,null,null,null,null,null,null,null,null,null,null,null,null,13.104385973049784]
[null,null,null,null,null,null,null,null,null,null,null,null,null,null,null,null,null,null,null,null,null,null,null,null,null,null,null,null,null,null,null,null,null,null,null,null,null,null,null,null,131.66887875991819]
[null,null,null,null,null,null,null,null,null,null,null,null,null,null,null,null,null,null,null,null,null,null,null,null,null,null,null,null,null,null,null,null,null,null,null,null,null,null,null,null,74.098118888390118]
[null,null,null,null,null,null,null,null,null,null,null,null,null,null,null,null,null,null,null,null,null,null,null,null,null,null,null,null,null,null,null,null,null,null,null,null,null,null,null,null,234.83433367345967]
[null,null,null,null,null,null,null,null,null,null,null,null,null,null,null,null,null,null,null,null,null,null,null,null,null,null,null,null,null,null,null,null,null,null,null,null,null,null,null,null,258.99095492307413]
[null,null,null,null,null,null,null,null,null,null,null,null,null,null,null,null,null,null,null,null,null,null,null,null,null,null,null,null,null,null,null,null,null,null,null,null,null,null,null,null,111.59773495450433]
[null,null,null,null,null,null,null,null,null,null,null,null,null,null,null,null,null,null,null,null,null,null,null,null,null,null,null,null,null,null,null,null,null,null,null,null,null,null,null,null,298.89396998945085]
[null,null,null,null,null,null,null,null,null,null,null,null,null,null,null,null,null,null,null,null,null,null,null,null,null,null,null,null,null,null,null,null,null,null,null,null,null,null,null,null,328.59063183991225]
[null,null,null,null,null,null,null,null,null,null,null,null,null,null,null,null,null,null,null,null,null,null,null,null,null,null,null,null,null,null,null,null,null,null,null,null,null,null,null,null,19.614626703558244]
[null,null,null,null,null,null,null,null,null,null,null,null,null,null,null,null,null,null,null,null,null,null,null,null,null,null,null,null,null,null,null,null,null,null,null,null,null,null,null,null,134.17338002259567]
[null,null,null,null,null,null,null,null,null,null,null,null,null,null,null,null,null,null,null,null,null,null,null,null,null,null,null,null,null,null,null,null,null,null,null,null,null,null,null,null,76.751264919116068]
[null,null,null,null,null,null,null,null,null,null,null,null,null,null,null,null,null,null,null,null,null,null,null,null,null,null,null,null,null,null,null,null,null,null,null,null,null,null,null,null,235.76678391518763]
[null,null,null,null,null,null,null,null,null,null,null,null,null,null,null,null,null,null,null,null,null,null,null,null,null,null,null,null,null,null,null,null,null,null,null,null,null,null,null,null,260.10570658814822]
[null,null,null,null,null,null,null,null,null,null,null,null,null,null,null,null,null,null,null,null,null,null,null,null,null,null,null,null,null,null,null,null,null,null,null,null,null,null,null,null,112.6593487405035]
[null,null,null,null,null,null,null,null,null,null,null,null,null,null,null,null,null,null,null,null,null,null,null,null,null,null,null,null,null,null,null,null,null,null,null,null,null,null,null,null,299.28547515872714]
[null,null,null,null,null,null,null,null,null,null,null,null,null,null,null,null,null,null,null,null,null,null,null,null,null,null,null,null,null,null,null,null,null,null,null,null,null,null,null,null,329.01782739466694]
[null,null,null,null,null,null,null,null,null,null,null,null,null,null,null,null,null,null,null,null,null,null,null,null,null,null,null,null,null,null,null,null,null,null,null,null,null,null,null,null,63.176227798154144]
[null,null,null,null,null,null,null,null,null,null,null,null,null,null,null,null,null,null,null,null,null,null,null,null,null,null,null,null,null,null,null,null,null,null,null,null,null,null,null,null,148.36101125154153]
[null,null,null,null,null,null,null,null,null,null,null,null,null,null,null,null,null,null,null,null,null,null,null,null,null,null,null,null,null,null,null,null,null,null,null,null,null,null,null,null,162.51298064379242]
[null,null,null,null,null,null,null,null,null,null,null,null,null,null,null,null,null,null,null,null,null,null,null,null,null,null,null,null,null,null,null,null,null,null,null,null,null,null,null,null,119.96835764989765]
[null,null,null,null,null,null,null,null,null,null,null,null,null,null,null,null,null,null,null,null,null,null,null,null,null,null,null,null,null,null,null,null,null,null,null,null,null,null,null,null,247.6220413579972]
[null,null,null,null,null,null,null,null,null,null,null,null,null,null,null,null,null,null,null,null,null,null,null,null,null,null,null,null,null,null,null,null,null,null,null,null,null,null,null,null,269.71091319744392]
[null,null,null,null,null,null,null,null,null,null,null,null,null,null,null,null,null,null,null,null,null,null,null,null,null,null,null,null,null,null,null,null,null,null,null,null,null,null,null,null,66.976868687884476]
[null,null,null,null,null,null,null,null,null,null,null,null,null,null,null,null,null,null,null,null,null,null,null,null,null,null,null,null,null,null,null,null,null,null,null,null,null,null,null,null,149.7352238476598]
[null,null,null,null,null,null,null,null,null,null,null,null,null,null,null,null,null,null,null,null,null,null,null,null,null,null,null,null,null,null,null,null,null,null,null,null,null,null,null,null,163.65044318119729]
[null,null,null,null,null,null,null,null,null,null,null,null,null,null,null,null,null,null,null,null,null,null,null,null,null,null,null,null,null,null,null,null,null,null,null,null,null,null,null,null,121.98173772392366]
[null,null,null,null,null,null,null,null,null,null,null,null,null,null,null,null,null,null,null,null,null,null,null,null,null,null,null,null,null,null,null,null,null,null,null,null,null,null,null,null,248.2051437764587]
[null,null,null,null,null,null,null,null,null,null,null,null,null,null,null,null,null,null,null,null,null,null,null,null,null,null,null,null,null,null,null,null,null,null,null,null,null,null,null,null,270.06383659484987]
[null,null,null,null,null,null,null,null,null,null,null,null,null,null,null,null,null,null,null,null,null,null,null,null,null,null,null,null,null,null,null,null,null,null,null,null,null,null,null,null,310.20068840324456]
[null,null,null,null,null,null,null,null,null,null,null,null,null,null,null,null,null,null,null,null,null,null,null,null,null,null,null,null,null,null,null,null,null,null,null,null,null,null,null,null,336.38751851249515]
[null,null,null,null,null,null,null,null,null,null,null,null,null,null,null,null,null,null,null,null,null,null,null,null,null,null,null,null,null,null,null,null,null,null,null,null,null,null,null,null,33.410579002293581]
[null,null,null,null,null,null,null,null,null,null,null,null,null,null,null,null,null,null,null,null,null,null,null,null,null,null,null,null,null,null,null,null,null,null,null,null,null,null,null,null,140.14487793457027]
[null,null,null,null,null,null,null,null,null,null,null,null,null,null,null,null,null,null,null,null,null,null,null,null,null,null,null,null,null,null,null,null,null,null,null,null,null,null,null,null,158.25366189787081]
[null,null,null,null,null,null,null,null,null,null,null,null,null,null,null,null,null,null,null,null,null,null,null,null,null,null,null,null,null,null,null,null,null,null,null,null,null,null,null,null,91.458577280263881]
[null,null,null,null,null,null,null,null,null,null,null,null,null,null,null,null,null,null,null,null,null,null,null,null,null,null,null,null,null,null,null,null,null,null,null,null,null,null,null,null,239.9316240841348]
[null,null,null,null,null,null,null,null,null,null,null,null,null,null,null,null,null,null,null,null,null,null,null,null,null,null,null,null,null,null,null,null,null,null,null,null,null,null,null,null,265.75470687396739]
[null,null,null,null,null,null,null,null,null,null,null,null,null,null,null,null,null,null,null,null,null,null,null,null,null,null,null,null,null,null,null,null,null,null,null,null,null,null,null,null,127.62530626474152]
[null,null,null,null,null,null,null,null,null,null,null,null,null,null,null,null,null,null,null,null,null,null,null,null,null,null,null,null,null,null,null,null,null,null,null,null,null,null,null,null,302.57007503701391]
[null,null,null,null,null,null,null,null,null,null,null,null,null,null,null,null,null,null,null,null,null,null,null,null,null,null,null,null,null,null,null,null,null,null,null,null,null,null,null,null,332.52203583664755]
[null,null,null,null,null,null,null,null,null,null,null,null,null,null,null,null,null,null,null,null,null,null,null,null,null,null,null,null,null,null,null,null,null,null,null,null,null,null,null,null,38.684353756049461]
[null,null,null,null,null,null,null,null,null,null,null,null,null,null,null,null,null,null,null,null,null,null,null,null,null,null,null,null,null,null,null,null,null,null,null,null,null,null,null,null,141.77899667565526]
[null,null,null,null,null,null,null,null,null,null,null,null,null,null,null,null,null,null,null,null,null,null,null,null,null,null,null,null,null,null,null,null,null,null,null,null,null,null,null,null,159.52894757095152]
[null,null,null,null,null,null,null,null,null,null,null,null,null,null,null,null,null,null,null,null,null,null,null,null,null,null,null,null,null,null,null,null,null,null,null,null,null,null,null,null,93.864236777747465]
[null,null,null,null,null,null,null,null,null,null,null,null,null,null,null,null,null,null,null,null,null,null,null,null,null,null,null,null,null,null,null,null,null,null,null,null,null,null,null,null,240.61904198589247]
[null,null,null,null,null,null,null,null,null,null,null,null,null,null,null,null,null,null,null,null,null,null,null,null,null,null,null,null,null,null,null,null,null,null,null,null,null,null,null,null,266.16028480441128]
[null,null,null,null,null,null,null,null,null,null,null,null,null,null,null,null,null,null,null,null,null,null,null,null,null,null,null,null,null,null,null,null,null,null,null,null,null,null,null,null,128.65244162140317]
[null,null,null,null,null,null,null,null,null,null,null,null,null,null,null,null,null,null,null,null,null,null,null,null,null,null,null,null,null,null,null,null,null,null,null,null,null,null,null,null,302.86183250539551]
[null,null,null,null,null,null,null,null,null,null,null,null,null,null,null,null,null,null,null,null,null,null,null,null,null,null,null,null,null,null,null,null,null,null,null,null,null,null,null,null,332.6327971839487]
[null,null,null,null,null,null,null,null,null,null,null,null,null,null,null,null,null,null,null,null,null,null,null,null,null,null,null,null,null,null,null,null,null,null,null,null,null,null,null,null,6.1640412897475478]
[null,null,null,null,null,null,null,null,null,null,null,null,null,null,null,null,null,null,null,null,null,null,null,null,null,null,null,null,null,null,null,null,null,null,null,null,null,null,null,null,131.94005242364057]
[null,null,null,null,null,null,null,null,null,null,null,null,null,null,null,null,null,null,null,null,null,null,null,null,null,null,null,null,null,null,null,null,null,null,null,null,null,null,null,null,154.00989511752027]
[null,null,null,null,null,null,null,null,null,null,null,null,null,null,null,null,null,null,null,null,null,null,null,null,null,null,null,null,null,null,null,null,null,null,null,null,null,null,null,null,64.484030866261463]
[null,null,null,null,null,null,null,null,null,null,null,null,null,null,null,null,null,null,null,null,null,null,null,null,null,null,null,null,null,null,null,null,null,null,null,null,null,null,null,null,232.24019740307585]
[null,null,null,null,null,null,null,null,null,null,null,null,null,null,null,null,null,null,null,null,null,null,null,null,null,null,null,null,null,null,null,null,null,null,null,null,null,null,null,null,261.80118488785973]
[null,null,null,null,null,null,null,null,null,null,null,null,null,null,null,null,null,null,null,null,null,null,null,null,null,null,null,null,null,null,null,null,null,null,null,null,null,null,null,null,99.928123609533131]
[null,null,null,null,null,null,null,null,null,null,null,null,null,null,null,null,null,null,null,null,null,null,null,null,null,null,null,null,null,null,null,null,null,null,null,null,null,null,null,null,295.18044896116447]
[null,null,null,null,null,null,null,null,null,null,null,null,null,null,null,null,null,null,null,null,null,null,null,null,null,null,null,null,null,null,null,null,null,null,null,null,null,null,null,null,328.73945518021685]
[null,null,null,null,null,null,null,null,null,null,null,null,null,null,null,null,null,null,null,null,null,null,null,null,null,null,null,null,null,null,null,null,null,null,null,null,null,null,null,null,12.948808474687414]
[null,null,null,null,null,null,null,null,null,null,null,null,null,null,null,null,null,null,null,null,null,null,null,null,null,null,null,null,null,null,null,null,null,null,null,null,null,null,null,null,133.86800569081146]
[null,null,null,null,null,null,null,null,null,null,null,null,null,null,null,null,null,null,null,null,null,null,null,null,null,null,null,null,null,null,null,null,null,null,null,null,null,null,null,null,155.41112926370619]
[null,null,null,null,null,null,null,null,null,null,null,null,null,null,null,null,null,null,null,null,null,null,null,null,null,null,null,null,null,null,null,null,null,null,null,null,null,null,null,null,67.142161768327412]
[null,null,null,null,null,null,null,null,null,null,null,null,null,null,null,null,null,null,null,null,null,null,null,null,null,null,null,null,null,null,null,null,null,null,null,null,null,null,null,null,233.03932136877611]
[null,null,null,null,null,null,null,null,null,null,null,null,null,null,null,null,null,null,null,null,null,null,null,null,null,null,null,null,null,null,null,null,null,null,null,null,null,null,null,null,262.2591170375423]
[null,null,null,null,null,null,null,null,null,null,null,null,null,null,null,null,null,null,null,null,null,null,null,null,null,null,null,null,null,null,null,null,null,null,null,null,null,null,null,null,100.9266018683292]
[null,null,null,null,null,null,null,null,null,null,null,null,null,null,null,null,null,null,null,null,null,null,null,null,null,null,null,null,null,null,null,null,null,null,null,null,null,null,null,null,295.52525118137635]
[null,null,null,null,null,null,null,null,null,null,null,null,null,null,null,null,null,null,null,null,null,null,null,null,null,null,null,null,null,null,null,null,null,null,null,null,null,null,null,null,328.87640358352945]
[null,null,null,null,null,null,null,null,null,null,null,null,null,null,null,null,null,null,null,null,null,null,null,null,null,null,null,null,null,null,null,null,null,null,null,null,null,null,null,null,67.493833571388535]
[null,null,null,null,null,null,null,null,null,null,null,null,null,null,null,null,null,null,null,null,null,null,null,null,null,null,null,null,null,null,null,null,null,null,null,null,null,null,null,null,127.2931902692042]
[null,null,null,null,null,null,null,null,null,null,null,null,null,null,null,null,null,null,null,null,null,null,null,null,null,null,null,null,null,null,null,null,null,null,null,null,null,null,null,null,240.4712631302956]
[null,null,null,null,null,null,null,null,null,null,null,null,null,null,null,null,null,null,null,null,null,null,null,null,null,null,null,null,null,null,null,null,null,null,null,null,null,null,null,null,71.328668060326805]
[null,null,null,null,null,null,null,null,null,null,null,null,null,null,null,null,null,null,null,null,null,null,null,null,null,null,null,null,null,null,null,null,null,null,null,null,null,null,null,null,129.29448959582223]
[null,null,null,null,null,null,null,null,null,null,null,null,null,null,null,null,null,null,null,null,null,null,null,null,null,null,null,null,null,null,null,null,null,null,null,null,null,null,null,null,242.35545146340866]
[null,null,null,null,null,null,null,null,null,null,null,null,null,null,null,null,null,null,null,null,null,null,null,null,null,null,null,null,null,null,null,null,null,null,null,null,null,null,null,null,166.34605313000546]
[null,null,null,null,null,null,null,null,null,null,null,null,null,null,null,null,null,null,null,null,null,null,null,null,null,null,null,null,null,null,null,null,null,null,null,null,null,null,null,null,309.01137371561492]
[null,null,null,null,null,null,null,null,null,null,null,null,null,null,null,null,null,null,null,null,null,null,null,null,null,null,null,null,null,null,null,null,null,null,null,null,null,null,null,null,38.928980981666214]
[null,null,null,null,null,null,null,null,null,null,null,null,null,null,null,null,null,null,null,null,null,null,null,null,null,null,null,null,null,null,null,null,null,null,null,null,null,null,null,null,99.917383494719786]
[null,null,null,null,null,null,null,null,null,null,null,null,null,null,null,null,null,null,null,null,null,null,null,null,null,null,null,null,null,null,null,null,null,null,null,null,null,null,null,null,233.28398888376492]
[null,null,null,null,null,null,null,null,null,null,null,null,null,null,null,null,null,null,null,null,null,null,null,null,null,null,null,null,null,null,null,null,null,null,null,null,null,null,null,null,138.05318464394895]
[null,null,null,null,null,null,null,null,null,null,null,null,null,null,null,null,null,null,null,null,null,null,null,null,null,null,null,null,null,null,null,null,null,null,null,null,null,null,null,null,301.24774152620381]
[null,null,null,null,null,null,null,null,null,null,null,null,null,null,null,null,null,null,null,null,null,null,null,null,null,null,null,null,null,null,null,null,null,null,null,null,null,null,null,null,44.149269498339073]
[null,null,null,null,null,null,null,null,null,null,null,null,null,null,null,null,null,null,null,null,null,null,null,null,null,null,null,null,null,null,null,null,null,null,null,null,null,null,null,null,102.31428195813315]
[null,null,null,null,null,null,null,null,null,null,null,null,null,null,null,null,null,null,null,null,null,null,null,null,null,null,null,null,null,null,null,null,null,null,null,null,null,null,null,null,235.27132770026475]
[null,null,null,null,null,null,null,null,null,null,null,null,null,null,null,null,null,null,null,null,null,null,null,null,null,null,null,null,null,null,null,null,null,null,null,null,null,null,null,null,139.11495613246336]
[null,null,null,null,null,null,null,null,null,null,null,null,null,null,null,null,null,null,null,null,null,null,null,null,null,null,null,null,null,null,null,null,null,null,null,null,null,null,null,null,302.14160940509362]
[null,null,null,null,null,null,null,null,null,null,null,null,null,null,null,null,null,null,null,null,null,null,null,null,null,null,null,null,null,null,null,null,null,null,null,null,null,null,null,null,12.478264286899321]
[null,null,null,null,null,null,null,null,null,null,null,null,null,null,null,null,null,null,null,null,null,null,null,null,null,null,null,null,null,null,null,null,null,null,null,null,null,null,null,null,73.840503626792497]
[null,null,null,null,null,null,null,null,null,null,null,null,null,null,null,null,null,null,null,null,null,null,null,null,null,null,null,null,null,null,null,null,null,null,null,null,null,null,null,null,226.08668868273148]
[null,null,null,null,null,null,null,null,null,null,null,null,null,null,null,null,null,null,null,null,null,null,null,null,null,null,null,null,null,null,null,null,null,null,null,null,null,null,null,null,111.47148731622629]
[null,null,null,null,null,null,null,null,null,null,null,null,null,null,null,null,null,null,null,null,null,null,null,null,null,null,null,null,null,null,null,null,null,null,null,null,null,null,null,null,294.33374642718138]
[null,null,null,null,null,null,null,null,null,null,null,null,null,null,null,null,null,null,null,null,null,null,null,null,null,null,null,null,null,null,null,null,null,null,null,null,null,null,null,null,19.138743981125195]
[null,null,null,null,null,null,null,null,null,null,null,null,null,null,null,null,null,null,null,null,null,null,null,null,null,null,null,null,null,null,null,null,null,null,null,null,null,null,null,null,76.533672451922328]
[null,null,null,null,null,null,null,null,null,null,null,null,null,null,null,null,null,null,null,null,null,null,null,null,null,null,null,null,null,null,null,null,null,null,null,null,null,null,null,null,228.18121965458121]
[null,null,null,null,null,null,null,null,null,null,null,null,null,null,null,null,null,null,null,null,null,null,null,null,null,null,null,null,null,null,null,null,null,null,null,null,null,null,null,null,112.54904135228377]
[null,null,null,null,null,null,null,null,null,null,null,null,null,null,null,null,null,null,null,null,null,null,null,null,null,null,null,null,null,null,null,null,null,null,null,null,null,null,null,null,295.27465308939765]
[null,null,null,null,null,null,null,null,null,null,null,null,null,null,null,null,null,null,null,null,null,null,null,null,null,null,null,null,null,null,null,null,null,null,null,null,null,null,null,null,68.225915051991791]
[null,null,null,null,null,null,null,null,null,null,null,null,null,null,null,null,null,null,null,null,null,null,null,null,null,null,null,null,null,null,null,null,null,null,null,null,null,null,null,null,147.05585454788468]
[null,null,null,null,null,null,null,null,null,null,null,null,null,null,null,null,null,null,null,null,null,null,null,null,null,null,null,null,null,null,null,null,null,null,null,null,null,null,null,null,127.56595539729027]
[null,null,null,null,null,null,null,null,null,null,null,null,null,null,null,null,null,null,null,null,null,null,null,null,null,null,null,null,null,null,null,null,null,null,null,null,null,null,null,null,249.25427695665581]
[null,null,null,null,null,null,null,null,null,null,null,null,null,null,null,null,null,null,null,null,null,null,null,null,null,null,null,null,null,null,null,null,null,null,null,null,null,null,null,null,266.38436576333561]
[null,null,null,null,null,null,null,null,null,null,null,null,null,null,null,null,null,null,null,null,null,null,null,null,null,null,null,null,null,null,null,null,null,null,null,null,null,null,null,null,71.900940958238621]
[null,null,null,null,null,null,null,null,null,null,null,null,null,null,null,null,null,null,null,null,null,null,null,null,null,null,null,null,null,null,null,null,null,null,null,null,null,null,null,null,149.03959601098924]
[null,null,null,null,null,null,null,null,null,null,null,null,null,null,null,null,null,null,null,null,null,null,null,null,null,null,null,null,null,null,null,null,null,null,null,null,null,null,null,null,129.52440013700101]
[null,null,null,null,null,null,null,null,null,null,null,null,null,null,null,null,null,null,null,null,null,null,null,null,null,null,null,null,null,null,null,null,null,null,null,null,null,null,null,null,249.9842398997003]
[null,null,null,null,null,null,null,null,null,null,null,null,null,null,null,null,null,null,null,null,null,null,null,null,null,null,null,null,null,null,null,null,null,null,null,null,null,null,null,null,267.40189888508348]
[null,null,null,null,null,null,null,null,null,null,null,null,null,null,null,null,null,null,null,null,null,null,null,null,null,null,null,null,null,null,null,null,null,null,null,null,null,null,null,null,166.46464523535678]
[null,null,null,null,null,null,null,null,null,null,null,null,null,null,null,null,null,null,null,null,null,null,null,null,null,null,null,null,null,null,null,null,null,null,null,null,null,null,null,null,313.03825267359809]
[null,null,null,null,null,null,null,null,null,null,null,null,null,null,null,null,null,null,null,null,null,null,null,null,null,null,null,null,null,null,null,null,null,null,null,null,null,null,null,null,336.04272698226288]
[null,null,null,null,null,null,null,null,null,null,null,null,null,null,null,null,null,null,null,null,null,null,null,null,null,null,null,null,null,null,null,null,null,null,null,null,null,null,null,null,39.609251653796584]
[null,null,null,null,null,null,null,null,null,null,null,null,null,null,null,null,null,null,null,null,null,null,null,null,null,null,null,null,null,null,null,null,null,null,null,null,null,null,null,null,139.35379439325925]
[null,null,null,null,null,null,null,null,null,null,null,null,null,null,null,null,null,null,null,null,null,null,null,null,null,null,null,null,null,null,null,null,null,null,null,null,null,null,null,null,100.17586420815223]
[null,null,null,null,null,null,null,null,null,null,null,null,null,null,null,null,null,null,null,null,null,null,null,null,null,null,null,null,null,null,null,null,null,null,null,null,null,null,null,null,242.04339025650742]
[null,null,null,null,null,null,null,null,null,null,null,null,null,null,null,null,null,null,null,null,null,null,null,null,null,null,null,null,null,null,null,null,null,null,null,null,null,null,null,null,262.68657422577894]
[null,null,null,null,null,null,null,null,null,null,null,null,null,null,null,null,null,null,null,null,null,null,null,null,null,null,null,null,null,null,null,null,null,null,null,null,null,null,null,null,138.18482306667846]
[null,null,null,null,null,null,null,null,null,null,null,null,null,null,null,null,null,null,null,null,null,null,null,null,null,null,null,null,null,null,null,null,null,null,null,null,null,null,null,null,305.81763993543126]
[null,null,null,null,null,null,null,null,null,null,null,null,null,null,null,null,null,null,null,null,null,null,null,null,null,null,null,null,null,null,null,null,null,null,null,null,null,null,null,null,332.12912112069642]
[null,null,null,null,null,null,null,null,null,null,null,null,null,null,null,null,null,null,null,null,null,null,null,null,null,null,null,null,null,null,null,null,null,null,null,null,null,null,null,null,44.667457783313623]
[null,null,null,null,null,null,null,null,null,null,null,null,null,null,null,null,null,null,null,null,null,null,null,null,null,null,null,null,null,null,null,null,null,null,null,null,null,null,null,null,141.59686216566098]
[null,null,null,null,null,null,null,null,null,null,null,null,null,null,null,null,null,null,null,null,null,null,null,null,null,null,null,null,null,null,null,null,null,null,null,null,null,null,null,null,102.53238972923238]
[null,null,null,null,null,null,null,null,null,null,null,null,null,null,null,null,null,null,null,null,null,null,null,null,null,null,null,null,null,null,null,null,null,null,null,null,null,null,null,null,242.8701356601629]
[null,null,null,null,null,null,null,null,null,null,null,null,null,null,null,null,null,null,null,null,null,null,null,null,null,null,null,null,null,null,null,null,null,null,null,null,null,null,null,null,263.75312286113285]
[null,null,null,null,null,null,null,null,null,null,null,null,null,null,null,null,null,null,null,null,null,null,null,null,null,null,null,null,null,null,null,null,null,null,null,null,null,null,null,null,139.2296132035892]
[null,null,null,null,null,null,null,null,null,null,null,null,null,null,null,null,null,null,null,null,null,null,null,null,null,null,null,null,null,null,null,null,null,null,null,null,null,null,null,null,306.16157538518883]
[null,null,null,null,null,null,null,null,null,null,null,null,null,null,null,null,null,null,null,null,null,null,null,null,null,null,null,null,null,null,null,null,null,null,null,null,null,null,null,null,332.53119604701163]
[null,null,null,null,null,null,null,null,null,null,null,null,null,null,null,null,null,null,null,null,null,null,null,null,null,null,null,null,null,null,null,null,null,null,null,null,null,null,null,null,13.104385973049784]
[null,null,null,null,null,null,null,null,null,null,null,null,null,null,null,null,null,null,null,null,null,null,null,null,null,null,null,null,null,null,null,null,null,null,null,null,null,null,null,null,131.66887875991819]
[null,null,null,null,null,null,null,null,null,null,null,null,null,null,null,null,null,null,null,null,null,null,null,null,null,null,null,null,null,null,null,null,null,null,null,null,null,null,null,null,74.098118888390118]
[null,null,null,null,null,null,null,null,null,null,null,null,null,null,null,null,null,null,null,null,null,null,null,null,null,null,null,null,null,null,null,null,null,null,null,null,null,null,null,null,234.83433367345967]
[null,null,null,null,null,null,null,null,null,null,null,null,null,null,null,null,null,null,null,null,null,null,null,null,null,null,null,null,null,null,null,null,null,null,null,null,null,null,null,null,258.99095492307413]
[null,null,null,null,null,null,null,null,null,null,null,null,null,null,null,null,null,null,null,null,null,null,null,null,null,null,null,null,null,null,null,null,null,null,null,null,null,null,null,null,111.59773495450433]
[null,null,null,null,null,null,null,null,null,null,null,null,null,null,null,null,null,null,null,null,null,null,null,null,null,null,null,null,null,null,null,null,null,null,null,null,null,null,null,null,298.89396998945085]
[null,null,null,null,null,null,null,null,null,null,null,null,null,null,null,null,null,null,null,null,null,null,null,null,null,null,null,null,null,null,null,null,null,null,null,null,null,null,null,null,328.59063183991225]
[null,null,null,null,null,null,null,null,null,null,null,null,null,null,null,null,null,null,null,null,null,null,null,null,null,null,null,null,null,null,null,null,null,null,null,null,null,null,null,null,19.614626703558244]
[null,null,null,null,null,null,null,null,null,null,null,null,null,null,null,null,null,null,null,null,null,null,null,null,null,null,null,null,null,null,null,null,null,null,null,null,null,null,null,null,134.17338002259567]
[null,null,null,null,null,null,null,null,null,null,null,null,null,null,null,null,null,null,null,null,null,null,null,null,null,null,null,null,null,null,null,null,null,null,null,null,null,null,null,null,76.751264919116068]
[null,null,null,null,null,null,null,null,null,null,null,null,null,null,null,null,null,null,null,null,null,null,null,null,null,null,null,null,null,null,null,null,null,null,null,null,null,null,null,null,235.76678391518763]
[null,null,null,null,null,null,null,null,null,null,null,null,null,null,null,null,null,null,null,null,null,null,null,null,null,null,null,null,null,null,null,null,null,null,null,null,null,null,null,null,260.10570658814822]
[null,null,null,null,null,null,null,null,null,null,null,null,null,null,null,null,null,null,null,null,null,null,null,null,null,null,null,null,null,null,null,null,null,null,null,null,null,null,null,null,112.6593487405035]
[null,null,null,null,null,null,null,null,null,null,null,null,null,null,null,null,null,null,null,null,null,null,null,null,null,null,null,null,null,null,null,null,null,null,null,null,null,null,null,null,299.28547515872714]
[null,null,null,null,null,null,null,null,null,null,null,null,null,null,null,null,null,null,null,null,null,null,null,null,null,null,null,null,null,null,null,null,null,null,null,null,null,null,null,null,329.01782739466694]
[null,null,null,null,null,null,null,null,null,null,null,null,null,null,null,null,null,null,null,null,null,null,null,null,null,null,null,null,null,null,null,null,null,null,null,null,null,null,null,null,63.176227798154144]
[null,null,null,null,null,null,null,null,null,null,null,null,null,null,null,null,null,null,null,null,null,null,null,null,null,null,null,null,null,null,null,null,null,null,null,null,null,null,null,null,148.36101125154153]
[null,null,null,null,null,null,null,null,null,null,null,null,null,null,null,null,null,null,null,null,null,null,null,null,null,null,null,null,null,null,null,null,null,null,null,null,null,null,null,null,162.51298064379242]
[null,null,null,null,null,null,null,null,null,null,null,null,null,null,null,null,null,null,null,null,null,null,null,null,null,null,null,null,null,null,null,null,null,null,null,null,null,null,null,null,119.96835764989765]
[null,null,null,null,null,null,null,null,null,null,null,null,null,null,null,null,null,null,null,null,null,null,null,null,null,null,null,null,null,null,null,null,null,null,null,null,null,null,null,null,247.6220413579972]
[null,null,null,null,null,null,null,null,null,null,null,null,null,null,null,null,null,null,null,null,null,null,null,null,null,null,null,null,null,null,null,null,null,null,null,null,null,null,null,null,269.71091319744392]
[null,null,null,null,null,null,null,null,null,null,null,null,null,null,null,null,null,null,null,null,null,null,null,null,null,null,null,null,null,null,null,null,null,null,null,null,null,null,null,null,66.976868687884476]
[null,null,null,null,null,null,null,null,null,null,null,null,null,null,null,null,null,null,null,null,null,null,null,null,null,null,null,null,null,null,null,null,null,null,null,null,null,null,null,null,149.7352238476598]
[null,null,null,null,null,null,null,null,null,null,null,null,null,null,null,null,null,null,null,null,null,null,null,null,null,null,null,null,null,null,null,null,null,null,null,null,null,null,null,null,163.65044318119729]
[null,null,null,null,null,null,null,null,null,null,null,null,null,null,null,null,null,null,null,null,null,null,null,null,null,null,null,null,null,null,null,null,null,null,null,null,null,null,null,null,121.98173772392366]
[null,null,null,null,null,null,null,null,null,null,null,null,null,null,null,null,null,null,null,null,null,null,null,null,null,null,null,null,null,null,null,null,null,null,null,null,null,null,null,null,248.2051437764587]
[null,null,null,null,null,null,null,null,null,null,null,null,null,null,null,null,null,null,null,null,null,null,null,null,null,null,null,null,null,null,null,null,null,null,null,null,null,null,null,null,270.06383659484987]
[null,null,null,null,null,null,null,null,null,null,null,null,null,null,null,null,null,null,null,null,null,null,null,null,null,null,null,null,null,null,null,null,null,null,null,null,null,null,null,null,157.14522153044615]
[null,null,null,null,null,null,null,null,null,null,null,null,null,null,null,null,null,null,null,null,null,null,null,null,null,null,null,null,null,null,null,null,null,null,null,null,null,null,null,null,310.20068838883662]
[null,null,null,null,null,null,null,null,null,null,null,null,null,null,null,null,null,null,null,null,null,null,null,null,null,null,null,null,null,null,null,null,null,null,null,null,null,null,null,null,336.38751851249589]
[null,null,null,null,null,null,null,null,null,null,null,null,null,null,null,null,null,null,null,null,null,null,null,null,null,null,null,null,null,null,null,null,null,null,null,null,null,null,null,null,33.410579002293581]
[null,null,null,null,null,null,null,null,null,null,null,null,null,null,null,null,null,null,null,null,null,null,null,null,null,null,null,null,null,null,null,null,null,null,null,null,null,null,null,null,140.14487793457027]
[null,null,null,null,null,null,null,null,null,null,null,null,null,null,null,null,null,null,null,null,null,null,null,null,null,null,null,null,null,null,null,null,null,null,null,null,null,null,null,null,158.25366189787081]
[null,null,null,null,null,null,null,null,null,null,null,null,null,null,null,null,null,null,null,null,null,null,null,null,null,null,null,null,null,null,null,null,null,null,null,null,null,null,null,null,91.458577280263881]
[null,null,null,null,null,null,null,null,null,null,null,null,null,null,null,null,null,null,null,null,null,null,null,null,null,null,null,null,null,null,null,null,null,null,null,null,null,null,null,null,239.9316240841348]
[null,null,null,null,null,null,null,null,null,null,null,null,null,null,null,null,null,null,null,null,null,null,null,null,null,null,null,null,null,null,null,null,null,null,null,null,null,null,null,null,265.75470687396739]
[null,null,null,null,null,null,null,null,null,null,null,null,null,null,null,null,null,null,null,null,null,null,null,null,null,null,null,null,null,null,null,null,null,null,null,null,null,null,null,null,127.62530626474152]
[null,null,null,null,null,null,null,null,null,null,null,null,null,null,null,null,null,null,null,null,null,null,null,null,null,null,null,null,null,null,null,null,null,null,null,null,null,null,null,null,302.57007503701391]
[null,null,null,null,null,null,null,null,null,null,null,null,null,null,null,null,null,null,null,null,null,null,null,null,null,null,null,null,null,null,null,null,null,null,null,null,null,null,null,null,332.52203583664755]
[null,null,null,null,null,null,null,null,null,null,null,null,null,null,null,null,null,null,null,null,null,null,null,null,null,null,null,null,null,null,null,null,null,null,null,null,null,null,null,null,38.684353756049461]
[null,null,null,null,null,null,null,null,null,null,null,null,null,null,null,null,null,null,null,null,null,null,null,null,null,null,null,null,null,null,null,null,null,null,null,null,null,null,null,null,141.77899667565526]
[null,null,null,null,null,null,null,null,null,null,null,null,null,null,null,null,null,null,null,null,null,null,null,null,null,null,null,null,null,null,null,null,null,null,null,null,null,null,null,null,159.52894757095152]
[null,null,null,null,null,null,null,null,null,null,null,null,null,null,null,null,null,null,null,null,null,null,null,null,null,null,null,null,null,null,null,null,null,null,null,null,null,null,null,null,93.864236777747465]
[null,null,null,null,null,null,null,null,null,null,null,null,null,null,null,null,null,null,null,null,null,null,null,null,null,null,null,null,null,null,null,null,null,null,null,null,null,null,null,null,240.61904198589247]
[null,null,null,null,null,null,null,null,null,null,null,null,null,null,null,null,null,null,null,null,null,null,null,null,null,null,null,null,null,null,null,null,null,null,null,null,null,null,null,null,266.16028480441128]
[null,null,null,null,null,null,null,null,null,null,null,null,null,null,null,null,null,null,null,null,null,null,null,null,null,null,null,null,null,null,null,null,null,null,null,null,null,null,null,null,128.65244162140317]
[null,null,null,null,null,null,null,null,null,null,null,null,null,null,null,null,null,null,null,null,null,null,null,null,null,null,null,null,null,null,null,null,null,null,null,null,null,null,null,null,302.86183250539551]
[null,null,null,null,null,null,null,null,null,null,null,null,null,null,null,null,null,null,null,null,null,null,null,null,null,null,null,null,null,null,null,null,null,null,null,null,null,null,null,null,332.6327971839487]
[null,null,null,null,null,null,null,null,null,null,null,null,null,null,null,null,null,null,null,null,null,null,null,null,null,null,null,null,null,null,null,null,null,null,null,null,null,null,null,null,6.1640412897475478]
[null,null,null,null,null,null,null,null,null,null,null,null,null,null,null,null,null,null,null,null,null,null,null,null,null,null,null,null,null,null,null,null,null,null,null,null,null,null,null,null,131.94005242364057]
[null,null,null,null,null,null,null,null,null,null,null,null,null,null,null,null,null,null,null,null,null,null,null,null,null,null,null,null,null,null,null,null,null,null,null,null,null,null,null,null,154.00989511752027]
[null,null,null,null,null,null,null,null,null,null,null,null,null,null,null,null,null,null,null,null,null,null,null,null,null,null,null,null,null,null,null,null,null,null,null,null,null,null,null,null,64.484030866261463]
[null,null,null,null,null,null,null,null,null,null,null,null,null,null,null,null,null,null,null,null,null,null,null,null,null,null,null,null,null,null,null,null,null,null,null,null,null,null,null,null,232.24019740307585]
[null,null,null,null,null,null,null,null,null,null,null,null,null,null,null,null,null,null,null,null,null,null,null,null,null,null,null,null,null,null,null,null,null,null,null,null,null,null,null,null,261.80118488785973]
[null,null,null,null,null,null,null,null,null,null,null,null,null,null,null,null,null,null,null,null,null,null,null,null,null,null,null,null,null,null,null,null,null,null,null,null,null,null,null,null,99.928123609533131]
[null,null,null,null,null,null,null,null,null,null,null,null,null,null,null,null,null,null,null,null,null,null,null,null,null,null,null,null,null,null,null,null,null,null,null,null,null,null,null,null,295.18044896116447]
[null,null,null,null,null,null,null,null,null,null,null,null,null,null,null,null,null,null,null,null,null,null,null,null,null,null,null,null,null,null,null,null,null,null,null,null,null,null,null,null,328.73945518021685]
[null,null,null,null,null,null,null,null,null,null,null,null,null,null,null,null,null,null,null,null,null,null,null,null,null,null,null,null,null,null,null,null,null,null,null,null,null,null,null,null,12.948808474687414]
[null,null,null,null,null,null,null,null,null,null,null,null,null,null,null,null,null,null,null,null,null,null,null,null,null,null,null,null,null,null,null,null,null,null,null,null,null,null,null,null,133.86800569081146]
[null,null,null,null,null,null,null,null,null,null,null,null,null,null,null,null,null,null,null,null,null,null,null,null,null,null,null,null,null,null,null,null,null,null,null,null,null,null,null,null,155.41112926370619]
[null,null,null,null,null,null,null,null,null,null,null,null,null,null,null,null,null,null,null,null,null,null,null,null,null,null,null,null,null,null,null,null,null,null,null,null,null,null,null,null,67.142161768327412]
[null,null,null,null,null,null,null,null,null,null,null,null,null,null,null,null,null,null,null,null,null,null,null,null,null,null,null,null,null,null,null,null,null,null,null,null,null,null,null,null,233.03932136877611]
[null,null,null,null,null,null,null,null,null,null,null,null,null,null,null,null,null,null,null,null,null,null,null,null,null,null,null,null,null,null,null,null,null,null,null,null,null,null,null,null,262.2591170375423]
[null,null,null,null,null,null,null,null,null,null,null,null,null,null,null,null,null,null,null,null,null,null,null,null,null,null,null,null,null,null,null,null,null,null,null,null,null,null,null,null,100.92655086099363]
[null,null,null,null,null,null,null,null,null,null,null,null,null,null,null,null,null,null,null,null,null,null,null,null,null,null,null,null,null,null,null,null,null,null,null,null,null,null,null,null,295.52451946437458]
[null,null,null,null,null,null,null,null,null,null,null,null,null,null,null,null,null,null,null,null,null,null,null,null,null,null,null,null,null,null,null,null,null,null,null,null,null,null,null,null,328.87642672642892]

{"sheet":"Results","index":2,"n_rows":206,"n_cols":24,"rows_kept":206,"cut":false,"hidden":false,"merged":[]}
[null,"Wellhead Pressure vs. Flow, BHT, and Tubing ID for BHP = 3,000 psi + Depth = 8,500 ft"]
[null,"MMscf/d","pwh_multi"]
[null,null,"200 - 1.61","300 - 1.61","400 - 1.61","200 - 2.441","300 - 2.441","400 - 2.441","200 - 3.958","300 - 3.958","400 - 3.958"]
[null,1,2495.0194466847588,2553.2563615991962,2150.397404516948,2508.4761070333498,2568.8505312328953,2612.4600355236776,2459.3483721668495,2569.059341781679,2612.6442317019928]
[null,2,2457.8133546675081,2511.7859895158872,2547.4786352863475,2516.0364920074476,2580.2833379197168,2625.7149760520392,2521.1572694131,2586.0331177382159,2632.2568508273521]
[null,3,2376.807259645348,2415.7767794535584,2435.7896683138765,2514.6884679409691,2579.9958029699728,2625.1615900500778,2528.6993910082815,2596.3776623219619,2643.9914251072628]
[null,4,2249.4089929995657,2260.9341181788595,2253.2571828569112,2506.3144616246063,2570.6590281336507,2614.0118162579138,2533.2454645847333,2602.599738976578,2650.8875617506392]
[null,5,2069.2239645113004,2036.5822372170596,1983.652749530472,2491.946897597747,2553.7269790140199,2593.9888876398591,2535.8429196818443,2606.1907084215131,2654.7414193448253]
[null,6,1823.0886288604247,1718.7750316224672,1587.1178920777929,2472.0966422555985,2529.9031336096054,2565.8937158142417,2537.0766639435637,2607.9747251398608,2656.5292944255493]
[null,7,1481.8848648746825,1242.5922841700869,null,2446.9950977762405,2499.4893216127289,2530.0361383362829,2537.2846657701034,2608.4219690256305,2656.7986532883774]
[null,8,955.82497620403512,null,null,2416.7132569534879,2462.5558469125745,2486.4404948479578,2536.6720171386,2607.8142656140826,2655.8726050163782]
[null,9,null,null,null,2381.2178026488073,2419.0193703656305,2434.9355141371375,2535.3690730213843,2606.3287162472598,2653.9514334642126]
[null,10,null,null,null,2340.3968431753483,2368.6760228730514,2375.1877144919335,2533.4620388096873,2604.0812284439326,2651.1646139373174]
[null,12,null,null,null,2241.9876608771688,2246.1887391614441,2228.8042245441411,2528.0538252559168,2597.5903723512483,2643.3134815757735]
[null,14,null,null,null,2119.1741363328392,2091.012229633619,2040.8338407736226,2520.7410911655024,2588.7281998374478,2632.7397178216197]
[null,16,null,null,null,1968.1550352862871,1896.0662881520334,1799.419212851853,2511.6781314199702,2577.693484588181,2619.6533457409632]
[null,18,null,null,null,1782.6715018543989,1648.4360119970233,1480.1509887710554,2500.9491837692876,2564.5915521863203,2604.1604215138759]
[null,20,null,null,null,1551.6126068633803,1320.5304965908895,1014.9746706190919,2488.5995931385551,2549.4760170645545,2586.3099275425047]
[]
[]
[null,"MMscf/d","Twh - Wellhead temperature (°F)",null,null,null,null,null,null,null,null,"TA - Adiabatic Wellhead temperature (°F)"]
[null,null,"200 - 1.61","300 - 1.61","400 - 1.61","200 - 2.441","300 - 2.441","400 - 2.441","200 - 3.958","300 - 3.958","400 - 3.958",null,null,null,"200 - Adiabatic","300 - Adiabatic","400 - Adiabatic","200 - 3.958","300 - 3.958","400 - 3.958"]
[null,1,76.438649406183799,90.607581224274512,-178.61707820905619,76.506205553032004,90.686646639900886,104.29881737916143,38.042997905982034,88.745219038942935,101.526836234748,null,null,null,{"$f":"200+R23*9/5","v":176.35038460298153},{"$f":"300+S23*9/5","v":277.56343320703633},{"$f":"400+T23*9/5","v":378.82653808977187},-13.138675220565821,-12.464759329424274,-11.763034394571168]
[null,2,91.29395664609082,117.65034298152621,143.52502352059986,91.813747071812941,118.2426923684678,144.19125999724662,90.006806485112463,114.91993990337016,139.30526377517134,null,null,null,{"$f":"200+R24*9/5","v":175.90073787090404},{"$f":"300+S24*9/5","v":277.59571883095123},{"$f":"400+T24*9/5","v":378.97400776709054},-13.388478960608866,-12.446822871693763,-11.681106796060819]
[null,3,102.44924391577806,139.13191193182746,175.83109088196179,104.09390633342906,140.95261068141053,177.80153434212659,102.05293356129577,137.02879938675801,171.89571933287368,null,null,null,175.90559458534057,277.7107504490719,379.2321693061798,-13.385780785921908,-12.382916417182294,-11.537683718788985]
[null,4,109.82338461561208,154.8083563717004,200.32409636130592,113.53864532403904,158.83814412792418,204.56644359764667,111.59397982358519,154.87218099463601,198.46740893857725,null,null,null,175.92114883683593,277.83637710931691,379.48265772608858,-13.37713953509116,-12.313123828157284,-11.39852348550634]
[null,5,113.643388458456,165.16937062762497,217.67973670290186,120.78680488344007,172.84722208727817,225.65129450202005,119.14476309771752,169.16946710502683,219.83005097252052,null,null,null,175.9329054977579,277.94468733807901,379.69019023008332,-13.370608056801165,-12.252951478845008,-11.283227649953709]
[null,6,113.68558165017087,170.15437389680181,227.98959393825729,126.38957559270712,183.90715368572955,242.37507300096635,125.19564868770688,180.72160945598725,237.09522094871488,null,null,null,175.93513347486149,278.02859555656642,379.85197890429561,-13.369370291743614,-12.206335801907539,-11.193345053169114]
[null,7,108.57920059005004,167.62502512494612,null,130.74524474525941,192.72750893181353,255.79115656384946,130.11955845277407,190.17770466377425,251.21384077162793,null,null,null,175.92595128752288,278.08827702353904,379.97379649811273,-13.374471506931727,-12.173179431367187,-11.125668612159583]
[null,8,92.567815258756085,null,null,134.13152118192059,199.82035852256641,266.67266777789587,134.18598616520038,198.02367181914249,262.91277983024463,null,null,null,175.90500226357364,278.12593084644374,380.06235922178888,-13.386109853570208,-12.152260640864577,-11.076467099006187]
[null,9,null,null,null,136.74096825329099,205.55047856275272,275.57570722747494,137.58933498952729,204.6173247309317,272.73156264463211,null,null,null,175.87249124949236,278.1440127161157,380.12340034891969,-13.4041715280598,-12.142215157713505,-11.042555361711285]
[null,10,null,null,null,138.70741266910932,210.1781723180674,282.90044836498458,140.47103883496635,210.22269944840002,281.06975939297627,null,null,null,175.82878961669098,278.14469828154716,380.16141685704162,-13.428450212949457,-12.141834288029356,-11.021435079421325]
[null,12,null,null,null,141.05135166579771,216.81634516123185,293.88830132823307,145.06173043613762,219.20881860266681,294.42504514008169,null,null,null,175.70930779775128,278.10066832579184,380.18128158864511,-13.494829001249295,-12.166295374560086,-11.010399117419402]
[null,14,null,null,null,141.5823935765842,220.64868594594924,301.09008342988403,148.52463869333019,226.05817573025266,304.60604605752064,null,null,null,175.54901760560841,278.00413141931597,380.14064977166362,-13.583879107995326,-12.219926989268913,-11.032972349075781]
[null,16,null,null,null,140.40083055349112,222.03303836564194,305.14190234718961,151.19755019162278,231.41772983160021,312.58814209566566,null,null,null,175.34944081880357,277.86137151743151,380.05038772379339,-13.694755100664686,-12.29923804587137,-11.083117931225894]
[null,18,null,null,null,137.32481421924541,220.84245081091692,305.94476664307007,153.2929073989215,235.69646190200319,318.98580426226914,null,null,null,175.11128627902804,277.67609727513184,379.91687341365162,-13.827063178317761,-12.402168180482319,-11.157292547971334]
[null,20,null,null,null,131.77214937221532,216.1587200764238,301.79143796678431,154.95036951937101,239.16426072710024,324.2032782736992,null,null,null,174.83462868071371,277.45034543835447,379.74379720499462,-13.980761844047935,-12.527585867580846,-11.253445997225198]
[]
[null,"Tubing ID = 2.441"]
[null,"Ngp:",0.1530803698909228,0.12554645089532665,0.10749222998860899]
[null,null,"Nfp/Ngp",null,null,null,"Nfp"]
[null,null,200,300,400,null,200,300,400]
[null,1,{"$f":"G43/C$40","v":8.0323712415825196E-3},{"$f":"H43/D$40","v":1.1950829975930891E-2},{"$f":"I43/E$40","v":1.6311366061465181E-2},null,1.2295983607626629E-3,1.5003842887316055E-3,1.7533451121074064E-3]
[null,2,3.4398935986570123E-2,5.1175679726361778E-2,6.9820352848425582E-2,null,5.2658018446783295E-3,6.4249249618006429E-3,7.5051454262687941E-3]
[null,3,7.9633339736304737E-2,0.11844277891712655,0.16152954299618685,null,1.219030110248305E-2,1.487007052722506E-2,1.7363170785701022E-2]
[null,4,0.14381464199206898,0.2138421896857356,0.29156130672408315,null,2.2015198591876558E-2,2.684712796672933E-2,3.1340575038164516E-2]
[null,5,0.22695190807628846,0.33740577420272122,0.45997146923876037,null,3.4741882035768945E-2,4.2360097462741608E-2,4.9443358959611217E-2]
[null,6,0.32905933315288943,0.48915343732181865,0.66679802500365459,null,5.0372524435104711E-2,6.1411477999003948E-2,7.1675606659643093E-2]
[null,7,0.45014465127223419,0.66910015066781836,0.91206883611963607,null,6.8908309721174066E-2,8.4003149209872924E-2,9.8040313097614851E-2]
[null,8,0.59021450930599573,0.87725825548460501,1.1958054240489802,null,9.0350255399551327E-2,0.11013666049471789,0.12853979166349908]
[null,9,0.74927513858246553,1.1136386561345859,1.5180256902196085,null,0.11469931536427626,0.13981338085753836,0.16317596662170308]
[null,10,0.92733269282473008,1.3782515665909132,1.8787454935424222,null,0.14195643162955518,0.1730345926264131,0.20195054268192475]
[null,12,1.3404640595414212,1.9922153652534695,2.7157435758042343,null,0.20519873406008873,0.25011556852670996,0.29192133304043616]
[null,14,1.8296636921831613,2.7192354460763064,3.706924221470973,null,0.28008559477538986,0.34139035940365065,0.39846555096470315]
[null,16,2.3949975122919809,3.5594154449020809,4.8524398616745437,null,0.36662710506949636,0.44687197636946635,0.52159958161701403]
[null,18,3.0365510063274725,4.5128988231144538,6.1525210617511901,null,0.46483635124126338,0.56657843049171619,0.66134820897951974]
[null,20,3.7544465090616876,5.5799229343003995,7.6076424345482927,null,0.57473206034284696,0.70053952067085212,0.81776245024556637]
[]
[]
[null,"Wellhead Pressure vs. Flow, BHT, and Tubing ID for BHP = 4,000 psi + Depth = 8,500 ft"]
[null,"MMscf/d","pwh_multi"]
[null,null,"200 - 1.61","300 - 1.61","400 - 1.61","200 - 2.441","300 - 2.441","400 - 2.441","200 - 3.958","300 - 3.958","400 - 3.958"]
[null,1,3356.1032872979094,3430.2785468632987,3484.7065943230691,3366.5636909387708,3442.3246843579695,3498.2725245910492,3366.3505261495934,3441.7226391953209,3497.5000751189318]
[null,2,3333.4197288050686,3407.4355933906736,3459.1554295301453,3378.5283112660863,3460.1177760861774,3519.1337805580847,3381.8492379674817,3463.6061969575157,3523.0585933876082]
[null,3,3275.441600232929,3340.4507904960751,3381.6897769170087,3381.3239971720063,3465.4426114665816,3525.1594651365949,3391.5520068115566,3477.16204595204,3538.598770832491]
[null,4,3182.8520634182869,3230.0998632966493,3252.7526175033759,3377.401150619366,3461.8970029058682,3520.7576547796093,3397.6790259147374,3485.6637218601627,3548.1501085068567]
[null,5,3054.5738791639151,3074.4206269815581,3069.0647534733407,3368.1184123630351,3451.4542698542714,3508.31016052936,3401.5443765810669,3491.0317589172114,3554.0509273200018]
[null,6,2887.7123638144421,2868.323585547656,2822.6095323768291,3354.1889665504405,3435.1315897212676,3489.0157177109204,3403.8782731708675,3494.3195205174393,3557.5611972272141]
[null,7,2677.0124059186296,2602.1997405949619,2497.6573115269275,3335.9942244415847,3413.4620354460608,3463.479948198481,3405.101679834358,3496.1258890967761,3559.3849132251689]
[null,8,2413.4046655213492,2257.8357911605731,2061.0925222390142,3313.7371689684173,3386.7188117702904,3431.9977024075006,3405.4699310050833,3496.8093620923423,3559.9372179493839]
[null,9,2080.1736637011973,2011.6572318939532,1420.2417439735971,3287.5182355349912,3355.0295956712412,3394.685038386237,3405.1455201699005,3496.5955693875903,3559.4758078027326]
[null,10,1640.8100214422618,null,null,3257.3764471566401,3318.4262642870785,3351.5431347032008,3404.236199181988,3495.6324842569502,3558.1679013679609]
[null,12,null,null,null,3185.2532308043901,3230.2897217083905,3247.3769578115771,3400.9368416882949,3491.8311597998722,3553.4288121501586]
[null,14,null,null,null,3096.920341424001,3121.4456357844465,3118.0258951355354,3395.9443257862799,3485.907681973134,3546.2756646234361]
[null,16,null,null,null,2991.4913417695557,2990.2885027524771,2960.9271611800632,3389.4601507936309,3478.1297226735091,3536.9994816895651]
[null,18,null,null,null,2867.6240918929975,2834.3536705419692,2772.0891342415453,3381.6009166350914,3468.6498758673638,3525.7630099944067]
[null,20,null,null,null,2723.3981351331277,2649.9588291725922,2545.264863601104,3372.4370855301172,3457.5587216822983,3512.6603591989669]
[]
[null,"MMscf/d","Twh - Wellhead temperature (°F)",null,null,null,null,null,null,null,null,"TA - Adiabatic Wellhead temperature (°F)",null,null,"Delta_Tad"]
[null,null,"200 - 1.61","300 - 1.61","400 - 1.61","200 - 2.441","300 - 2.441","400 - 2.441","200 - 3.958","300 - 3.958","400 - 3.958","200 - Adiabatic","300 - Adiabatic","400 - Adiabatic","200 - 3.958","300 - 3.958","400 - 3.958"]
[null,1,77.266696916388895,91.843257596261481,105.90748583358121,77.29336557559256,91.87283004925736,105.94220715527796,76.144606432943931,89.833677763664042,103.04048685495418,{"$f":"200+O81*9/5","v":178.411853648727},{"$f":"300+P81*9/5","v":279.40917124364796},{"$f":"400+Q81*9/5","v":380.35802777428336},-11.993414639596105,-11.439349309084468,-10.912206792064788]
[null,2,93.137180381020755,120.29380053723632,146.90573017666409,93.367146939854649,120.56096914938132,147.21717514293397,91.450554405147244,117.09680085755436,142.17550348224665,{"$f":"200+O82*9/5","v":178.25092733369223},{"$f":"300+P82*9/5","v":279.23891487267633},{"$f":"400+Q82*9/5","v":380.24348601972417},-12.082818147948764,-11.533936181846482,-10.975841100153247]
[null,3,105.37133523078835,142.95321895944866,180.3710257206022,106.13198876420935,143.8286027568966,181.35458376622563,103.93750208487286,139.74724656896123,175.3050285858387,178.1562884959263,279.20061945943041,380.31759290589844,-12.135395280040948,-11.55521141142756,-10.934670607834203]
[null,4,114.15453087892662,159.99309875725629,206.10655302814484,115.88933582784266,161.95878674172221,208.24603256554965,113.71480545981238,157.78366504287658,201.97085840172363,178.1006885200116,279.22026072306932,380.44937102350576,-12.166284155549107,-11.544299598294813,-10.861460542496813]
[null,5,120.09541476771406,172.41686349229295,225.41626964189354,123.38208483150208,176.09610827616842,229.33088727296683,121.38883350669491,172.10807060455065,223.24701709957054,178.06418917489844,279.25752024572836,380.58154556125891,-12.186561569500858,-11.523599863484243,-10.788030243745037]
[null,6,123.6059242254822,181.01788343351788,239.4860954342447,129.21944345462231,187.26271359725061,246.04259803834503,127.50387004573143,183.61552329285067,240.36445267921408,178.03582121169273,279.29509016912453,380.69606598731025,-12.202321549059596,-11.502727683819696,-10.724407784827637]
[null,7,124.79693667286618,186.14826760916552,248.94122611215695,133.83175656820634,196.21304929049114,259.48131845201647,132.46164684784571,192.99943105277688,254.32302537923567,178.00984335248302,279.32628090754264,380.7894848204632,-12.216753693064984,-11.485399495809657,-10.672508433075992]
[null,8,123.40601698869774,187.56148534512448,253.53433246051782,137.51556642168168,203.48163085976225,270.44047318364591,136.54704634504054,200.76664846660881,265.86943202661928,177.98320517634932,279.34883697480694,380.86300275985747,-12.231552679805928,-11.472868347329488,-10.631665133412522]
[null,9,118.54613799530991,81.40939044337992,250.65319678884183,140.47707396161491,209.44731637643824,279.48715523373187,139.96292056332817,207.28434947360861,275.55039137631263,177.95425363436615,279.36232133645808,380.91896906900615,-12.24763686979658,-11.465377035301074,-10.60057273944102]
[null,10,107.76169245666593,null,null,142.86164632368974,214.38133385253482,287.02973360414819,142.85545325619483,212.82102418193492,283.76742576109746,177.92207524684565,279.36697218611829,380.95973849221747,-12.265513751752417,-11.462793229934283,-10.577923059879184]
[null,12,null,null,null,146.28721321181251,221.89012801105281,298.71596665424892,147.47251204463822,221.69741610854553,296.92867140169432,177.84612017049778,279.35170122788321,381.00346533489545,-12.307711016390117,-11.471277095620444,-10.553630369502532]
[null,14,null,null,null,148.32606089957631,227.04214313198668,307.0729448725258,150.97576546896391,228.47493355264842,306.97204278842906,177.75317135861042,279.30688039235179,381.00632564631007,-12.359349245216432,-11.496177559804552,-10.552041307605526]
[null,16,null,null,null,149.25593190577976,230.40654802174723,312.98344297805494,153.70691491387021,233.79781571426668,314.86318024696908,177.64236738437017,279.23558919118381,380.97610935835883,-12.420907008683233,-11.53578378267567,-10.568828134245084]
[null,18,null,null,null,149.20307798700719,232.28172842344881,316.93237212254581,155.87986427471162,238.07163391680754,321.20880784050547,177.51325548168145,279.13996631020945,380.91776977923956,-12.4926358435103,-11.5889076054392,-10.601239011533586]
[null,20,null,null,null,148.18578639199245,232.7790741496363,319.1347915536648,157.6348944192336,241.56339962489329,326.40751912785072,177.36548378371401,279.02140244617328,380.83446514189706,-12.574731231269986,-11.65477641879261,-10.647519365612732]
[]
[null,"Wellhead Pressure vs. Flow, BHT, and Tubing ID for BHP = 2,000 psi + Depth = 8,500 ft"]
[null,"MMscf/d","pwh_multi"]
[null,null,"200 - 1.61","300 - 1.61","400 - 1.61","200 - 2.441","300 - 2.441","400 - 2.441","200 - 3.958","300 - 3.958","400 - 3.958"]
[null,1,1651.7383679269101,1686.4638168906333,1711.2429690422214,1672.1027930141438,1709.8788058128462,1737.5332923472552,1676.27240647088,1711.5327713551003,1739.3263535381923]
[null,2,1582.8534000091597,1607.3272647121603,1621.1958961659793,1671.8214468260753,1711.4096042542135,1739.7060764254268,1680.7747492741996,1721.6339099341885,1751.2481731689952]
[null,3,1445.8307410639095,1443.4970057191026,1430.1924552422443,1662.5560967281488,1701.4587251420933,1728.3227278612355,1684.8583466884993,1727.503790475495,1758.0403202594487]
[null,4,1218.8017936288816,1160.6653182681505,1087.5562324618706,1645.0866359554789,1681.1774654181572,1704.792669432044,1686.8455249405538,1730.4805244829497,1761.381023106635]
[null,5,833.83789694151449,617.14904913336636,228.53585982907163,1619.7736266621494,1651.0934168280173,1669.7233451295904,1687.3280795171875,1731.4364941296176,1762.3522561955044]
[null,6,null,null,null,1586.6239560356464,1611.2025447355873,1623.0285480996968,1686.6522926905575,1730.8743321457723,1761.5640157021999]
[null,7,null,null,null,1545.3784156764916,1545.3643882098329,1564.0817900342347,1685.0229398195183,1729.0863355832005,1759.3635140904285]
[null,8,null,null,null,1495.5455939424764,1500.0006072190065,1491.7206467753874,1682.5654328995342,1726.2488119733609,1755.9560603773825]
[null,9,null,null,null,1436.3723351485485,1426.6866347444934,1404.1028270601003,1679.3593275885389,1722.4719050595922,1751.4675211780061]
[null,10,null,null,null,1366.7717832737458,1339.3210240176634,1298.3533610225388,1675.4564197377358,1717.8263319492753,1745.977144937161]
[null,12,null,null,null,1189.2526712070362,1109.4588614441852,1010.0018910139606,1665.6857508738969,1706.0974804990394,1732.1740230842145]
[null,14,null,null,null,937.12604126844496,751.80109412654622,483.67208519741013,1653.4096651685579,1691.2670510010989,1714.760246676959]
[null,16,null,null,null,514.19529282185943,null,null,1638.6875073767476,1673.4058190372286,1693.7938431866985]
[null,18,null,null,null,null,null,null,1621.5246923011528,1652.5097410458579,1669.2451168483572]
[null,20,null,null,null,null,null,null,1601.8913965857614,1628.5248425888244,1641.0218663079966]
[]
[null,"MMscf/d","Twh - Wellhead temperature (°F)",null,null,null,null,null,null,null,null,"TA - Adiabatic Wellhead temperature (°F)",null,null,"Delta_Tad"]
[null,null,"200 - 1.61","300 - 1.61","400 - 1.61","200 - 2.441","300 - 2.441","400 - 2.441","200 - 3.958","300 - 3.958","400 - 3.958","200 - Adiabatic","300 - Adiabatic","400 - Adiabatic","200 - 3.958","300 - 3.958","400 - 3.958"]
[null,1,74.526516732177654,87.695557212630007,100.50361431472791,74.683241036597394,87.884724189257753,100.7243633546157,77.234161644745541,86.088209462216881,98.12118391809183,{"$f":"200+O118*9/5","v":174.53125000736162},{"$f":"300+P118*9/5","v":276.44154688583416},{"$f":"400+Q118*9/5","v":377.85705120492071},-14.149305551465764,-13.088029507869901,-12.301638219488494]
[null,2,87.756793337250542,112.75274661816302,137.70033855348061,88.916994900513828,114.06577454904735,139.15037737208132,87.266121225882173,110.92161677657593,134.44086182037199,{"$f":"200+O119*9/5","v":174.64158668130531},{"$f":"300+P119*9/5","v":276.7420335234786},{"$f":"400+Q119*9/5","v":378.31625289869328},-14.088007399274822,-12.92109248695634,-12.046526167392633]
[null,3,96.962549356041606,132.22149454171984,168.07731888748799,100.69352050243792,136.28902620283611,172.41111487108319,98.887028137882666,132.59250135052184,166.70486658848887,174.77031627358306,277.01770062117419,378.74305533117251,-14.016490959120524,-12.767944099347677,-11.80941370490415]
[null,4,100.84440757488117,144.2804376809778,188.87950324639058,109.86349137049712,154.0320009398479,199.20802160405418,108.32263719754643,150.43554228925498,193.43192947218114,174.86018222029122,277.23449088489122,379.08080550303788,-13.966565433171548,-12.647505063949316,-11.621774720534518]
[null,5,96.269744278234825,143.65591670730669,185.16350415682956,116.86459758880301,167.9566342734137,220.36840376402068,115.90588978585349,164.89941478837977,215.09961068995278,174.91073083758087,277.39016381886336,379.32974409372929,-13.938482868010627,-12.561020100631456,-11.483475503483726]
[null,6,null,null,null,122.15054255929006,178.86600956377191,237.0824904105352,122.0404996547249,176.66648097374124,232.69101685528094,174.92560387729466,277.49243977060701,379.50530271951504,-13.930220068169632,-12.504200127440537,-11.385942933602758]
[null,7,null,null,null,126.06560023978496,187.40892851162661,250.34863605515787,127.06029142147366,186.33737484904933,247.11152665615637,174.9087671693091,277.54984010483821,379.62257278933157,-13.939573794828275,-12.472311052867655,-11.320792894815792]
[null,8,null,null,null,128.84700095213927,194.05556004728541,260.90389974340849,131.21733399624725,194.37919750638073,259.07507287202247,174.86351554174854,277.5693786269515,379.69324022657406,-13.964713587917483,-12.461456318360282,-11.281533207458857]
[null,9,null,null,null,130.64596722714526,199.12771046675726,269.26323591393225,134.69812196961908,201.14312482969666,269.11951622415336,174.79236884834592,277.55637324874681,379.72579628397369,-14.004239528696713,-12.468681528473995,-11.263446508903519]
[null,10,null,null,null,131.54372353288056,202.82680504904121,275.76278701258957,137.64088590355462,206.89192469699523,277.64690119629284,174.69718733458831,277.5147454999161,379.72632025986599,-14.057118147450947,-12.491808055602155,-11.263155411185574]
[null,12,null,null,null,130.63623968502387,206.36127520701334,283.70145048323673,142.30128933430962,216.08844591968023,291.28545630053355,174.43969240686621,277.3562859436214,379.64744646533421,-14.200170885074321,-12.57984114243256,-11.306974185925428]
[null,14,null,null,null,125.20025149962972,203.36140236656578,281.85142521116063,145.76534446344078,223.05733858535902,301.64470897017128,174.09751552076952,277.10860823236749,379.47866829186205,-14.390269155128051,-12.717439870906961,-11.400739837854422]
[null,16,null,null,null,109.36933413407195,null,null,148.37460906579304,228.4577080954802,309.71983310258872,173.67313085609584,276.7789024673682,379.23114937112996,-14.626038413280092,-12.900609740351015,-11.538250349372229]
[null,18,null,null,null,null,null,null,150.34472853983721,232.70733209409835,316.13843871595094,173.16636322767474,276.36986475304991,378.90988363500304,-14.90757598462514,-13.127852914972285,-11.716731313887193]
[null,20,null,null,null,null,null,null,151.81710413833332,236.08161024275813,321.31285205589455,172.57505117182987,275.8811286523362,378.51591179591668,-15.236082682316734,-13.399372970924347,-11.935604557824075]
[]
[null,"INJECTION Wellhead Pressure vs. Flow, BHT, and Tubing ID for BHP = 2,000 psi + Depth = 8,500 ft"]
[null,"MMscf/d","pwh_multi"]
[null,null,"200 - 1.61","300 - 1.61","400 - 1.61","200 - 2.441","300 - 2.441","400 - 2.441","200 - 3.958","300 - 3.958","400 - 3.958"]
[null,1,2317.2470625106562,2254.0547061180282,2211.0493197831252,2340.2425689381407,2281.4230887963749,2242.4004578144159,2341.8825444978256,2282.6040176775937,2243.7126818017232]
[null,2,2230.6965221879477,2150.9665611142887,2092.2871591667936,2328.2963419159873,2267.9701089636651,2227.3483327591935,2341.8292101827724,2283.4845511309627,2244.801422587776]
[null,3,2078.4313465856053,1965.1739025819211,1874.0982127727236,2310.0792790027572,2246.4499468465037,2202.87147453239,2338.8835554277689,2280.4388666181626,2241.5353536675138]
[null,4,1845.7350592058128,1671.3922200313245,1516.3374334481884,2285.9211316421197,2217.5512861729653,2169.6677104067257,2335.4081074742785,2276.5412514313521,2237.272305938473]
[null,5,1498.7724705526941,1198.3140760182955,872.77406187745953,2255.3283765781944,2180.6846802298519,2127.006441517357,2331.7131175527747,2272.2816681180393,2232.5552022821157]
[null,6,943.92608362635019,null,null,2217.8287946949549,2135.2141320005953,2074.0630613172661,2327.7756847323426,2267.6783224095548,2227.4056228688596]
[null,7,null,null,null,2172.9622986412392,2080.4687687255787,2009.8888210022856,2323.5318324954537,2262.6735321596584,2221.7616795569061]
[null,8,null,null,null,2120.2117289240882,2015.6083119141417,1933.297845397356,2318.9255508782917,2257.2086698972889,2215.5598328552746]
[null,9,null,null,null,2058.960824480785,1939.6209079496202,1842.7236235741798,2313.9119530595594,2251.2359079115918,2208.7479794350115]
[null,10,null,null,null,1988.4452350494612,1851.1572177834837,1736.0054977207735,2308.4584517794183,2244.7177079499061,2201.284869541797]
[null,12,null,null,null,1815.4424971665478,1628.7740633940114,1459.9991659938166,2296.1351677535004,2229.9315586831785,2184.2780703368148]
[null,14,null,null,null,1589.0209048763445,1321.6668601458259,1048.9119552090231,2281.8027103793465,2212.6687808693168,2164.3339042482312]
[null,16,null,null,null,1285.5039528347788,857.85365166331076,null,2265.3542605130197,2192.791806765043,2141.2814175138001]
[null,18,null,null,null,852.65845369296778,null,null,2246.7012656757684,2170.1808002123203,2114.9723805209874]
[null,20,null,null,null,null,null,null,2225.7624017990038,2144.7194281199304,2085.2521142235928]
[]
[null,"MMscf/d","Twh - Wellhead temperature (°F)",null,null,null,null,null,null,null,null,"TA - Adiabatic Wellhead temperature (°F)",null,null,"Delta_Tad"]
[null,null,"200 - 1.61","300 - 1.61","400 - 1.61","200 - 2.441","300 - 2.441","400 - 2.441","200 - 3.958","300 - 3.958","400 - 3.958","200 - Adiabatic","300 - Adiabatic","400 - Adiabatic","200 - 3.958","300 - 3.958","400 - 3.958"]
[null,1,165.75705393214793,234.8143328288098,304.17909622807207,165.98221577868432,235.0212987089117,304.36409894204184,169.02133763896893,243.52248533195481,317.11703620562417,{"$f":"200+O155*9/5","v":223.9992069220892},{"$f":"300+P155*9/5","v":321.3588564585113},{"$f":"400+Q155*9/5","v":419.29000061130381},13.332892734494006,11.866031365839619,10.716667006279899]
[null,2,174.69348478484264,246.5655198869467,320.01533944705358,176.13534041011314,247.9599494893466,321.3027579022733,166.94174320922954,235.73397415563846,305.12326738970751,{"$f":"200+O156*9/5","v":224.01134521529707},{"$f":"300+P156*9/5","v":321.44540633715553},{"$f":"400+Q156*9/5","v":419.41426326423237},13.339636230720593,11.914114631753058,10.785701813462424]
[null,3,181.26321154024149,257.75687066104206,336.24459036032863,185.26671486355329,261.67641548578626,339.89032396320334,173.04764011104959,243.50136061769837,315.27663750548408,223.90825555330576,321.32235394339489,419.27830994572247,13.282364196280987,11.845752190774924,10.710172192068041]
[null,4,182.89356524908439,262.75007872559308,344.84486415246619,191.45063769476272,271.36441179254859,353.12585961336788,179.26424073142911,252.47682016686284,327.32846498079243,223.79137552366123,321.17466048818039,419.11501183401879,13.217430846478466,11.763700271211334,10.61945101889933]
[null,5,178.52592376382617,259.07919485595312,340.23099474822396,195.60370835694178,278.11452144241355,362.45084823487997,184.46728809007561,260.27203473246146,337.84845891613634,223.67578532311379,321.03287604912106,418.96275743272622,13.153214068396545,11.684931138400575,10.534865240403464]
[null,6,158.21544307684351,null,null,198.38352863936322,282.86782325872502,369.14411782497285,188.68615353241884,266.70841668614946,346.54661759000953,223.56162582755934,320.89890648113413,418.8235760403814,13.089792126421854,11.610503600630063,10.457542244656318]
[null,7,null,null,null,200.18063069499593,286.21055144918853,374.00568348481994,192.11079404646665,271.99337960265035,353.69268404657521,223.44663587609003,320.76975263777496,418.69357069621526,13.025908820050017,11.538751465430531,10.385317053452912]
[null,8,null,null,null,201.22452590004676,288.49622589417532,377.52085121413893,194.91632833782106,276.36113906566482,359.60197819223254,223.32857661935722,320.64216475102643,418.56868795181691,12.96032034408735,11.467869306125786,10.315937751009406]
[null,9,null,null,null,201.64796321665227,289.93542175478058,379.98037076746829,197.23929500582656,280.00568818888758,364.53749040239353,223.2055875050537,320.51346761203445,418.44566874733556,12.891993058363175,11.396370895574686,10.247593748519746]
[null,10,null,null,null,201.52049316869386,290.64275157403,381.54449394770506,199.18172706398133,283.07677310755696,368.70259152812127,223.07625030365327,320.38158215170694,418.32202678915212,12.820139057585143,11.323101195392734,10.178903771751171]
[null,12,null,null,null,199.65641024977191,289.94403925821234,382.07800401835976,202.21100720652666,287.92627072202174,375.3024543179086,222.79428020443606,320.10215671692072,418.0657314117974,12.663489002464473,11.167864842733715,10.036517450998558]
[null,14,null,null,null,195.21037716619276,285.53874552059096,377.19857675193094,204.41688869354505,291.53354824651228,380.2483636301065,222.47598124762285,319.79459739393911,417.78910540596434,12.48665624867936,10.996998552188387,9.8828363366468643]
[null,16,null,null,null,186.17942357924201,270.66461694208976,null,206.0433913022886,294.27246373827649,384.04692342253776,222.11666006428544,319.45257151381713,417.48497310423789,12.287033369047469,10.806984174342842,9.7138739467988344]
[null,18,null,null,null,162.57092831592209,null,null,207.24188137749951,296.37692438689811,387.01481838545294,221.71251147627945,319.07118350402362,417.1480071515295,12.062506375710806,10.595101946679787,9.5266706397386116,null,null,"°F","°C",null,"in","m"]
[null,20,null,null,null,null,null,null,208.11022023177253,297.99919063407992,389.35809436380123,221.2600856934811,318.6461456521954,416.7735697333768,11.811158718600614,10.358969806775226,9.3186498518760139,null,null,200,{"$f":"CONVERT(T169,\"F\",\"C\")","v":93.333333333333329},null,1.61,{"$f":"CONVERT(W169,\"in\",\"m\")","v":4.0894E-2}]
[null,null,null,null,null,null,null,null,null,null,null,null,null,null,null,null,null,null,null,300,{"$f":"CONVERT(T170,\"F\",\"C\")","v":148.88888888888889},null,2.4409999999999998,{"$f":"CONVERT(W170,\"in\",\"m\")","v":6.2001399999999998E-2}]
[null,"PRODCUTION - INSULATED (10%) Wellhead Pressure vs. Flow, BHT, and Tubing ID for BHP = 2,000 psi + Depth = 8,500 ft",null,null,null,null,null,null,null,null,null,null,null,null,null,"MPa",null,null,null,400,204.44444444444443,null,3.9580000000000002,{"$f":"CONVERT(W171,\"in\",\"m\")","v":0.1005332}]
[null,"MMscf/d","pwh_multi","(psi)",null,null,null,null,null,null,null,null,null,"scmd","°C - m"]
[null,null,"200 - 1.61","300 - 1.61","400 - 1.61","200 - 2.441","300 - 2.441","400 - 2.441","200 - 3.958","300 - 3.958","400 - 3.958",null,null,null,"93 - 0.041","149 - 0.041","204 - 0.041","93 - 0.062","149 - 0.062","204 - 0.062","93 - 0.101","149 - 0.101","204 - 0.101"]
[null,1,1675.6949755692597,1716.3167332560765,1743.3299909228981,1698.3058250548529,1743.1711780713968,1774.1194604901207,1700.3275126909755,1745.4573643880744,1776.7244504602377,null,null,{"$f":"B174*28317","v":28317},{"$f":"CONVERT(C174, \"psi\", \"Pa\")/1000000","v":11.553510153931732},{"$f":"CONVERT(D174, \"psi\", \"Pa\")/1000000","v":11.833587314004232},{"$f":"CONVERT(E174, \"psi\", \"Pa\")/1000000","v":12.019837169314785},{"$f":"CONVERT(F174, \"psi\", \"Pa\")/1000000","v":11.709406473327258},{"$f":"CONVERT(G174, \"psi\", \"Pa\")/1000000","v":12.018742193248649},{"$f":"CONVERT(H174, \"psi\", \"Pa\")/1000000","v":12.23212308916618},{"$f":"CONVERT(I174, \"psi\", \"Pa\")/1000000","v":11.723345518900924},{"$f":"CONVERT(J174, \"psi\", \"Pa\")/1000000","v":12.034504893029103},{"$f":"CONVERT(K174, \"psi\", \"Pa\")/1000000","v":12.250083862761274}]
[null,2,1595.8041293502679,1620.3450541998211,1631.4221850532654,1693.1262830057926,1737.6885369758975,1767.6793507212328,1703.5603628519891,1750.1130017087564,1782.0038717093769,null,null,{"$f":"B175*28317","v":56634},{"$f":"CONVERT(C175, \"psi\", \"Pa\")/1000000","v":11.002682159305946},11.1718858798935,11.248260008632666,11.673694788009229,11.98094071356963,12.187720095368334,11.745635236126292,12.066604382400222,12.286484190922485]
[null,3,1445.3098711385148,1434.6177498473085,1410.7018013163897,1679.1538181786136,1721.0710863678225,1748.3055991170449,1703.917533863902,1750.8008838519281,1782.7059121041791,null,null,84951,9.9650607749205005,9.8913411936685147,9.7264465331119219,11.577358034238497,11.866367424795738,12.054142780199328,11.748097843565587,12.071347162823695,12.291324589054646]
[null,4,1202.954732361203,1121.838697561531,1020.3962735790443,1657.8014441308994,1695.3219320093672,1718.2650528348158,1703.0488043697394,1749.8805978927116,1781.5783361171832,null,null,113268,8.2940809142987995,7.7348055417708625,7.0353846491809344,11.430138597546561,11.688833254989863,11.847020504629167,11.742108164549919,12.065002014494587,12.283550226294704]
[null,5,805.15741335376811,528.91246275796448,null,1629.2010452776401,1660.5930759258592,1677.6322906391981,1701.3551183274997,1747.912113910259,1779.2541895495369,null,null,141585,5.551364947869466,3.6467230600481151,null,11.232945788965527,11.449386221224701,11.566867471139357,11.73043061035785,12.051429795200088,12.267525799797031]
[null,6,null,null,null,1593.134086474907,1616.5381752469775,1625.8664140768208,1698.9799741982915,1745.0932870240542,1775.9533613594847,null,null,169902,null,null,null,10.984272861717981,11.145638373469174,11.209954316173652,11.714054568050665,12.031994667968247,12.244767390560174]
[null,7,null,null,null,1549.1952053357904,1562.5033087906222,1562.0019438417057,1695.9862325146689,1741.5099165454587,1771.7697568334358,null,null,198219,null,null,null,10.681324940530398,10.773081083883838,10.769624294245759,11.693413445743646,12.007288198226826,12.215922452742467]
[null,8,null,null,null,1496.7885671649938,1497.5177021481707,1484.5886314803085,1692.4051467571164,1737.2035503927141,1766.7478976736732,null,null,226536,null,null,null,10.319993889791863,10.325021098534826,10.235878294253695,11.668722728599301,11.977596848788137,12.181297952675429]
[null,9,null,null,null,1435.0951168327579,1420.1965666658298,1391.4858374191556,1688.2513367704009,1732.1951283210467,1760.9093569765278,null,null,254853,null,null,null,9.8946325231729588,9.791910635751897,9.5939571258862077,11.640083216898958,11.943064994182242,12.141042631622325]
[null,10,null,null,null,1362.9958573568601,1328.5456306937622,1279.4411901657827,1683.5333021312715,1726.4947200350136,1754.2635468138494,null,null,283170,null,null,null,9.3975256280694754,9.1599996765327774,8.8214364770755402,11.607553513161399,11.903762062578078,12.095221383534186]
[null,12,null,null,null,1180.7174396455212,1088.6360313371999,973.39267687718939,1672.4151602733909,1713.0285917932365,1738.55417081532,null,null,339804,null,null,null,8.1407601781670316,7.50588121666802,6.7113062580156768,11.530896623500297,11.810916376672346,11.986909048797202]
[null,14,null,null,null,926.79070875405318,720.72607927686249,422.06915590221922,1659.043748158444,1696.7920248908899,1719.587669905761,null,null,396438,null,null,null,6.3899969984226832,4.9692313914707862,2.9100643908782402,11.438703982300806,11.698969188606377,11.856139628325135]
[null,16,null,null,null,550.66547394440943,null,null,1643.388388811871,1677.7337772361459,1697.285555918337,null,null,453072,null,null,null,3.796704792574229,null,null,11.33076407926885,11.567567196593821,11.702371965257271]
[null,18,null,null,null,null,null,null,1625.3990905655721,1655.7756084696775,1671.5339896561591,null,null,509706,null,null,null,null,null,null,11.2067322339862,11.416170952346592,11.524821165960612]
[null,20,null,null,null,null,null,null,1605.0104158157239,1630.8151195827979,1642.1853586733407,null,null,566340,null,null,null,null,null,null,11.066157270056648,11.24407443955273,11.322469478447317]
[]
[null,"MMscf/d","Twh - Wellhead temperature (°F)",null,null,null,null,null,null,null,null,"TA - Adiabatic Wellhead temperature (°F)",null,null,"Delta_Tad"]
[null,null,"200 - 1.61","300 - 1.61","400 - 1.61","200 - 2.441","300 - 2.441","400 - 2.441","200 - 3.958","300 - 3.958","400 - 3.958","200 - Adiabatic","300 - Adiabatic","400 - Adiabatic","200 - 3.958","300 - 3.958","400 - 3.958"]
[null,1,136.99688635795195,208.02578475169673,280.63304798553679,137.52444692355874,208.51565109621956,281.07591085260651,135.55249474548361,204.8200142612929,275.69333845598817,{"$f":"200+O192*9/5","v":175.39488352470926},{"$f":"300+P192*9/5","v":278.13033111886728},{"$f":"400+Q192*9/5","v":380.25509140193827},-13.669509152939305,-12.149816045073736,-10.969393665589834]
[null,2,151.40839791401834,236.79601741933371,323.14256405380695,153.98931501726412,239.10856662481325,325.1578917436853,152.94052274366459,236.91584286960193,321.89142663960678,{"$f":"200+O193*9/5","v":175.65339961395543},{"$f":"300+P193*9/5","v":278.56035154344295},{"$f":"400+Q193*9/5","v":380.78096678699887},-13.525889103358097,-11.910915809198347,-10.677240673889521]
[null,3,153.41439232476299,244.82145598399546,336.80366391671134,160.1775131128361,250.88310139956391,342.09997993401583,159.87824628584093,249.69304613986409,340.08240435084724,175.73063458868171,278.70276685196598,380.95551331360605,-13.482980784065715,-11.831796193352245,-10.580270381329989]
[null,4,148.20938385983746,242.89607134193179,337.8706723316435,163.08858282774071,256.81661192137187,350.79429564456024,163.57368043804027,256.50761290252137,349.74472389429241,175.74152816732803,278.75148772283836,381.02390153849939,-13.47692879592887,-11.804729042867574,-10.542276923055891]
[null,5,128.48581723209583,212.53500255087087,null,164.45040088181511,260.11253068369535,355.84912546293629,165.84538644770797,260.7204807570152,355.71472017919183,175.7150790431063,278.75305777324809,381.04200543735811,-13.491622753829841,-11.803856792639941,-10.532219201467729]
[null,6,null,null,null,164.87839280062423,261.92244636851819,358.91672482612751,167.36243321676017,263.56439364763332,359.75334676895426,175.66184511293216,278.7240550790886,381.02927021570281,-13.521197159482131,-11.819969400506322,-10.539294324609557]
[null,7,null,null,null,164.63015940186787,262.74412532410201,360.71722568530288,168.42817568254122,265.59712324808203,362.65361485709519,175.58651700594154,278.67178521919317,380.99416112247599,-13.563046107810248,-11.849008211559353,-10.558799376402224]
[null,8,null,null,null,163.81122666605538,262.80472299691962,361.58996588543727,169.19984689841547,267.10725560366814,364.82500150974835,175.49144578684238,278.59990335305849,380.94089740827985,-13.61586345175423,-11.888942581634161,-10.588390328733432]
[null,9,null,null,null,162.44294510647438,262.18861105549456,361.67705146560019,169.76725998774836,268.25929384566155,366.49989023200936,175.37783766536006,278.51038728448805,380.87176135369469,-13.678979074799967,-11.938673730839973,-10.626799247947393]
[null,10,null,null,null,160.48135194472309,260.87533781560126,360.97630320508455,170.18509460201935,269.15364219953864,367.82021004658532,175.2463649904883,278.40434215028051,380.78804610316695,-13.752019449728724,-11.997587694288592,-10.673307720462812]
[null,12,null,null,null,154.18974368224593,255.38095033610824,356.10048704308679,170.70159672486901,270.40699357167534,369.73263618636912,174.93089846200422,278.14479212293651,380.5794665407991,-13.927278632219885,-12.141782153924163,-10.789185255111621]
[null,14,null,null,null,141.7393424441687,239.65826982402527,326.17228739671873,170.91679354295371,271.17524670734167,370.9970172979917,174.54530884405978,277.82300179843122,380.31756029986025,-14.141495086633462,-12.320554556427091,-10.934688722299875]
[null,16,null,null,null,103.05622677321254,null,null,170.91428336574697,271.61363078360614,371.83254342616436,174.08803548237469,277.43815449241794,380.00192561226851,-14.39553584312517,-12.534358615323368,-11.110041326517509]
[null,18,null,null,null,null,null,null,170.73912864704894,271.80728972901568,372.36047384084969,173.55619006442808,276.9878264648994,379.63045505255377,-14.691005519762173,-12.784540852833652,-11.316413859692352]
[null,20,null,null,null,null,null,null,170.41638173638322,271.8055801949011,372.65183799334005,172.94575424365448,276.46827415720304,379.19964924717237,-15.030136531303075,-13.073181023776105,-11.555750418237571]